,,Body Name,Organisation Code,Service Label,Service Code,Organisation Unit,Expenditure Category,Expenditure Code,Narrative,Date,Transaction No,Net Amount,Supplier ID,Amended Supplier Name
INSERTED DETAIL,,Ealing Council,http://opendatacommunities.org/id/london-borough-council/ealing,CHIEF EXECUTIVE DIRECTORATE,5,PROPERTY SERVICES,CIS REPAIRS AND MAINTENANCE,1411,,27/06/2022,41019455,5821.76,25787,GOLDEN SERVICES PLUS LIMITED
INSERTED DETAIL,,Ealing Council,http://opendatacommunities.org/id/london-borough-council/ealing,CHIEF EXECUTIVE DIRECTORATE,5,PROPERTY SERVICES,CIS REPAIRS AND MAINTENANCE,1411,,27/06/2022,41019455,11438.4,25787,GOLDEN SERVICES PLUS LIMITED
INSERTED DETAIL,,Ealing Council,http://opendatacommunities.org/id/london-borough-council/ealing,CHIEF EXECUTIVE DIRECTORATE,5,PROPERTY SERVICES,REPAIR AND MAINTENANCE,1410,,29/04/2022,41018952,938.57,28680,BELL CONTAINER TRADING LTD
INSERTED DETAIL,,Ealing Council,http://opendatacommunities.org/id/london-borough-council/ealing,CHILDREN & ADULTS,1,BUSINESS MANAGEMENT,PAYMENTS TO OTHER ESTAB.,4350,,01/07/2022,41020225,2864.88,22929,GOODSHAPE UK LIMITED
INSERTED DETAIL,,Ealing Council,http://opendatacommunities.org/id/london-borough-council/ealing,CHILDREN & ADULTS,1,DISABILITIES,RESIDENTIAL HOMES EXTERNAL-INCOME,8780,,21/07/2022,23196759,-538.44,10869,HF TRUST LIMITED
INSERTED DETAIL,,Ealing Council,http://opendatacommunities.org/id/london-borough-council/ealing,CHILDREN & ADULTS,1,DISABILITIES,RESIDENTIAL HOMES EXTERNAL,4220,,07/07/2022,23193509,-4466.5,10869,HF TRUST LIMITED
INSERTED DETAIL,,Ealing Council,http://opendatacommunities.org/id/london-borough-council/ealing,CHILDREN & ADULTS,1,DISABILITIES,SUPPORTED LIVING,4236,,07/07/2022,23193509,-6159.21,10869,HF TRUST LIMITED
INSERTED DETAIL,,Ealing Council,http://opendatacommunities.org/id/london-borough-council/ealing,CHILDREN & ADULTS,1,DISABILITIES,RESIDENTIAL HOMES EXTERNAL,4220,,21/07/2022,23196759,2436.44,10869,HF TRUST LIMITED
INSERTED DETAIL,,Ealing Council,http://opendatacommunities.org/id/london-borough-council/ealing,CHILDREN & ADULTS,1,DISABILITIES,NURSING HOMES EXTERNAL,4230,,28/06/2022,23192622,5200,10875,CARE UK COMMUNITY PARTNERSHIP LTD
INSERTED DETAIL,,Ealing Council,http://opendatacommunities.org/id/london-borough-council/ealing,CHILDREN & ADULTS,1,DISABILITIES,NURSING HOMES EXTERNAL,4230,,20/07/2022,23197059,4457.14,10875,CARE UK COMMUNITY PARTNERSHIP LTD
INSERTED DETAIL,,Ealing Council,http://opendatacommunities.org/id/london-borough-council/ealing,CHILDREN & ADULTS,1,DISABILITIES,SOCIAL SERVICES DIRECT PAYMENTS,4231,,08/07/2022,23193559,833.12,80793,REDACTED SENSITIVE SUPPLIER
INSERTED DETAIL,,Ealing Council,http://opendatacommunities.org/id/london-borough-council/ealing,CHILDREN & ADULTS,1,DISABILITIES,SOCIAL SERVICES DIRECT PAYMENTS,4231,,08/07/2022,23193559,1761.96,80793,REDACTED SENSITIVE SUPPLIER
INSERTED DETAIL,,Ealing Council,http://opendatacommunities.org/id/london-borough-council/ealing,CHILDREN & ADULTS,1,DISABILITIES,SOCIAL SERVICES DIRECT PAYMENTS,4231,,22/07/2022,23197042,1480.21,80847,REDACTED SENSITIVE SUPPLIER
INSERTED DETAIL,,Ealing Council,http://opendatacommunities.org/id/london-borough-council/ealing,CHILDREN & ADULTS,1,DISABILITIES,SOCIAL SERVICES DIRECT PAYMENTS,4231,,08/07/2022,23193556,-579.21,80847,REDACTED SENSITIVE SUPPLIER
INSERTED DETAIL,,Ealing Council,http://opendatacommunities.org/id/london-borough-council/ealing,CHILDREN & ADULTS,1,DISABILITIES,SOCIAL SERVICES DIRECT PAYMENTS,4231,,08/07/2022,23193546,1472.96,80048,REDACTED SENSITIVE SUPPLIER
INSERTED DETAIL,,Ealing Council,http://opendatacommunities.org/id/london-borough-council/ealing,CHILDREN & ADULTS,1,DISABILITIES,SOCIAL SERVICES DIRECT PAYMENTS,4231,,08/07/2022,23193513,1198.8,80136,REDACTED SENSITIVE SUPPLIER
INSERTED DETAIL,,Ealing Council,http://opendatacommunities.org/id/london-borough-council/ealing,CHILDREN & ADULTS,1,DISABILITIES,SOCIAL SERVICES DIRECT PAYMENTS,4231,,08/07/2022,23193513,2835,80136,REDACTED SENSITIVE SUPPLIER
INSERTED DETAIL,,Ealing Council,http://opendatacommunities.org/id/london-borough-council/ealing,CHILDREN & ADULTS,1,DISABILITIES,SOCIAL SERVICES DIRECT PAYMENTS,4231,,08/07/2022,23193538,-705.6,80309,REDACTED SENSITIVE SUPPLIER
INSERTED DETAIL,,Ealing Council,http://opendatacommunities.org/id/london-borough-council/ealing,CHILDREN & ADULTS,1,DISABILITIES,SOCIAL SERVICES DIRECT PAYMENTS,4231,,08/07/2022,23193538,1608.43,80309,REDACTED SENSITIVE SUPPLIER
INSERTED DETAIL,,Ealing Council,http://opendatacommunities.org/id/london-borough-council/ealing,CHILDREN & ADULTS,1,DISABILITIES,SOCIAL SERVICES DIRECT PAYMENTS,4231,,08/07/2022,23193559,737.12,80793,REDACTED SENSITIVE SUPPLIER
INSERTED DETAIL,,Ealing Council,http://opendatacommunities.org/id/london-borough-council/ealing,CHILDREN & ADULTS,1,DISABILITIES,DOMICILIARY CARE - BLOCK,4240,,22/07/2022,23197039,545.3,27956,THE SOCIAL CARE LIMITED
INSERTED DETAIL,,Ealing Council,http://opendatacommunities.org/id/london-borough-council/ealing,CHILDREN & ADULTS,1,DISABILITIES,SUPPORTED LIVING,4236,,21/07/2022,23197010,6024.08,29539,THE BRANDON TRUST
INSERTED DETAIL,,Ealing Council,http://opendatacommunities.org/id/london-borough-council/ealing,CHILDREN & ADULTS,1,DISABILITIES,RESIDENTIAL HOMES EXTERNAL,4220,,04/07/2022,23192642,5035.42,29910,VANI LTD T/A SAIVAN CARE SERVICES
INSERTED DETAIL,,Ealing Council,http://opendatacommunities.org/id/london-borough-council/ealing,CHILDREN & ADULTS,1,DISABILITIES,RESIDENTIAL HOMES EXTERNAL,4220,,21/07/2022,23197036,7832.88,29910,VANI LTD T/A SAIVAN CARE SERVICES
INSERTED DETAIL,,Ealing Council,http://opendatacommunities.org/id/london-borough-council/ealing,CHILDREN & ADULTS,1,DISABILITIES,RESIDENTIAL HOMES EXTERNAL,4220,,21/07/2022,23196699,4998.88,30199,JRCS LTD (TREEHAVEN RESIDENTIAL HOME)
INSERTED DETAIL,,Ealing Council,http://opendatacommunities.org/id/london-borough-council/ealing,CHILDREN & ADULTS,1,DISABILITIES,RESIDENTIAL HOMES EXTERNAL-INCOME,8780,,21/07/2022,23196699,-350.2,30199,JRCS LTD (TREEHAVEN RESIDENTIAL HOME)
INSERTED DETAIL,,Ealing Council,http://opendatacommunities.org/id/london-borough-council/ealing,CHILDREN & ADULTS,1,DISABILITIES,SUPPORTED LIVING,4236,,21/07/2022,23196837,6983.64,26408,NEWTON CARE HOMES LTD
INSERTED DETAIL,,Ealing Council,http://opendatacommunities.org/id/london-borough-council/ealing,CHILDREN & ADULTS,1,DISABILITIES,SUPPORTED LIVING,4236,,21/07/2022,23196934,3328,26408,NEWTON CARE HOMES LTD
INSERTED DETAIL,,Ealing Council,http://opendatacommunities.org/id/london-borough-council/ealing,CHILDREN & ADULTS,1,DISABILITIES,SUPPORTED LIVING,4236,,21/07/2022,23196871,939.6,27342,CAMPHILL VILLAGE TRUST LTD
INSERTED DETAIL,,Ealing Council,http://opendatacommunities.org/id/london-borough-council/ealing,CHILDREN & ADULTS,1,ADULT MENTAL HEALTH,RESIDENTIAL HOMES EXTERNAL,4220,,21/07/2022,23196676,2584.6,10569,NORWOOD GREEN CARE CENTRE
INSERTED DETAIL,,Ealing Council,http://opendatacommunities.org/id/london-borough-council/ealing,CHILDREN & ADULTS,1,ADULT MENTAL HEALTH,RESIDENTIAL HOMES EXTERNAL,4220,,21/07/2022,23196676,2584.6,10569,NORWOOD GREEN CARE CENTRE
INSERTED DETAIL,,Ealing Council,http://opendatacommunities.org/id/london-borough-council/ealing,CHILDREN & ADULTS,1,ADULT MENTAL HEALTH,RESIDENTIAL HOMES EXTERNAL,4220,,04/07/2022,23192636,1077.84,11172,COMMUNITY HOUSING & THERAPY
INSERTED DETAIL,,Ealing Council,http://opendatacommunities.org/id/london-borough-council/ealing,CHILDREN & ADULTS,1,ADULT MENTAL HEALTH,SUPPORTED LIVING,4236,,21/07/2022,23196887,2157.48,11172,COMMUNITY HOUSING & THERAPY
INSERTED DETAIL,,Ealing Council,http://opendatacommunities.org/id/london-borough-council/ealing,CHILDREN & ADULTS,1,ADULT MENTAL HEALTH,SUPPORTED LIVING,4236,,21/07/2022,23196887,2714.4,11172,COMMUNITY HOUSING & THERAPY
INSERTED DETAIL,,Ealing Council,http://opendatacommunities.org/id/london-borough-council/ealing,CHILDREN & ADULTS,1,ADULT MENTAL HEALTH,SUPPORTED LIVING,4236,,21/07/2022,23196887,2812,11172,COMMUNITY HOUSING & THERAPY
INSERTED DETAIL,,Ealing Council,http://opendatacommunities.org/id/london-borough-council/ealing,CHILDREN & ADULTS,1,ADULT MENTAL HEALTH,RESIDENTIAL HOMES EXTERNAL,4220,,21/07/2022,23197013,2959.12,29582,FARRINGTON CARE HOMES LTD T/A WOODLANDS RESIDENTIAL CARE HOME
INSERTED DETAIL,,Ealing Council,http://opendatacommunities.org/id/london-borough-council/ealing,CHILDREN & ADULTS,1,ADULT MENTAL HEALTH,SUPPORTED LIVING,4236,,21/07/2022,23197029,1542.86,29804,CLEAR SIGHT CARE LTD
INSERTED DETAIL,,Ealing Council,http://opendatacommunities.org/id/london-borough-council/ealing,CHILDREN & ADULTS,1,ADULT MENTAL HEALTH,RESIDENTIAL HOMES EXTERNAL,4220,,21/07/2022,23197029,1250,29804,CLEAR SIGHT CARE LTD
INSERTED DETAIL,,Ealing Council,http://opendatacommunities.org/id/london-borough-council/ealing,CHILDREN & ADULTS,1,ADULT MENTAL HEALTH,RESIDENTIAL HOMES EXTERNAL,4220,,21/07/2022,23197029,950,29804,CLEAR SIGHT CARE LTD
INSERTED DETAIL,,Ealing Council,http://opendatacommunities.org/id/london-borough-council/ealing,CHILDREN & ADULTS,1,ADULT MENTAL HEALTH,RESIDENTIAL HOMES EXTERNAL,4220,,21/07/2022,23197000,504,29070,17CARE UK LTD T/A CARE SPECTRUM
INSERTED DETAIL,,Ealing Council,http://opendatacommunities.org/id/london-borough-council/ealing,CHILDREN & ADULTS,1,ADULT MENTAL HEALTH,RESIDENTIAL HOMES EXTERNAL,4220,,21/07/2022,23197018,504,29070,17CARE UK LTD T/A CARE SPECTRUM
INSERTED DETAIL,,Ealing Council,http://opendatacommunities.org/id/london-borough-council/ealing,CHILDREN & ADULTS,1,ADULT MENTAL HEALTH,RESIDENTIAL HOMES EXTERNAL,4220,,21/07/2022,23197023,1008,29070,17CARE UK LTD T/A CARE SPECTRUM
INSERTED DETAIL,,Ealing Council,http://opendatacommunities.org/id/london-borough-council/ealing,CHILDREN & ADULTS,1,ADULT MENTAL HEALTH,SUPPORTED LIVING,4236,,21/07/2022,23196979,3800,29179,FIRST4YOU MANAGEMENT SERVICE LTD
INSERTED DETAIL,,Ealing Council,http://opendatacommunities.org/id/london-borough-council/ealing,CHILDREN & ADULTS,1,ADULT MENTAL HEALTH,SUPPORTED LIVING,4236,,21/07/2022,23197003,2538,29493,MANUELLA CARE LTD
INSERTED DETAIL,,Ealing Council,http://opendatacommunities.org/id/london-borough-council/ealing,CHILDREN & ADULTS,1,ADULT MENTAL HEALTH,RESIDENTIAL HOMES EXTERNAL,4220,,21/07/2022,23197003,9430,29493,MANUELLA CARE LTD
INSERTED DETAIL,,Ealing Council,http://opendatacommunities.org/id/london-borough-council/ealing,CHILDREN & ADULTS,1,ADULT MENTAL HEALTH,SUPPORTED LIVING,4236,,21/07/2022,23197023,3400,29070,17CARE UK LTD T/A CARE SPECTRUM
INSERTED DETAIL,,Ealing Council,http://opendatacommunities.org/id/london-borough-council/ealing,CHILDREN & ADULTS,1,ADULT MENTAL HEALTH,SUPPORTED LIVING,4236,,21/07/2022,23197000,4496.2,29070,17CARE UK LTD T/A CARE SPECTRUM
INSERTED DETAIL,,Ealing Council,http://opendatacommunities.org/id/london-borough-council/ealing,CHILDREN & ADULTS,1,ADULT MENTAL HEALTH,RESIDENTIAL HOMES EXTERNAL,4220,,21/07/2022,23196960,5040,29070,17CARE UK LTD T/A CARE SPECTRUM
INSERTED DETAIL,,Ealing Council,http://opendatacommunities.org/id/london-borough-council/ealing,CHILDREN & ADULTS,1,ADULT MENTAL HEALTH,RESIDENTIAL HOMES EXTERNAL,4220,,21/07/2022,23196960,7060,29070,17CARE UK LTD T/A CARE SPECTRUM
INSERTED DETAIL,,Ealing Council,http://opendatacommunities.org/id/london-borough-council/ealing,CHILDREN & ADULTS,1,ADULT MENTAL HEALTH,RESIDENTIAL HOMES EXTERNAL,4220,,21/07/2022,23196960,360,29070,17CARE UK LTD T/A CARE SPECTRUM
INSERTED DETAIL,,Ealing Council,http://opendatacommunities.org/id/london-borough-council/ealing,CHILDREN & ADULTS,1,ADULT MENTAL HEALTH,RESIDENTIAL HOMES EXTERNAL,4220,,21/07/2022,23196960,7056,29070,17CARE UK LTD T/A CARE SPECTRUM
INSERTED DETAIL,,Ealing Council,http://opendatacommunities.org/id/london-borough-council/ealing,CHILDREN & ADULTS,1,ADULT MENTAL HEALTH,SUPPORTED LIVING,4236,,21/07/2022,23196960,2200,29070,17CARE UK LTD T/A CARE SPECTRUM
INSERTED DETAIL,,Ealing Council,http://opendatacommunities.org/id/london-borough-council/ealing,CHILDREN & ADULTS,1,ADULT MENTAL HEALTH,SUPPORTED LIVING,4236,,21/07/2022,23196960,1996,29070,17CARE UK LTD T/A CARE SPECTRUM
INSERTED DETAIL,,Ealing Council,http://opendatacommunities.org/id/london-borough-council/ealing,CHILDREN & ADULTS,1,ADULT MENTAL HEALTH,SUPPORTED LIVING,4236,,21/07/2022,23196960,2200,29070,17CARE UK LTD T/A CARE SPECTRUM
INSERTED DETAIL,,Ealing Council,http://opendatacommunities.org/id/london-borough-council/ealing,CHILDREN & ADULTS,1,ADULT MENTAL HEALTH,SUPPORTED LIVING,4236,,21/07/2022,23196960,2200,29070,17CARE UK LTD T/A CARE SPECTRUM
INSERTED DETAIL,,Ealing Council,http://opendatacommunities.org/id/london-borough-council/ealing,CHILDREN & ADULTS,1,ADULT MENTAL HEALTH,SUPPORTED LIVING,4236,,21/07/2022,23197034,3400,29070,17CARE UK LTD T/A CARE SPECTRUM
INSERTED DETAIL,,Ealing Council,http://opendatacommunities.org/id/london-borough-council/ealing,CHILDREN & ADULTS,1,ADULT MENTAL HEALTH,SUPPORTED LIVING,4236,,21/07/2022,23197018,5427.96,29070,17CARE UK LTD T/A CARE SPECTRUM
INSERTED DETAIL,,Ealing Council,http://opendatacommunities.org/id/london-borough-council/ealing,CHILDREN & ADULTS,1,ADULT MENTAL HEALTH,SUPPORTED LIVING,4236,,21/07/2022,23196982,2300,28340,ARTHUR MORRISON LTD
INSERTED DETAIL,,Ealing Council,http://opendatacommunities.org/id/london-borough-council/ealing,CHILDREN & ADULTS,1,ADULT MENTAL HEALTH,SUPPORTED LIVING,4236,,21/07/2022,23196982,2300,28340,ARTHUR MORRISON LTD
INSERTED DETAIL,,Ealing Council,http://opendatacommunities.org/id/london-borough-council/ealing,CHILDREN & ADULTS,1,ADULT MENTAL HEALTH,RESIDENTIAL HOMES EXTERNAL,4220,,21/07/2022,23196947,720,28828,LEYTON HOUSE COMMUNITY CARE LTD
INSERTED DETAIL,,Ealing Council,http://opendatacommunities.org/id/london-borough-council/ealing,CHILDREN & ADULTS,1,ADULT MENTAL HEALTH,SUPPORTED LIVING,4236,,21/07/2022,23196947,2284,28828,LEYTON HOUSE COMMUNITY CARE LTD
INSERTED DETAIL,,Ealing Council,http://opendatacommunities.org/id/london-borough-council/ealing,CHILDREN & ADULTS,1,ADULT MENTAL HEALTH,RESIDENTIAL HOMES EXTERNAL,4220,,21/07/2022,23196931,1388,28936,ADWELL SUPPORTED LIVING LIMITED
INSERTED DETAIL,,Ealing Council,http://opendatacommunities.org/id/london-borough-council/ealing,CHILDREN & ADULTS,1,ADULT MENTAL HEALTH,SUPPORTED LIVING,4236,,21/07/2022,23196931,2420,28936,ADWELL SUPPORTED LIVING LIMITED
INSERTED DETAIL,,Ealing Council,http://opendatacommunities.org/id/london-borough-council/ealing,CHILDREN & ADULTS,1,DISABILITIES,VEHICLE HIRE,2010,,30/06/2022,41020854,700,13223,MANOR WHEELS
INSERTED DETAIL,,Ealing Council,http://opendatacommunities.org/id/london-borough-council/ealing,CHILDREN & ADULTS,1,DISABILITIES,VEHICLE HIRE,2010,,30/06/2022,41020855,795,13223,MANOR WHEELS
INSERTED DETAIL,,Ealing Council,http://opendatacommunities.org/id/london-borough-council/ealing,CHILDREN & ADULTS,1,DISABILITIES,VEHICLE HIRE,2010,,01/07/2022,41020121,370,15687,WHEEL GET YOU THERE LTD
INSERTED DETAIL,,Ealing Council,http://opendatacommunities.org/id/london-borough-council/ealing,CHILDREN & ADULTS,1,DISABILITIES,INTERPRETERS,2910,,30/09/2021,41022914,688,27092,DA LANGUAGES LTD
INSERTED DETAIL,,Ealing Council,http://opendatacommunities.org/id/london-borough-council/ealing,CHILDREN & ADULTS,1,STRATEGIC COMMISSIONING,MINOR EQUIP PURCHASE,3320,,31/03/2022,41020743,276110.92,19519,MEDEQUIP ASSISTIVE TECHNOLOGY LTD
INSERTED DETAIL,,Ealing Council,http://opendatacommunities.org/id/london-borough-council/ealing,CHILDREN & ADULTS,1,STRATEGIC COMMISSIONING,MINOR EQUIP PURCHASE,3320,,31/03/2022,41020745,629.58,19519,MEDEQUIP ASSISTIVE TECHNOLOGY LTD
INSERTED DETAIL,,Ealing Council,http://opendatacommunities.org/id/london-borough-council/ealing,CHILDREN & ADULTS,1,STRATEGIC COMMISSIONING,MINOR EQUIP PURCHASE,3320,,31/03/2022,41020747,6664.13,19519,MEDEQUIP ASSISTIVE TECHNOLOGY LTD
INSERTED DETAIL,,Ealing Council,http://opendatacommunities.org/id/london-borough-council/ealing,CHILDREN & ADULTS,1,STRATEGIC COMMISSIONING,MINOR EQUIP PURCHASE,3320,,31/03/2022,41020748,2336.4,19519,MEDEQUIP ASSISTIVE TECHNOLOGY LTD
INSERTED DETAIL,,Ealing Council,http://opendatacommunities.org/id/london-borough-council/ealing,CHILDREN & ADULTS,1,STRATEGIC COMMISSIONING,MINOR EQUIP PURCHASE,3320,,31/05/2022,41020917,245212.17,19519,MEDEQUIP ASSISTIVE TECHNOLOGY LTD
INSERTED DETAIL,,Ealing Council,http://opendatacommunities.org/id/london-borough-council/ealing,CHILDREN & ADULTS,1,STRATEGIC COMMISSIONING,MINOR EQUIP PURCHASE,3320,,31/05/2022,41020918,23426,19519,MEDEQUIP ASSISTIVE TECHNOLOGY LTD
INSERTED DETAIL,,Ealing Council,http://opendatacommunities.org/id/london-borough-council/ealing,CHILDREN & ADULTS,1,STRATEGIC COMMISSIONING,MINOR EQUIP PURCHASE,3320,,30/06/2022,41021124,305.46,19519,MEDEQUIP ASSISTIVE TECHNOLOGY LTD
INSERTED DETAIL,,Ealing Council,http://opendatacommunities.org/id/london-borough-council/ealing,CHILDREN & ADULTS,1,STRATEGIC COMMISSIONING,MINOR EQUIP PURCHASE,3320,,31/05/2022,41020951,-4313.76,19519,MEDEQUIP ASSISTIVE TECHNOLOGY LTD
INSERTED DETAIL,,Ealing Council,http://opendatacommunities.org/id/london-borough-council/ealing,CHILDREN & ADULTS,1,STRATEGIC COMMISSIONING,MINOR EQUIP PURCHASE,3320,,30/04/2022,41020952,-3960,19519,MEDEQUIP ASSISTIVE TECHNOLOGY LTD
INSERTED DETAIL,,Ealing Council,http://opendatacommunities.org/id/london-borough-council/ealing,CHILDREN & ADULTS,1,STRATEGIC COMMISSIONING,MINOR EQUIP PURCHASE,3320,,30/06/2022,41021120,261023.88,19519,MEDEQUIP ASSISTIVE TECHNOLOGY LTD
INSERTED DETAIL,,Ealing Council,http://opendatacommunities.org/id/london-borough-council/ealing,CHILDREN & ADULTS,1,STRATEGIC COMMISSIONING,MINOR EQUIP PURCHASE,3320,,30/06/2022,41021121,2415.6,19519,MEDEQUIP ASSISTIVE TECHNOLOGY LTD
INSERTED DETAIL,,Ealing Council,http://opendatacommunities.org/id/london-borough-council/ealing,CHILDREN & ADULTS,1,STRATEGIC COMMISSIONING,MINOR EQUIP PURCHASE,3320,,30/06/2022,41021122,360,19519,MEDEQUIP ASSISTIVE TECHNOLOGY LTD
INSERTED DETAIL,,Ealing Council,http://opendatacommunities.org/id/london-borough-council/ealing,CHILDREN & ADULTS,1,STRATEGIC COMMISSIONING,MINOR EQUIP PURCHASE,3320,,30/06/2022,41021123,1875.79,19519,MEDEQUIP ASSISTIVE TECHNOLOGY LTD
INSERTED DETAIL,,Ealing Council,http://opendatacommunities.org/id/london-borough-council/ealing,CHILDREN & ADULTS,1,STRATEGIC COMMISSIONING,MINOR EQUIP PURCHASE,3320,,31/05/2022,41020919,305.46,19519,MEDEQUIP ASSISTIVE TECHNOLOGY LTD
INSERTED DETAIL,,Ealing Council,http://opendatacommunities.org/id/london-borough-council/ealing,CHILDREN & ADULTS,1,STRATEGIC COMMISSIONING,MINOR EQUIP PURCHASE,3320,,30/04/2022,41020920,296197.94,19519,MEDEQUIP ASSISTIVE TECHNOLOGY LTD
INSERTED DETAIL,,Ealing Council,http://opendatacommunities.org/id/london-borough-council/ealing,CHILDREN & ADULTS,1,STRATEGIC COMMISSIONING,MINOR EQUIP PURCHASE,3320,,30/04/2022,41020921,1227.6,19519,MEDEQUIP ASSISTIVE TECHNOLOGY LTD
INSERTED DETAIL,,Ealing Council,http://opendatacommunities.org/id/london-borough-council/ealing,CHILDREN & ADULTS,1,STRATEGIC COMMISSIONING,MINOR EQUIP PURCHASE,3320,,30/04/2022,41020922,9574,19519,MEDEQUIP ASSISTIVE TECHNOLOGY LTD
INSERTED DETAIL,,Ealing Council,http://opendatacommunities.org/id/london-borough-council/ealing,CHILDREN & ADULTS,1,STRATEGIC COMMISSIONING,MINOR EQUIP PURCHASE,3320,,30/04/2022,41020923,10500,19519,MEDEQUIP ASSISTIVE TECHNOLOGY LTD
INSERTED DETAIL,,Ealing Council,http://opendatacommunities.org/id/london-borough-council/ealing,CHILDREN & ADULTS,1,STRATEGIC COMMISSIONING,MINOR EQUIP PURCHASE,3320,,30/04/2022,41020924,729.66,19519,MEDEQUIP ASSISTIVE TECHNOLOGY LTD
INSERTED DETAIL,,Ealing Council,http://opendatacommunities.org/id/london-borough-council/ealing,CHIEF EXECUTIVE DIRECTORATE,5,West London Alliance,Services Contracts Agency Interim Consultants,2970,,29/06/2022,41019772,2744.5,18974,STANTEC UK LIMITED
INSERTED DETAIL,,Ealing Council,http://opendatacommunities.org/id/london-borough-council/ealing,CHIEF EXECUTIVE DIRECTORATE,5,DEMOCRATIC SERVICES,SECURITY SERVICES,2760,,31/07/2021,40981245,821.29,24442,G4S SECURE SOLUTIONS (UK) LIMITED
INSERTED DETAIL,,Ealing Council,http://opendatacommunities.org/id/london-borough-council/ealing,CHIEF EXECUTIVE DIRECTORATE,5,DEMOCRATIC SERVICES,SECURITY SERVICES,2760,,31/10/2021,40990295,658.67,24442,G4S SECURE SOLUTIONS (UK) LIMITED
INSERTED DETAIL,,Ealing Council,http://opendatacommunities.org/id/london-borough-council/ealing,CHIEF EXECUTIVE DIRECTORATE,5,DEMOCRATIC SERVICES,SECURITY SERVICES,2760,,30/11/2021,40993849,709.13,24442,G4S SECURE SOLUTIONS (UK) LIMITED
INSERTED DETAIL,,Ealing Council,http://opendatacommunities.org/id/london-borough-council/ealing,CHIEF EXECUTIVE DIRECTORATE,5,DEMOCRATIC SERVICES,SECURITY SERVICES,2760,,31/12/2021,40997497,674.9,24442,G4S SECURE SOLUTIONS (UK) LIMITED
INSERTED DETAIL,,Ealing Council,http://opendatacommunities.org/id/london-borough-council/ealing,CHIEF EXECUTIVE DIRECTORATE,5,DEMOCRATIC SERVICES,HOSPITALITY/ENTERTAINMENT,3530,,12/05/2022,41018278,7620,9900015,ROTI WALA LIMITED
INSERTED DETAIL,,Ealing Council,http://opendatacommunities.org/id/london-borough-council/ealing,CHIEF EXECUTIVE DIRECTORATE,5,CUSTOMER & TRANSACTIONAL SERVICES,SPECIALIST TECHNICAL CONTRACTORS,4050,,18/07/2022,41022515,8228.51,11089,CIVICA UK LIMITED
INSERTED DETAIL,,Ealing Council,http://opendatacommunities.org/id/london-borough-council/ealing,PLACE,6,"ARTS, HERITAGE AND LIBRARIES",BOOKS,3330,,13/07/2022,41021992,304.9,12624,ASKEWS LIBRARY SERVICES LIMITED
INSERTED DETAIL,,Ealing Council,http://opendatacommunities.org/id/london-borough-council/ealing,PLACE,6,"ARTS, HERITAGE AND LIBRARIES",BOOKS,3330,,19/07/2022,41022069,767.7,12624,ASKEWS LIBRARY SERVICES LIMITED
INSERTED DETAIL,,Ealing Council,http://opendatacommunities.org/id/london-borough-council/ealing,PLACE,6,"ARTS, HERITAGE AND LIBRARIES",BOOKS,3330,,19/07/2022,41022071,503.88,12624,ASKEWS LIBRARY SERVICES LIMITED
INSERTED DETAIL,,Ealing Council,http://opendatacommunities.org/id/london-borough-council/ealing,PLACE,6,"ARTS, HERITAGE AND LIBRARIES",BOOKS,3330,,19/07/2022,41022072,616.26,12624,ASKEWS LIBRARY SERVICES LIMITED
INSERTED DETAIL,,Ealing Council,http://opendatacommunities.org/id/london-borough-council/ealing,CHILDREN & ADULTS,1,DISABILITIES,SUPPORTED LIVING,4236,,21/07/2022,23196895,1931.4,27868,ASSISTED LIVING SOUTHWEST LTD
INSERTED DETAIL,,Ealing Council,http://opendatacommunities.org/id/london-borough-council/ealing,CHILDREN & ADULTS,1,DISABILITIES,RESIDENTIAL HOMES EXTERNAL,4220,,21/07/2022,23196895,2513.44,27868,ASSISTED LIVING SOUTHWEST LTD
INSERTED DETAIL,,Ealing Council,http://opendatacommunities.org/id/london-borough-council/ealing,CHILDREN & ADULTS,1,DISABILITIES,DOMICILIARY CARE - BLOCK,4240,,22/07/2022,23197039,406,27956,THE SOCIAL CARE LIMITED
INSERTED DETAIL,,Ealing Council,http://opendatacommunities.org/id/london-borough-council/ealing,CHILDREN & ADULTS,1,DISABILITIES,RESIDENTIAL HOMES EXTERNAL,4220,,21/07/2022,23196805,302.22,25292,ALLFOR CARE
INSERTED DETAIL,,Ealing Council,http://opendatacommunities.org/id/london-borough-council/ealing,CHILDREN & ADULTS,1,DISABILITIES,RESIDENTIAL HOMES EXTERNAL,4220,,21/07/2022,23196805,568.92,25292,ALLFOR CARE
INSERTED DETAIL,,Ealing Council,http://opendatacommunities.org/id/london-borough-council/ealing,CHILDREN & ADULTS,1,DISABILITIES,NURSING HOMES EXTERNAL,4230,,21/07/2022,23196809,5600,25296,GCH (NORTH LONDON) LTD T/A DRAYTON VILLAGE CARE CENTRE
INSERTED DETAIL,,Ealing Council,http://opendatacommunities.org/id/london-borough-council/ealing,CHILDREN & ADULTS,1,DISABILITIES,NURSING HOMES EXTERNAL,4230,,21/07/2022,23196809,3736,25296,GCH (NORTH LONDON) LTD T/A DRAYTON VILLAGE CARE CENTRE
INSERTED DETAIL,,Ealing Council,http://opendatacommunities.org/id/london-borough-council/ealing,CHILDREN & ADULTS,1,DISABILITIES,RESIDENTIAL HOMES EXTERNAL,4220,,21/07/2022,23196934,320,26408,NEWTON CARE HOMES LTD
INSERTED DETAIL,,Ealing Council,http://opendatacommunities.org/id/london-borough-council/ealing,CHILDREN & ADULTS,1,DISABILITIES,SUPPORTED LIVING,4236,,21/07/2022,23196837,6781.84,26408,NEWTON CARE HOMES LTD
INSERTED DETAIL,,Ealing Council,http://opendatacommunities.org/id/london-borough-council/ealing,CHILDREN & ADULTS,1,DISABILITIES,RESIDENTIAL HOMES EXTERNAL,4220,,21/07/2022,23196804,1424,25216,OLAM QUALITY CARE LTD - T/A CAREMARK EALING
INSERTED DETAIL,,Ealing Council,http://opendatacommunities.org/id/london-borough-council/ealing,CHILDREN & ADULTS,1,DISABILITIES,SUPPORTED LIVING,4236,,21/07/2022,23196804,395.2,25216,OLAM QUALITY CARE LTD - T/A CAREMARK EALING
INSERTED DETAIL,,Ealing Council,http://opendatacommunities.org/id/london-borough-council/ealing,CHILDREN & ADULTS,1,DISABILITIES,DOMICILIARY CARE - BLOCK,4240,,27/07/2022,23197717,420,25216,OLAM QUALITY CARE LTD - T/A CAREMARK EALING
INSERTED DETAIL,,Ealing Council,http://opendatacommunities.org/id/london-borough-council/ealing,CHILDREN & ADULTS,1,DISABILITIES,DOMICILIARY CARE - BLOCK,4240,,18/07/2022,23195832,420,25216,OLAM QUALITY CARE LTD - T/A CAREMARK EALING
INSERTED DETAIL,,Ealing Council,http://opendatacommunities.org/id/london-borough-council/ealing,CHILDREN & ADULTS,1,DISABILITIES,RESIDENTIAL HOMES EXTERNAL,4220,,21/07/2022,23196805,322.8,25292,ALLFOR CARE
INSERTED DETAIL,,Ealing Council,http://opendatacommunities.org/id/london-borough-council/ealing,CHILDREN & ADULTS,1,DISABILITIES,RESIDENTIAL HOMES EXTERNAL,4220,,21/07/2022,23196805,890.2,25292,ALLFOR CARE
INSERTED DETAIL,,Ealing Council,http://opendatacommunities.org/id/london-borough-council/ealing,CHILDREN & ADULTS,1,DISABILITIES,RESIDENTIAL HOMES EXTERNAL,4220,,21/07/2022,23196741,9303.36,22027,ELYSIUM HEALTHCARE LTD T/A ELYSIUM CARE PARTNERSHIPS LTD
INSERTED DETAIL,,Ealing Council,http://opendatacommunities.org/id/london-borough-council/ealing,CHILDREN & ADULTS,1,DISABILITIES,DAY CARE CENTRES,4250,,21/07/2022,23196774,1567.04,22669,ASPENS CHARITIES LTD T/A AUTISM SUSSEX
INSERTED DETAIL,,Ealing Council,http://opendatacommunities.org/id/london-borough-council/ealing,CHILDREN & ADULTS,1,DISABILITIES,RESIDENTIAL HOMES EXTERNAL,4220,,01/07/2022,23197051,12323.36,24217,SEQUENCE CARE LIMITED
INSERTED DETAIL,,Ealing Council,http://opendatacommunities.org/id/london-borough-council/ealing,CHILDREN & ADULTS,1,DISABILITIES,DOMICILIARY CARE - BLOCK,4240,,18/07/2022,23196614,978.75,24264,ELITE SPECIALIST CARE LTD
INSERTED DETAIL,,Ealing Council,http://opendatacommunities.org/id/london-borough-council/ealing,CHILDREN & ADULTS,1,DISABILITIES,RESIDENTIAL HOMES EXTERNAL,4220,,21/07/2022,23196803,12600,25140,AMELIAS HOUSE LIMITED
INSERTED DETAIL,,Ealing Council,http://opendatacommunities.org/id/london-borough-council/ealing,CHILDREN & ADULTS,1,DISABILITIES,RESIDENTIAL HOMES EXTERNAL,4220,,21/07/2022,23196804,500.08,25216,OLAM QUALITY CARE LTD - T/A CAREMARK EALING
INSERTED DETAIL,,Ealing Council,http://opendatacommunities.org/id/london-borough-council/ealing,CHILDREN & ADULTS,1,DISABILITIES,RESIDENTIAL HOMES EXTERNAL,4220,,21/07/2022,23196723,6190,19568,CONNIFERS CARE
INSERTED DETAIL,,Ealing Council,http://opendatacommunities.org/id/london-borough-council/ealing,CHILDREN & ADULTS,1,DISABILITIES,SUPPORTED LIVING,4236,,21/07/2022,23196854,12528,19568,CONNIFERS CARE
INSERTED DETAIL,,Ealing Council,http://opendatacommunities.org/id/london-borough-council/ealing,CHILDREN & ADULTS,1,DISABILITIES,SUPPORTED LIVING,4236,,21/07/2022,23196888,3861.4,19568,CONNIFERS CARE
INSERTED DETAIL,,Ealing Council,http://opendatacommunities.org/id/london-borough-council/ealing,CHILDREN & ADULTS,1,DISABILITIES,RESIDENTIAL HOMES EXTERNAL,4220,,21/07/2022,23196741,9806.32,22027,ELYSIUM HEALTHCARE LTD T/A ELYSIUM CARE PARTNERSHIPS LTD
INSERTED DETAIL,,Ealing Council,http://opendatacommunities.org/id/london-borough-council/ealing,CHILDREN & ADULTS,1,DISABILITIES,RESIDENTIAL HOMES EXTERNAL,4220,,21/07/2022,23196741,10429.88,22027,ELYSIUM HEALTHCARE LTD T/A ELYSIUM CARE PARTNERSHIPS LTD
INSERTED DETAIL,,Ealing Council,http://opendatacommunities.org/id/london-borough-council/ealing,CHILDREN & ADULTS,1,DISABILITIES,RESIDENTIAL HOMES EXTERNAL,4220,,21/07/2022,23196741,12270.28,22027,ELYSIUM HEALTHCARE LTD T/A ELYSIUM CARE PARTNERSHIPS LTD
INSERTED DETAIL,,Ealing Council,http://opendatacommunities.org/id/london-borough-council/ealing,CHILDREN & ADULTS,1,DISABILITIES,RESIDENTIAL HOMES EXTERNAL,4220,,21/07/2022,23196649,3753,30201,COMBS COURT
INSERTED DETAIL,,Ealing Council,http://opendatacommunities.org/id/london-borough-council/ealing,CHILDREN & ADULTS,1,DISABILITIES,RESIDENTIAL HOMES EXTERNAL-INCOME,8780,,21/07/2022,23196649,-438.8,30201,COMBS COURT
INSERTED DETAIL,,Ealing Council,http://opendatacommunities.org/id/london-borough-council/ealing,CHILDREN & ADULTS,1,DISABILITIES,SOCIAL SERVICES DIRECT PAYMENTS,4231,,08/07/2022,23193563,3150,80173,REDACTED SENSITIVE SUPPLIER
INSERTED DETAIL,,Ealing Council,http://opendatacommunities.org/id/london-borough-council/ealing,CHILDREN & ADULTS,1,DISABILITIES,SOCIAL SERVICES DIRECT PAYMENTS,4231,,08/07/2022,23193539,1536.6,80674,REDACTED SENSITIVE SUPPLIER
INSERTED DETAIL,,Ealing Council,http://opendatacommunities.org/id/london-borough-council/ealing,CHILDREN & ADULTS,1,DISABILITIES,SOCIAL SERVICES DIRECT PAYMENTS,4231,,08/07/2022,23193529,368.24,80701,REDACTED SENSITIVE SUPPLIER
INSERTED DETAIL,,Ealing Council,http://opendatacommunities.org/id/london-borough-council/ealing,CHILDREN & ADULTS,1,DISABILITIES,SOCIAL SERVICES DIRECT PAYMENTS,4231,,08/07/2022,23193589,269.76,81018,REDACTED SENSITIVE SUPPLIER
INSERTED DETAIL,,Ealing Council,http://opendatacommunities.org/id/london-borough-council/ealing,CHILDREN & ADULTS,1,ADULT MENTAL HEALTH,RESIDENTIAL HOMES EXTERNAL,4220,,21/07/2022,23196982,1008,28340,ARTHUR MORRISON LTD
INSERTED DETAIL,,Ealing Council,http://opendatacommunities.org/id/london-borough-council/ealing,CHILDREN & ADULTS,1,ADULT MENTAL HEALTH,RESIDENTIAL HOMES EXTERNAL,4220,,21/07/2022,23196982,756,28340,ARTHUR MORRISON LTD
INSERTED DETAIL,,Ealing Council,http://opendatacommunities.org/id/london-borough-council/ealing,CHILDREN & ADULTS,1,ADULT MENTAL HEALTH,RESIDENTIAL HOMES EXTERNAL,4220,,21/07/2022,23196982,756,28340,ARTHUR MORRISON LTD
INSERTED DETAIL,,Ealing Council,http://opendatacommunities.org/id/london-borough-council/ealing,CHILDREN & ADULTS,1,ADULT MENTAL HEALTH,SUPPORTED LIVING,4236,,21/07/2022,23196982,2300,28340,ARTHUR MORRISON LTD
INSERTED DETAIL,,Ealing Council,http://opendatacommunities.org/id/london-borough-council/ealing,CHILDREN & ADULTS,1,ADULT MENTAL HEALTH,SUPPORTED LIVING,4236,,21/07/2022,23196982,4657.2,28340,ARTHUR MORRISON LTD
INSERTED DETAIL,,Ealing Council,http://opendatacommunities.org/id/london-borough-council/ealing,CHILDREN & ADULTS,1,ADULT MENTAL HEALTH,SUPPORTED LIVING,4236,,21/07/2022,23196982,2300,28340,ARTHUR MORRISON LTD
INSERTED DETAIL,,Ealing Council,http://opendatacommunities.org/id/london-borough-council/ealing,CHILDREN & ADULTS,1,ADULT MENTAL HEALTH,RESIDENTIAL HOMES EXTERNAL,4220,,21/07/2022,23196743,1032,22569,BCS MEDICAL (SHACKLETON) LTD
INSERTED DETAIL,,Ealing Council,http://opendatacommunities.org/id/london-borough-council/ealing,CHILDREN & ADULTS,1,ADULT MENTAL HEALTH,NURSING HOMES EXTERNAL,4230,,21/07/2022,23196743,2868,22569,BCS MEDICAL (SHACKLETON) LTD
INSERTED DETAIL,,Ealing Council,http://opendatacommunities.org/id/london-borough-council/ealing,CHILDREN & ADULTS,1,ADULT MENTAL HEALTH,DOMICILIARY CARE - BLOCK,4240,,22/07/2022,23197039,602.56,27956,THE SOCIAL CARE LIMITED
INSERTED DETAIL,,Ealing Council,http://opendatacommunities.org/id/london-borough-council/ealing,CHILDREN & ADULTS,1,ADULT MENTAL HEALTH,DOMICILIARY CARE - BLOCK,4240,,22/07/2022,23197039,401.8,27956,THE SOCIAL CARE LIMITED
INSERTED DETAIL,,Ealing Council,http://opendatacommunities.org/id/london-borough-council/ealing,CHILDREN & ADULTS,1,ADULT MENTAL HEALTH,DOMICILIARY CARE - BLOCK,4240,,22/07/2022,23197039,508,27956,THE SOCIAL CARE LIMITED
INSERTED DETAIL,,Ealing Council,http://opendatacommunities.org/id/london-borough-council/ealing,CHILDREN & ADULTS,1,ADULT MENTAL HEALTH,DOMICILIARY CARE - BLOCK,4240,,22/07/2022,23197039,402.08,27956,THE SOCIAL CARE LIMITED
INSERTED DETAIL,,Ealing Council,http://opendatacommunities.org/id/london-borough-council/ealing,CHILDREN & ADULTS,1,ADULT MENTAL HEALTH,RESIDENTIAL HOMES EXTERNAL,4220,,21/07/2022,23196688,3880,19792,ST MARTINS OF TOURS HOUSING ASSOC LTD
INSERTED DETAIL,,Ealing Council,http://opendatacommunities.org/id/london-borough-council/ealing,CHILDREN & ADULTS,1,ADULT MENTAL HEALTH,RESIDENTIAL HOMES EXTERNAL,4220,,21/07/2022,23196688,3880,19792,ST MARTINS OF TOURS HOUSING ASSOC LTD
INSERTED DETAIL,,Ealing Council,http://opendatacommunities.org/id/london-borough-council/ealing,CHILDREN & ADULTS,1,ADULT MENTAL HEALTH,RESIDENTIAL HOMES EXTERNAL,4220,,21/07/2022,23196688,3880,19792,ST MARTINS OF TOURS HOUSING ASSOC LTD
INSERTED DETAIL,,Ealing Council,http://opendatacommunities.org/id/london-borough-council/ealing,CHILDREN & ADULTS,1,ADULT MENTAL HEALTH,RESIDENTIAL HOMES EXTERNAL,4220,,21/07/2022,23196688,3880,19792,ST MARTINS OF TOURS HOUSING ASSOC LTD
INSERTED DETAIL,,Ealing Council,http://opendatacommunities.org/id/london-borough-council/ealing,CHILDREN & ADULTS,1,ADULT MENTAL HEALTH,RESIDENTIAL HOMES EXTERNAL,4220,,21/07/2022,23196743,2436,22569,BCS MEDICAL (SHACKLETON) LTD
INSERTED DETAIL,,Ealing Council,http://opendatacommunities.org/id/london-borough-council/ealing,CHILDREN & ADULTS,1,ADULT MENTAL HEALTH,RESIDENTIAL HOMES EXTERNAL,4220,,21/07/2022,23196743,2802.08,22569,BCS MEDICAL (SHACKLETON) LTD
INSERTED DETAIL,,Ealing Council,http://opendatacommunities.org/id/london-borough-council/ealing,CHILDREN & ADULTS,1,ADULT MENTAL HEALTH,SUPPORTED LIVING,4236,,21/07/2022,23196994,3064,29340,KEMFA SERVICES LIMITED
INSERTED DETAIL,,Ealing Council,http://opendatacommunities.org/id/london-borough-council/ealing,CHILDREN & ADULTS,1,ADULT MENTAL HEALTH,SUPPORTED LIVING,4236,,21/07/2022,23196941,2697.76,30088,THE REGARD PARTNERSHIP LTD (ACHIEVE TOGETHER)
INSERTED DETAIL,,Ealing Council,http://opendatacommunities.org/id/london-borough-council/ealing,CHILDREN & ADULTS,1,ADULT MENTAL HEALTH,RESIDENTIAL HOMES EXTERNAL,4220,,21/07/2022,23196941,752.56,30088,THE REGARD PARTNERSHIP LTD (ACHIEVE TOGETHER)
INSERTED DETAIL,,Ealing Council,http://opendatacommunities.org/id/london-borough-council/ealing,CHILDREN & ADULTS,1,ADULT MENTAL HEALTH,RESIDENTIAL HOMES EXTERNAL,4220,,21/07/2022,23196682,2241.39,17753,PURECARE ROCK HOUSE
INSERTED DETAIL,,Ealing Council,http://opendatacommunities.org/id/london-borough-council/ealing,CHILDREN & ADULTS,1,ADULT MENTAL HEALTH,RESIDENTIAL HOMES EXTERNAL,4220,,21/07/2022,23196637,2824,18161,BONDCARE (LONDON) ASHWOOD MAIN
INSERTED DETAIL,,Ealing Council,http://opendatacommunities.org/id/london-borough-council/ealing,CHILDREN & ADULTS,1,ADULT MENTAL HEALTH,RESIDENTIAL HOMES EXTERNAL,4220,,21/07/2022,23196688,3880,19792,ST MARTINS OF TOURS HOUSING ASSOC LTD
INSERTED DETAIL,,Ealing Council,http://opendatacommunities.org/id/london-borough-council/ealing,CHILDREN & ADULTS,1,ADULT MENTAL HEALTH,SOCIAL SERVICES DIRECT PAYMENTS,4231,,08/07/2022,23193591,813.04,80764,CARE IN FINANCE LTD
INSERTED DETAIL,,Ealing Council,http://opendatacommunities.org/id/london-borough-council/ealing,CHILDREN & ADULTS,1,ADULT MENTAL HEALTH,SOCIAL SERVICES DIRECT PAYMENTS,4231,,08/07/2022,23193591,651,80764,CARE IN FINANCE LTD
INSERTED DETAIL,,Ealing Council,http://opendatacommunities.org/id/london-borough-council/ealing,CHILDREN & ADULTS,1,ADULT MENTAL HEALTH,SOCIAL SERVICES DIRECT PAYMENTS,4231,,08/07/2022,23193591,391.52,80764,CARE IN FINANCE LTD
INSERTED DETAIL,,Ealing Council,http://opendatacommunities.org/id/london-borough-council/ealing,CHILDREN & ADULTS,1,ADULT MENTAL HEALTH,SOCIAL SERVICES DIRECT PAYMENTS,4231,,08/07/2022,23193591,907.88,80764,CARE IN FINANCE LTD
INSERTED DETAIL,,Ealing Council,http://opendatacommunities.org/id/london-borough-council/ealing,CHILDREN & ADULTS,1,ADULT MENTAL HEALTH,SOCIAL SERVICES DIRECT PAYMENTS,4231,,08/07/2022,23193591,592.28,80764,CARE IN FINANCE LTD
INSERTED DETAIL,,Ealing Council,http://opendatacommunities.org/id/london-borough-council/ealing,CHILDREN & ADULTS,1,ADULT MENTAL HEALTH,RESIDENTIAL HOMES EXTERNAL,4220,,21/07/2022,23196994,1756,29340,KEMFA SERVICES LIMITED
INSERTED DETAIL,,Ealing Council,http://opendatacommunities.org/id/london-borough-council/ealing,CHILDREN & ADULTS,1,ADULT MENTAL HEALTH,SOCIAL SERVICES DIRECT PAYMENTS,4231,,08/07/2022,23193571,1092,81024,REDACTED SENSITIVE SUPPLIER
INSERTED DETAIL,,Ealing Council,http://opendatacommunities.org/id/london-borough-council/ealing,CHILDREN & ADULTS,1,ADULT MENTAL HEALTH,SOCIAL SERVICES DIRECT PAYMENTS,4231,,08/07/2022,23193571,430.48,81024,REDACTED SENSITIVE SUPPLIER
INSERTED DETAIL,,Ealing Council,http://opendatacommunities.org/id/london-borough-council/ealing,CHILDREN & ADULTS,1,ADULT MENTAL HEALTH,SOCIAL SERVICES DIRECT PAYMENTS,4231,,08/07/2022,23193571,624,81024,REDACTED SENSITIVE SUPPLIER
INSERTED DETAIL,,Ealing Council,http://opendatacommunities.org/id/london-borough-council/ealing,CHILDREN & ADULTS,1,ADULT MENTAL HEALTH,RESIDENTIAL HOMES EXTERNAL,4220,,21/07/2022,23196700,8000,30096,ASTORIA HELATHCARE LTD T/A VICARAGE FARM CARE HOME
INSERTED DETAIL,,Ealing Council,http://opendatacommunities.org/id/london-borough-council/ealing,PLACE,6,"ARTS, HERITAGE AND LIBRARIES",BOOKS,3330,,20/07/2022,41022709,269.63,12624,ASKEWS LIBRARY SERVICES LIMITED
INSERTED DETAIL,,Ealing Council,http://opendatacommunities.org/id/london-borough-council/ealing,PLACE,6,"ARTS, HERITAGE AND LIBRARIES",BOOKS,3330,,20/07/2022,41022711,352.45,12624,ASKEWS LIBRARY SERVICES LIMITED
INSERTED DETAIL,,Ealing Council,http://opendatacommunities.org/id/london-borough-council/ealing,PLACE,6,"ARTS, HERITAGE AND LIBRARIES",BOOKS,3330,,13/04/2022,41022453,750.82,12624,ASKEWS LIBRARY SERVICES LIMITED
INSERTED DETAIL,,Ealing Council,http://opendatacommunities.org/id/london-borough-council/ealing,PLACE,6,"ARTS, HERITAGE AND LIBRARIES",PAYMENTS TO CONTRACTORS,4000,,05/07/2022,41020980,420,17930,THE PITSHANGER BOOKSHOP
INSERTED DETAIL,,Ealing Council,http://opendatacommunities.org/id/london-borough-council/ealing,PLACE,6,"ARTS, HERITAGE AND LIBRARIES",PAYMENTS TO CONTRACTORS,4000,,01/07/2022,41020209,276.46,16228,BAKER ROSS LTD
INSERTED DETAIL,,Ealing Council,http://opendatacommunities.org/id/london-borough-council/ealing,PLACE,6,"ARTS, HERITAGE AND LIBRARIES",BOOKS,3330,,21/02/2022,41019814,6432.8,16496,OXFORD UNIVERSITY PRESS
INSERTED DETAIL,,Ealing Council,http://opendatacommunities.org/id/london-borough-council/ealing,PLACE,6,"ARTS, HERITAGE AND LIBRARIES",BOOKS,3330,,30/06/2022,41020813,1200.57,26568,CITYSPRINT (UK) LTD
INSERTED DETAIL,,Ealing Council,http://opendatacommunities.org/id/london-borough-council/ealing,PLACE,6,"ARTS, HERITAGE AND LIBRARIES",PAYMENTS TO CONTRACTORS,4000,,19/07/2022,41022891,2250,23680,REDACTED SENSITIVE SUPPLIER
INSERTED DETAIL,,Ealing Council,http://opendatacommunities.org/id/london-borough-council/ealing,PLACE,6,"ARTS, HERITAGE AND LIBRARIES",BOOKS,3330,,30/03/2022,41022423,499.54,12624,ASKEWS LIBRARY SERVICES LIMITED
INSERTED DETAIL,,Ealing Council,http://opendatacommunities.org/id/london-borough-council/ealing,PLACE,6,"ARTS, HERITAGE AND LIBRARIES",BOOKS,3330,,13/04/2022,41022430,316.72,12624,ASKEWS LIBRARY SERVICES LIMITED
INSERTED DETAIL,,Ealing Council,http://opendatacommunities.org/id/london-borough-council/ealing,PLACE,6,"ARTS, HERITAGE AND LIBRARIES",BOOKS,3330,,30/03/2022,41022439,600.99,12624,ASKEWS LIBRARY SERVICES LIMITED
INSERTED DETAIL,,Ealing Council,http://opendatacommunities.org/id/london-borough-council/ealing,PLACE,6,"ARTS, HERITAGE AND LIBRARIES",BOOKS,3330,,06/04/2022,41022443,322.02,12624,ASKEWS LIBRARY SERVICES LIMITED
INSERTED DETAIL,,Ealing Council,http://opendatacommunities.org/id/london-borough-council/ealing,PLACE,6,"ARTS, HERITAGE AND LIBRARIES",BOOKS,3330,,30/03/2022,41022450,319.25,12624,ASKEWS LIBRARY SERVICES LIMITED
INSERTED DETAIL,,Ealing Council,http://opendatacommunities.org/id/london-borough-council/ealing,PLACE,6,"ARTS, HERITAGE AND LIBRARIES",BOOKS,3330,,13/04/2022,41022452,358.74,12624,ASKEWS LIBRARY SERVICES LIMITED
INSERTED DETAIL,,Ealing Council,http://opendatacommunities.org/id/london-borough-council/ealing,PLACE,6,"ARTS, HERITAGE AND LIBRARIES",BOOKS,3330,,11/07/2022,41021218,569.67,12624,ASKEWS LIBRARY SERVICES LIMITED
INSERTED DETAIL,,Ealing Council,http://opendatacommunities.org/id/london-borough-council/ealing,PLACE,6,"ARTS, HERITAGE AND LIBRARIES",BOOKS,3330,,11/07/2022,41021224,257.38,12624,ASKEWS LIBRARY SERVICES LIMITED
INSERTED DETAIL,,Ealing Council,http://opendatacommunities.org/id/london-borough-council/ealing,PLACE,6,"ARTS, HERITAGE AND LIBRARIES",BOOKS,3330,,11/07/2022,41021235,253.8,12624,ASKEWS LIBRARY SERVICES LIMITED
INSERTED DETAIL,,Ealing Council,http://opendatacommunities.org/id/london-borough-council/ealing,PLACE,6,"ARTS, HERITAGE AND LIBRARIES",BOOKS,3330,,13/04/2022,41022415,351.13,12624,ASKEWS LIBRARY SERVICES LIMITED
INSERTED DETAIL,,Ealing Council,http://opendatacommunities.org/id/london-borough-council/ealing,PLACE,6,"ARTS, HERITAGE AND LIBRARIES",BOOKS,3330,,06/04/2022,41022416,325.23,12624,ASKEWS LIBRARY SERVICES LIMITED
INSERTED DETAIL,,Ealing Council,http://opendatacommunities.org/id/london-borough-council/ealing,PLACE,6,"ARTS, HERITAGE AND LIBRARIES",BOOKS,3330,,30/03/2022,41022418,684.73,12624,ASKEWS LIBRARY SERVICES LIMITED
INSERTED DETAIL,,Ealing Council,http://opendatacommunities.org/id/london-borough-council/ealing,PLACE,6,"ARTS, HERITAGE AND LIBRARIES",BOOKS,3330,,28/06/2022,41019665,284.07,12624,ASKEWS LIBRARY SERVICES LIMITED
INSERTED DETAIL,,Ealing Council,http://opendatacommunities.org/id/london-borough-council/ealing,PLACE,6,"ARTS, HERITAGE AND LIBRARIES",BOOKS,3330,,28/06/2022,41019666,449.25,12624,ASKEWS LIBRARY SERVICES LIMITED
INSERTED DETAIL,,Ealing Council,http://opendatacommunities.org/id/london-borough-council/ealing,PLACE,6,"ARTS, HERITAGE AND LIBRARIES",BOOKS,3330,,28/06/2022,41019667,309.62,12624,ASKEWS LIBRARY SERVICES LIMITED
INSERTED DETAIL,,Ealing Council,http://opendatacommunities.org/id/london-borough-council/ealing,PLACE,6,"ARTS, HERITAGE AND LIBRARIES",BOOKS,3330,,28/06/2022,41019669,319.72,12624,ASKEWS LIBRARY SERVICES LIMITED
INSERTED DETAIL,,Ealing Council,http://opendatacommunities.org/id/london-borough-council/ealing,PLACE,6,"ARTS, HERITAGE AND LIBRARIES",BOOKS,3330,,04/07/2022,41020645,262.3,12624,ASKEWS LIBRARY SERVICES LIMITED
INSERTED DETAIL,,Ealing Council,http://opendatacommunities.org/id/london-borough-council/ealing,PLACE,6,"ARTS, HERITAGE AND LIBRARIES",BOOKS,3330,,04/07/2022,41020646,596.38,12624,ASKEWS LIBRARY SERVICES LIMITED
INSERTED DETAIL,,Ealing Council,http://opendatacommunities.org/id/london-borough-council/ealing,PLACE,6,"ARTS, HERITAGE AND LIBRARIES",BOOKS,3330,,20/07/2022,41022712,547.42,12624,ASKEWS LIBRARY SERVICES LIMITED
INSERTED DETAIL,,Ealing Council,http://opendatacommunities.org/id/london-borough-council/ealing,PLACE,6,"ARTS, HERITAGE AND LIBRARIES",BOOKS,3330,,20/07/2022,41022716,527.34,12624,ASKEWS LIBRARY SERVICES LIMITED
INSERTED DETAIL,,Ealing Council,http://opendatacommunities.org/id/london-borough-council/ealing,PLACE,6,"ARTS, HERITAGE AND LIBRARIES",BOOKS,3330,,27/06/2022,41019544,849.4,12624,ASKEWS LIBRARY SERVICES LIMITED
INSERTED DETAIL,,Ealing Council,http://opendatacommunities.org/id/london-borough-council/ealing,PLACE,6,"ARTS, HERITAGE AND LIBRARIES",BOOKS,3330,,28/06/2022,41019658,324.35,12624,ASKEWS LIBRARY SERVICES LIMITED
INSERTED DETAIL,,Ealing Council,http://opendatacommunities.org/id/london-borough-council/ealing,PLACE,6,"ARTS, HERITAGE AND LIBRARIES",BOOKS,3330,,28/06/2022,41019659,527.27,12624,ASKEWS LIBRARY SERVICES LIMITED
INSERTED DETAIL,,Ealing Council,http://opendatacommunities.org/id/london-borough-council/ealing,PLACE,6,"ARTS, HERITAGE AND LIBRARIES",BOOKS,3330,,28/06/2022,41019660,639.34,12624,ASKEWS LIBRARY SERVICES LIMITED
INSERTED DETAIL,,Ealing Council,http://opendatacommunities.org/id/london-borough-council/ealing,CHILDREN & ADULTS,1,EALING SERVICE FOR CHILDREN WITH ADDITIONAL NEEDS,PRE 16 SEN PROVISION,4271,,30/06/2022,41020849,1296,24134,FRESH START IN EDUCATION LIMITED
INSERTED DETAIL,,Ealing Council,http://opendatacommunities.org/id/london-borough-council/ealing,CAPITAL SCHEMES,K,HRA,CAPITAL - PROPERTY DESIGN CONSULTANCY,7520,,22/07/2022,41022226,338.7,9900017,REDACTED SENSITIVE SUPPLIER
INSERTED DETAIL,,Ealing Council,http://opendatacommunities.org/id/london-borough-council/ealing,CHILDREN & ADULTS,1,DISABILITIES,RESIDENTIAL HOMES EXTERNAL,4220,,21/07/2022,23196814,9288.56,30088,THE REGARD PARTNERSHIP LTD (ACHIEVE TOGETHER)
INSERTED DETAIL,,Ealing Council,http://opendatacommunities.org/id/london-borough-council/ealing,CHILDREN & ADULTS,1,DISABILITIES,RESIDENTIAL HOMES EXTERNAL,4220,,21/07/2022,23196814,6372.56,30088,THE REGARD PARTNERSHIP LTD (ACHIEVE TOGETHER)
INSERTED DETAIL,,Ealing Council,http://opendatacommunities.org/id/london-borough-council/ealing,CHILDREN & ADULTS,1,DISABILITIES,RESIDENTIAL HOMES EXTERNAL,4220,,21/07/2022,23196959,833.04,30088,THE REGARD PARTNERSHIP LTD (ACHIEVE TOGETHER)
INSERTED DETAIL,,Ealing Council,http://opendatacommunities.org/id/london-borough-council/ealing,CHILDREN & ADULTS,1,DISABILITIES,RESIDENTIAL HOMES EXTERNAL,4220,,21/07/2022,23196749,6068.76,30117,STANMORE HOUSE
INSERTED DETAIL,,Ealing Council,http://opendatacommunities.org/id/london-borough-council/ealing,CHILDREN & ADULTS,1,DISABILITIES,RESIDENTIAL HOMES EXTERNAL,4220,,21/07/2022,23196749,3725.6,30117,STANMORE HOUSE
INSERTED DETAIL,,Ealing Council,http://opendatacommunities.org/id/london-borough-council/ealing,CHILDREN & ADULTS,1,DISABILITIES,SUPPORTED LIVING,4236,,21/07/2022,23196806,4272,30117,STANMORE HOUSE
INSERTED DETAIL,,Ealing Council,http://opendatacommunities.org/id/london-borough-council/ealing,CHILDREN & ADULTS,1,DISABILITIES,SUPPORTED LIVING,4236,,21/07/2022,23196959,3467.84,30088,THE REGARD PARTNERSHIP LTD (ACHIEVE TOGETHER)
INSERTED DETAIL,,Ealing Council,http://opendatacommunities.org/id/london-borough-council/ealing,CHILDREN & ADULTS,1,DISABILITIES,SUPPORTED LIVING,4236,,21/07/2022,23196635,4053.24,30088,THE REGARD PARTNERSHIP LTD (ACHIEVE TOGETHER)
INSERTED DETAIL,,Ealing Council,http://opendatacommunities.org/id/london-borough-council/ealing,CHILDREN & ADULTS,1,DISABILITIES,RESIDENTIAL HOMES EXTERNAL,4220,,21/07/2022,23196728,7438.72,30088,THE REGARD PARTNERSHIP LTD (ACHIEVE TOGETHER)
INSERTED DETAIL,,Ealing Council,http://opendatacommunities.org/id/london-borough-council/ealing,CHILDREN & ADULTS,1,DISABILITIES,RESIDENTIAL HOMES EXTERNAL,4220,,21/07/2022,23197015,2436,30088,THE REGARD PARTNERSHIP LTD (ACHIEVE TOGETHER)
INSERTED DETAIL,,Ealing Council,http://opendatacommunities.org/id/london-borough-council/ealing,CHILDREN & ADULTS,1,DISABILITIES,RESIDENTIAL HOMES EXTERNAL,4220,,21/07/2022,23196635,3823.4,30088,THE REGARD PARTNERSHIP LTD (ACHIEVE TOGETHER)
INSERTED DETAIL,,Ealing Council,http://opendatacommunities.org/id/london-borough-council/ealing,CHILDREN & ADULTS,1,DISABILITIES,RESIDENTIAL HOMES EXTERNAL,4220,,21/07/2022,23196635,5501.52,30088,THE REGARD PARTNERSHIP LTD (ACHIEVE TOGETHER)
INSERTED DETAIL,,Ealing Council,http://opendatacommunities.org/id/london-borough-council/ealing,CHILDREN & ADULTS,1,DISABILITIES,DIRECT PAYMENTS-INCOME,8787,,08/07/2022,23193591,-270.64,80764,CARE IN FINANCE LTD
INSERTED DETAIL,,Ealing Council,http://opendatacommunities.org/id/london-borough-council/ealing,CHILDREN & ADULTS,1,DISABILITIES,DIRECT PAYMENTS-INCOME,8787,,08/07/2022,23193591,-304.72,80764,CARE IN FINANCE LTD
INSERTED DETAIL,,Ealing Council,http://opendatacommunities.org/id/london-borough-council/ealing,CHILDREN & ADULTS,1,DISABILITIES,DIRECT PAYMENTS-INCOME,8787,,08/07/2022,23193591,-717.3,80764,CARE IN FINANCE LTD
INSERTED DETAIL,,Ealing Council,http://opendatacommunities.org/id/london-borough-council/ealing,CHILDREN & ADULTS,1,DISABILITIES,DIRECT PAYMENTS-INCOME,8787,,08/07/2022,23193591,881.3,80764,CARE IN FINANCE LTD
INSERTED DETAIL,,Ealing Council,http://opendatacommunities.org/id/london-borough-council/ealing,CHILDREN & ADULTS,1,DISABILITIES,DIRECT PAYMENTS-INCOME,8787,,08/07/2022,23193591,-435.24,80764,CARE IN FINANCE LTD
INSERTED DETAIL,,Ealing Council,http://opendatacommunities.org/id/london-borough-council/ealing,CHILDREN & ADULTS,1,DISABILITIES,DIRECT PAYMENTS-INCOME,8787,,08/07/2022,23193591,-554.64,80764,CARE IN FINANCE LTD
INSERTED DETAIL,,Ealing Council,http://opendatacommunities.org/id/london-borough-council/ealing,CHILDREN & ADULTS,1,DISABILITIES,SOCIAL SERVICES DIRECT PAYMENTS,4231,,22/07/2022,23197043,2557.76,80764,CARE IN FINANCE LTD
INSERTED DETAIL,,Ealing Council,http://opendatacommunities.org/id/london-borough-council/ealing,CHILDREN & ADULTS,1,DISABILITIES,SOCIAL SERVICES DIRECT PAYMENTS,4231,,22/07/2022,23197043,-2241.6,80764,CARE IN FINANCE LTD
INSERTED DETAIL,,Ealing Council,http://opendatacommunities.org/id/london-borough-council/ealing,CHILDREN & ADULTS,1,DISABILITIES,SOCIAL SERVICES DIRECT PAYMENTS,4231,,22/07/2022,23197043,2387.35,80764,CARE IN FINANCE LTD
INSERTED DETAIL,,Ealing Council,http://opendatacommunities.org/id/london-borough-council/ealing,CHILDREN & ADULTS,1,DISABILITIES,SOCIAL SERVICES DIRECT PAYMENTS,4231,,22/07/2022,23197043,-8093.75,80764,CARE IN FINANCE LTD
INSERTED DETAIL,,Ealing Council,http://opendatacommunities.org/id/london-borough-council/ealing,CHILDREN & ADULTS,1,DISABILITIES,SOCIAL SERVICES DIRECT PAYMENTS,4231,,22/07/2022,23197043,8773.65,80764,CARE IN FINANCE LTD
INSERTED DETAIL,,Ealing Council,http://opendatacommunities.org/id/london-borough-council/ealing,CHILDREN & ADULTS,1,DISABILITIES,SOCIAL SERVICES DIRECT PAYMENTS,4231,,25/07/2022,23197068,-2466.41,80764,CARE IN FINANCE LTD
INSERTED DETAIL,,Ealing Council,http://opendatacommunities.org/id/london-borough-council/ealing,CHILDREN & ADULTS,1,DISABILITIES,SOCIAL SERVICES DIRECT PAYMENTS,4231,,08/07/2022,23193591,542,80764,CARE IN FINANCE LTD
INSERTED DETAIL,,Ealing Council,http://opendatacommunities.org/id/london-borough-council/ealing,CHILDREN & ADULTS,1,DISABILITIES,SOCIAL SERVICES DIRECT PAYMENTS,4231,,08/07/2022,23193591,1496.68,80764,CARE IN FINANCE LTD
INSERTED DETAIL,,Ealing Council,http://opendatacommunities.org/id/london-borough-council/ealing,CHILDREN & ADULTS,1,DISABILITIES,SOCIAL SERVICES DIRECT PAYMENTS,4231,,08/07/2022,23193603,2466.41,80764,CARE IN FINANCE LTD
INSERTED DETAIL,,Ealing Council,http://opendatacommunities.org/id/london-borough-council/ealing,CHILDREN & ADULTS,1,DISABILITIES,SOCIAL SERVICES DIRECT PAYMENTS,4231,,08/07/2022,23193603,286,80764,CARE IN FINANCE LTD
INSERTED DETAIL,,Ealing Council,http://opendatacommunities.org/id/london-borough-council/ealing,CHILDREN & ADULTS,1,DISABILITIES,SOCIAL SERVICES DIRECT PAYMENTS,4231,,22/07/2022,23197043,-705.6,80764,CARE IN FINANCE LTD
INSERTED DETAIL,,Ealing Council,http://opendatacommunities.org/id/london-borough-council/ealing,CHILDREN & ADULTS,1,DISABILITIES,SOCIAL SERVICES DIRECT PAYMENTS,4231,,22/07/2022,23197043,736.32,80764,CARE IN FINANCE LTD
INSERTED DETAIL,,Ealing Council,http://opendatacommunities.org/id/london-borough-council/ealing,CHILDREN & ADULTS,1,DISABILITIES,SOCIAL SERVICES DIRECT PAYMENTS,4231,,08/07/2022,23193591,1505.6,80764,CARE IN FINANCE LTD
INSERTED DETAIL,,Ealing Council,http://opendatacommunities.org/id/london-borough-council/ealing,CHILDREN & ADULTS,1,DISABILITIES,SOCIAL SERVICES DIRECT PAYMENTS,4231,,08/07/2022,23193591,1820,80764,CARE IN FINANCE LTD
INSERTED DETAIL,,Ealing Council,http://opendatacommunities.org/id/london-borough-council/ealing,CHILDREN & ADULTS,1,DISABILITIES,SOCIAL SERVICES DIRECT PAYMENTS,4231,,08/07/2022,23193591,867.2,80764,CARE IN FINANCE LTD
INSERTED DETAIL,,Ealing Council,http://opendatacommunities.org/id/london-borough-council/ealing,CHILDREN & ADULTS,1,DISABILITIES,SOCIAL SERVICES DIRECT PAYMENTS,4231,,08/07/2022,23193591,1438.56,80764,CARE IN FINANCE LTD
INSERTED DETAIL,,Ealing Council,http://opendatacommunities.org/id/london-borough-council/ealing,CHILDREN & ADULTS,1,DISABILITIES,SOCIAL SERVICES DIRECT PAYMENTS,4231,,08/07/2022,23193591,359.52,80764,CARE IN FINANCE LTD
INSERTED DETAIL,,Ealing Council,http://opendatacommunities.org/id/london-borough-council/ealing,CAPITAL SCHEMES,K,HRA,CAPITAL - CONTRACT PAYMENTS,7200,,29/04/2022,41020622,50788.35,23805,LIFT & ENGINEERING SERVICES LTD
INSERTED DETAIL,,Ealing Council,http://opendatacommunities.org/id/london-borough-council/ealing,CAPITAL SCHEMES,K,HRA,CAPITAL - CONTRACT PAYMENTS,7200,,29/04/2022,41020624,323645.3,23805,LIFT & ENGINEERING SERVICES LTD
INSERTED DETAIL,,Ealing Council,http://opendatacommunities.org/id/london-borough-council/ealing,CAPITAL SCHEMES,K,HRA,CAPITAL - CONTRACT PAYMENTS,7200,,29/04/2022,41020625,50788.35,23805,LIFT & ENGINEERING SERVICES LTD
INSERTED DETAIL,,Ealing Council,http://opendatacommunities.org/id/london-borough-council/ealing,CAPITAL SCHEMES,K,HRA,CAPITAL - CONTRACT PAYMENTS,7200,,29/04/2022,41020626,327320.13,23805,LIFT & ENGINEERING SERVICES LTD
INSERTED DETAIL,,Ealing Council,http://opendatacommunities.org/id/london-borough-council/ealing,CAPITAL SCHEMES,K,HRA,CAPITAL - CONTRACT PAYMENTS,7200,,29/06/2022,41020066,21820,28659,CITY ELECTRICAL FACTORS LTD
INSERTED DETAIL,,Ealing Council,http://opendatacommunities.org/id/london-borough-council/ealing,CAPITAL SCHEMES,K,HRA,CAPITAL - CONTRACT PAYMENTS,7200,,04/07/2022,41020595,1331.18,15684,WG WIGGINTON LIMITED
INSERTED DETAIL,,Ealing Council,http://opendatacommunities.org/id/london-borough-council/ealing,CAPITAL SCHEMES,K,HRA,CAPITAL - CONTRACT PAYMENTS,7200,,04/07/2022,41020594,1331.19,15684,WG WIGGINTON LIMITED
INSERTED DETAIL,,Ealing Council,http://opendatacommunities.org/id/london-borough-council/ealing,CAPITAL SCHEMES,K,HRA,CAPITAL - CONTRACT PAYMENTS,7200,,05/07/2022,41020670,88389,15684,WG WIGGINTON LIMITED
INSERTED DETAIL,,Ealing Council,http://opendatacommunities.org/id/london-borough-council/ealing,CAPITAL SCHEMES,K,COMMUNITY DEVELOPMENT,CAPITAL - CIS TAX DEDUCTIONS,7250,,07/07/2022,41022282,1064,29203,GREEN CONSTRUCT LIMITED
INSERTED DETAIL,,Ealing Council,http://opendatacommunities.org/id/london-borough-council/ealing,CAPITAL SCHEMES,K,COMMUNITY DEVELOPMENT,CAPITAL - CIS TAX DEDUCTIONS,7250,,07/07/2022,41022282,26583.24,29203,GREEN CONSTRUCT LIMITED
INSERTED DETAIL,,Ealing Council,http://opendatacommunities.org/id/london-borough-council/ealing,CAPITAL SCHEMES,K,COMMUNITY DEVELOPMENT,CAPITAL - CIS TAX DEDUCTIONS,7250,,07/07/2022,41022283,28511.04,29203,GREEN CONSTRUCT LIMITED
INSERTED DETAIL,,Ealing Council,http://opendatacommunities.org/id/london-borough-council/ealing,CAPITAL SCHEMES,K,COMMUNITY DEVELOPMENT,CAPITAL - CIS TAX DEDUCTIONS,7250,,07/07/2022,41022283,1194,29203,GREEN CONSTRUCT LIMITED
INSERTED DETAIL,,Ealing Council,http://opendatacommunities.org/id/london-borough-council/ealing,CAPITAL SCHEMES,K,COMMUNITY DEVELOPMENT,CAPITAL - CIS TAX DEDUCTIONS,7250,,07/07/2022,41022284,33624.27,29203,GREEN CONSTRUCT LIMITED
INSERTED DETAIL,,Ealing Council,http://opendatacommunities.org/id/london-borough-council/ealing,CAPITAL SCHEMES,K,COMMUNITY DEVELOPMENT,CAPITAL - CIS TAX DEDUCTIONS,7250,,07/07/2022,41022284,1216,29203,GREEN CONSTRUCT LIMITED
INSERTED DETAIL,,Ealing Council,http://opendatacommunities.org/id/london-borough-council/ealing,CAPITAL SCHEMES,K,SCHOOLS SERVICE,CAPITAL - CIS TAX DEDUCTIONS,7250,,05/07/2022,41021988,3853.2,29302,CMS ACCOMMODATING PEOPLE LTD
INSERTED DETAIL,,Ealing Council,http://opendatacommunities.org/id/london-borough-council/ealing,COUNCIL WIDE OTHER,9,BALANCE SHEET,CTRL OR B/S REFUNDS,6056,,08/07/2022,41021409,23915.06,9900014,NEWLAW CLIENT ACCOUNT
INSERTED DETAIL,,Ealing Council,http://opendatacommunities.org/id/london-borough-council/ealing,CHIEF EXECUTIVE DIRECTORATE,5,STRATEGY & ENGAGEMENT,COMP SOFTWARE,3210,,21/07/2022,41022080,894.88,23210,PURE PROMOTER LTD (TRADING AS PURE360)
INSERTED DETAIL,,Ealing Council,http://opendatacommunities.org/id/london-borough-council/ealing,CHIEF EXECUTIVE DIRECTORATE,5,ICT,COMP OUTSOURCED SERVICES,3220,,22/11/2021,41021985,5661,9900015,ZOHO COPORATION B.V
INSERTED DETAIL,,Ealing Council,http://opendatacommunities.org/id/london-borough-council/ealing,CHIEF EXECUTIVE DIRECTORATE,5,ICT,COMP  HARDWARE - PURCHASE,3201,,04/07/2022,41020640,6708,17899,CDW Limited
INSERTED DETAIL,,Ealing Council,http://opendatacommunities.org/id/london-borough-council/ealing,CHIEF EXECUTIVE DIRECTORATE,5,COMMERCIAL AND PROCUREMENT,DIRECT TRANSPORT COSTS,2000,,05/07/2022,41021254,6134.96,26239,AGIITO LIMITED
INSERTED DETAIL,,Ealing Council,http://opendatacommunities.org/id/london-borough-council/ealing,PLACE,6,STREET SERVICES,PAYMENTS TO CONTRACTORS,4000,,30/06/2022,41019808,3073.4,19441,SDK (ENVIROMENTAL) LTD
INSERTED DETAIL,,Ealing Council,http://opendatacommunities.org/id/london-borough-council/ealing,CAPITAL SCHEMES,K,PLACE DELIVERY,CAPITAL - INFRASTRUCTURE ASSETS,7140,,06/07/2022,41020986,19793.52,14795,ENERVEO LTD
INSERTED DETAIL,,Ealing Council,http://opendatacommunities.org/id/london-borough-council/ealing,CAPITAL SCHEMES,K,PLACE DELIVERY,CAPITAL - INFRASTRUCTURE ASSETS,7140,,14/07/2022,41022508,2045,23429,TRACSIS TRAFFIC DATA LIMITED
INSERTED DETAIL,,Ealing Council,http://opendatacommunities.org/id/london-borough-council/ealing,PLACE,6,CAPITAL DELIVERY,PAYMENTS TO CONTRACTORS,4000,,15/06/2022,41018337,1275,15184,ADDLEISURE LIMITED T/A LEISURE DB
INSERTED DETAIL,,Ealing Council,http://opendatacommunities.org/id/london-borough-council/ealing,PLACE,6,CAPITAL DELIVERY,PAYMENTS TO CONTRACTORS,4000,,28/06/2022,41021981,2795,28751,CARTER JONAS SERVICE COMPANY
INSERTED DETAIL,,Ealing Council,http://opendatacommunities.org/id/london-borough-council/ealing,PLACE,6,LEISURE,PAYMENTS TO CONTRACTORS,4000,,15/07/2022,41022603,4917,25875,SPORTS & LEISURE MANAGEMENT LTD T/A EVERYONE ACTIVE
INSERTED DETAIL,,Ealing Council,http://opendatacommunities.org/id/london-borough-council/ealing,PLACE,6,HOUSING  DEMAND,PAYMENTS TO CONTRACTORS,4000,,28/07/2022,41022741,600,9900018,REDACTED SENSITIVE SUPPLIER
INSERTED DETAIL,,Ealing Council,http://opendatacommunities.org/id/london-borough-council/ealing,PLACE,6,HOUSING  DEMAND,PAYMENTS TO CONTRACTORS,4000,,30/06/2022,41020099,400,9900018,REDACTED SENSITIVE SUPPLIER
INSERTED DETAIL,,Ealing Council,http://opendatacommunities.org/id/london-borough-council/ealing,PLACE,6,HOUSING  DEMAND,PAYMENTS TO CONTRACTORS,4000,,07/07/2022,41020613,400,9900018,REDACTED SENSITIVE SUPPLIER
INSERTED DETAIL,,Ealing Council,http://opendatacommunities.org/id/london-borough-council/ealing,PLACE,6,HOUSING  DEMAND,PAYMENTS TO CONTRACTORS,4000,,08/07/2022,41020782,400,9900018,REDACTED SENSITIVE SUPPLIER
INSERTED DETAIL,,Ealing Council,http://opendatacommunities.org/id/london-borough-council/ealing,PLACE,6,HOUSING  DEMAND,PAYMENTS TO CONTRACTORS,4000,,08/07/2022,41020783,400,9900018,REDACTED SENSITIVE SUPPLIER
INSERTED DETAIL,,Ealing Council,http://opendatacommunities.org/id/london-borough-council/ealing,PLACE,6,HOUSING  DEMAND,PAYMENTS TO CONTRACTORS,4000,,05/07/2022,41020304,600,9900018,REDACTED SENSITIVE SUPPLIER
INSERTED DETAIL,,Ealing Council,http://opendatacommunities.org/id/london-borough-council/ealing,PLACE,6,HOUSING  DEMAND,PAYMENTS TO CONTRACTORS,4000,,14/07/2022,41021450,400,9900018,REDACTED SENSITIVE SUPPLIER
INSERTED DETAIL,,Ealing Council,http://opendatacommunities.org/id/london-borough-council/ealing,PLACE,6,HOUSING  DEMAND,PAYMENTS TO CONTRACTORS,4000,,14/07/2022,41021453,600,9900018,REDACTED SENSITIVE SUPPLIER
INSERTED DETAIL,,Ealing Council,http://opendatacommunities.org/id/london-borough-council/ealing,CHILDREN & ADULTS,1,ADULT MENTAL HEALTH,RESIDENTIAL HOMES EXTERNAL,4220,,21/07/2022,23196687,2945.76,30202,SITARA HAVEN
INSERTED DETAIL,,Ealing Council,http://opendatacommunities.org/id/london-borough-council/ealing,CHILDREN & ADULTS,1,ADULT MENTAL HEALTH,RESIDENTIAL HOMES EXTERNAL,4220,,21/07/2022,23196687,3844.32,30202,SITARA HAVEN
INSERTED DETAIL,,Ealing Council,http://opendatacommunities.org/id/london-borough-council/ealing,CHILDREN & ADULTS,1,ADULT MENTAL HEALTH,SUPPORTED LIVING,4236,,21/07/2022,23196983,2480,29205,EASTCOTE CARE PROVIDERS LTD
INSERTED DETAIL,,Ealing Council,http://opendatacommunities.org/id/london-borough-council/ealing,CHILDREN & ADULTS,1,ADULT MENTAL HEALTH,SUPPORTED LIVING,4236,,21/07/2022,23196983,2480,29205,EASTCOTE CARE PROVIDERS LTD
INSERTED DETAIL,,Ealing Council,http://opendatacommunities.org/id/london-borough-council/ealing,CHILDREN & ADULTS,1,ADULT MENTAL HEALTH,SUPPORTED LIVING,4236,,21/07/2022,23196983,2488,29205,EASTCOTE CARE PROVIDERS LTD
INSERTED DETAIL,,Ealing Council,http://opendatacommunities.org/id/london-borough-council/ealing,CHILDREN & ADULTS,1,ADULT MENTAL HEALTH,DOMICILIARY CARE - BLOCK,4240,,18/07/2022,23196626,420,29634,INTEGRATED KARE SOLUTIONS LTD
INSERTED DETAIL,,Ealing Council,http://opendatacommunities.org/id/london-borough-council/ealing,CHILDREN & ADULTS,1,ADULT MENTAL HEALTH,RESIDENTIAL HOMES EXTERNAL,4220,,21/07/2022,23196707,2800,30087,PETTS HILL RES CARE HOME
INSERTED DETAIL,,Ealing Council,http://opendatacommunities.org/id/london-borough-council/ealing,CHILDREN & ADULTS,1,ADULT MENTAL HEALTH,RESIDENTIAL HOMES EXTERNAL,4220,,21/07/2022,23196707,2888,30087,PETTS HILL RES CARE HOME
INSERTED DETAIL,,Ealing Council,http://opendatacommunities.org/id/london-borough-council/ealing,CHILDREN & ADULTS,1,ADULT MENTAL HEALTH,SUPPORTED LIVING,4236,,21/07/2022,23196972,3031.4,29101,MAGIC LIFE LTD
INSERTED DETAIL,,Ealing Council,http://opendatacommunities.org/id/london-borough-council/ealing,CHILDREN & ADULTS,1,ADULT MENTAL HEALTH,RESIDENTIAL HOMES EXTERNAL,4220,,21/07/2022,23196983,768,29205,EASTCOTE CARE PROVIDERS LTD
INSERTED DETAIL,,Ealing Council,http://opendatacommunities.org/id/london-borough-council/ealing,CHILDREN & ADULTS,1,ADULT MENTAL HEALTH,RESIDENTIAL HOMES EXTERNAL,4220,,21/07/2022,23196983,640,29205,EASTCOTE CARE PROVIDERS LTD
INSERTED DETAIL,,Ealing Council,http://opendatacommunities.org/id/london-borough-council/ealing,CHILDREN & ADULTS,1,ADULT MENTAL HEALTH,RESIDENTIAL HOMES EXTERNAL,4220,,21/07/2022,23196983,544,29205,EASTCOTE CARE PROVIDERS LTD
INSERTED DETAIL,,Ealing Council,http://opendatacommunities.org/id/london-borough-council/ealing,CHILDREN & ADULTS,1,ADULT MENTAL HEALTH,RESIDENTIAL HOMES EXTERNAL,4220,,21/07/2022,23196983,1024,29205,EASTCOTE CARE PROVIDERS LTD
INSERTED DETAIL,,Ealing Council,http://opendatacommunities.org/id/london-borough-council/ealing,CHILDREN & ADULTS,1,ADULT MENTAL HEALTH,SUPPORTED LIVING,4236,,21/07/2022,23196983,2480,29205,EASTCOTE CARE PROVIDERS LTD
INSERTED DETAIL,,Ealing Council,http://opendatacommunities.org/id/london-borough-council/ealing,CHILDREN & ADULTS,1,ADULT MENTAL HEALTH,SUPPORTED LIVING,4236,,21/07/2022,23196952,4360,28881,INNOVATIVE SUPPORT LTD
INSERTED DETAIL,,Ealing Council,http://opendatacommunities.org/id/london-borough-council/ealing,CHILDREN & ADULTS,1,ADULT MENTAL HEALTH,SUPPORTED LIVING,4236,,21/07/2022,23196952,3360,28881,INNOVATIVE SUPPORT LTD
INSERTED DETAIL,,Ealing Council,http://opendatacommunities.org/id/london-borough-council/ealing,CHILDREN & ADULTS,1,ADULT MENTAL HEALTH,SUPPORTED LIVING,4236,,21/07/2022,23196992,3360,28881,INNOVATIVE SUPPORT LTD
INSERTED DETAIL,,Ealing Council,http://opendatacommunities.org/id/london-borough-council/ealing,CHILDREN & ADULTS,1,ADULT MENTAL HEALTH,SUPPORTED LIVING,4236,,21/07/2022,23196992,3448,28881,INNOVATIVE SUPPORT LTD
INSERTED DETAIL,,Ealing Council,http://opendatacommunities.org/id/london-borough-council/ealing,CHILDREN & ADULTS,1,ADULT MENTAL HEALTH,RESIDENTIAL HOMES EXTERNAL,4220,,21/07/2022,23196951,1052,28881,INNOVATIVE SUPPORT LTD
INSERTED DETAIL,,Ealing Council,http://opendatacommunities.org/id/london-borough-council/ealing,CHILDREN & ADULTS,1,ADULT MENTAL HEALTH,RESIDENTIAL HOMES EXTERNAL,4220,,21/07/2022,23196972,12600,29101,MAGIC LIFE LTD
INSERTED DETAIL,,Ealing Council,http://opendatacommunities.org/id/london-borough-council/ealing,CHILDREN & ADULTS,1,ADULT MENTAL HEALTH,RESIDENTIAL HOMES EXTERNAL,4220,,21/07/2022,23196949,1680,28839,ABS UK LTD T/A LOTUS COMMUNITY CARE SERVICES
INSERTED DETAIL,,Ealing Council,http://opendatacommunities.org/id/london-borough-council/ealing,CHILDREN & ADULTS,1,ADULT MENTAL HEALTH,RESIDENTIAL HOMES EXTERNAL,4220,,21/07/2022,23196949,360,28839,ABS UK LTD T/A LOTUS COMMUNITY CARE SERVICES
INSERTED DETAIL,,Ealing Council,http://opendatacommunities.org/id/london-borough-council/ealing,CHILDREN & ADULTS,1,ADULT MENTAL HEALTH,SUPPORTED LIVING,4236,,21/07/2022,23196949,2296.8,28839,ABS UK LTD T/A LOTUS COMMUNITY CARE SERVICES
INSERTED DETAIL,,Ealing Council,http://opendatacommunities.org/id/london-borough-council/ealing,CHILDREN & ADULTS,1,ADULT MENTAL HEALTH,SUPPORTED LIVING,4236,,21/07/2022,23196949,2296.8,28839,ABS UK LTD T/A LOTUS COMMUNITY CARE SERVICES
INSERTED DETAIL,,Ealing Council,http://opendatacommunities.org/id/london-borough-council/ealing,CHILDREN & ADULTS,1,ADULT MENTAL HEALTH,SUPPORTED LIVING,4236,,21/07/2022,23196951,3358,28881,INNOVATIVE SUPPORT LTD
INSERTED DETAIL,,Ealing Council,http://opendatacommunities.org/id/london-borough-council/ealing,CHILDREN & ADULTS,1,ADULT MENTAL HEALTH,SUPPORTED LIVING,4236,,21/07/2022,23196951,3640,28881,INNOVATIVE SUPPORT LTD
INSERTED DETAIL,,Ealing Council,http://opendatacommunities.org/id/london-borough-council/ealing,CHILDREN & ADULTS,1,ADULT MENTAL HEALTH,DOMICILIARY CARE - BLOCK,4240,,28/03/2022,23193173,532.5,28303,H&M CARE AGENCY LTD
INSERTED DETAIL,,Ealing Council,http://opendatacommunities.org/id/london-borough-council/ealing,CHILDREN & ADULTS,1,ADULT MENTAL HEALTH,DOMICILIARY CARE - BLOCK,4240,,21/04/2022,23193173,843.75,28303,H&M CARE AGENCY LTD
INSERTED DETAIL,,Ealing Council,http://opendatacommunities.org/id/london-borough-council/ealing,CHILDREN & ADULTS,1,ADULT MENTAL HEALTH,DOMICILIARY CARE - BLOCK,4240,,14/06/2022,23193173,945,28303,H&M CARE AGENCY LTD
INSERTED DETAIL,,Ealing Council,http://opendatacommunities.org/id/london-borough-council/ealing,CHILDREN & ADULTS,1,ADULT MENTAL HEALTH,DOMICILIARY CARE - BLOCK,4240,,23/05/2022,23193173,1046.25,28303,H&M CARE AGENCY LTD
INSERTED DETAIL,,Ealing Council,http://opendatacommunities.org/id/london-borough-council/ealing,CHILDREN & ADULTS,1,ADULT MENTAL HEALTH,DOMICILIARY CARE - BLOCK,4240,,06/07/2022,23193173,-3367.5,28303,H&M CARE AGENCY LTD
INSERTED DETAIL,,Ealing Council,http://opendatacommunities.org/id/london-borough-council/ealing,CHILDREN & ADULTS,1,ADULT MENTAL HEALTH,DOMICILIARY CARE - BLOCK,4240,,06/07/2022,23193502,727.5,28303,H&M CARE AGENCY LTD
INSERTED DETAIL,,Ealing Council,http://opendatacommunities.org/id/london-borough-council/ealing,CHILDREN & ADULTS,1,ADULT MENTAL HEALTH,SUPPORTED LIVING,4236,,21/07/2022,23196915,2645.68,28298,CARE PLUS MORE LTD
INSERTED DETAIL,,Ealing Council,http://opendatacommunities.org/id/london-borough-council/ealing,CHILDREN & ADULTS,1,ADULT MENTAL HEALTH,SUPPORTED LIVING,4236,,21/07/2022,23196976,2940,28298,CARE PLUS MORE LTD
INSERTED DETAIL,,Ealing Council,http://opendatacommunities.org/id/london-borough-council/ealing,CHILDREN & ADULTS,1,ADULT MENTAL HEALTH,SUPPORTED LIVING,4236,,21/07/2022,23196976,2940,28298,CARE PLUS MORE LTD
INSERTED DETAIL,,Ealing Council,http://opendatacommunities.org/id/london-borough-council/ealing,CHILDREN & ADULTS,1,DISABILITIES,SOCIAL SERVICES DIRECT PAYMENTS,4231,,08/07/2022,23193591,3360,80764,CARE IN FINANCE LTD
INSERTED DETAIL,,Ealing Council,http://opendatacommunities.org/id/london-borough-council/ealing,CHILDREN & ADULTS,1,DISABILITIES,SOCIAL SERVICES DIRECT PAYMENTS,4231,,08/07/2022,23193591,1133.68,80764,CARE IN FINANCE LTD
INSERTED DETAIL,,Ealing Council,http://opendatacommunities.org/id/london-borough-council/ealing,CHILDREN & ADULTS,1,DISABILITIES,SOCIAL SERVICES DIRECT PAYMENTS,4231,,08/07/2022,23193591,589.2,80764,CARE IN FINANCE LTD
INSERTED DETAIL,,Ealing Council,http://opendatacommunities.org/id/london-borough-council/ealing,CHILDREN & ADULTS,1,DISABILITIES,SOCIAL SERVICES DIRECT PAYMENTS,4231,,08/07/2022,23193591,653.44,80764,CARE IN FINANCE LTD
INSERTED DETAIL,,Ealing Council,http://opendatacommunities.org/id/london-borough-council/ealing,CHILDREN & ADULTS,1,DISABILITIES,SOCIAL SERVICES DIRECT PAYMENTS,4231,,08/07/2022,23193591,-397.91,80764,CARE IN FINANCE LTD
INSERTED DETAIL,,Ealing Council,http://opendatacommunities.org/id/london-borough-council/ealing,CHILDREN & ADULTS,1,DISABILITIES,SOCIAL SERVICES DIRECT PAYMENTS,4231,,08/07/2022,23193591,258.21,80764,CARE IN FINANCE LTD
INSERTED DETAIL,,Ealing Council,http://opendatacommunities.org/id/london-borough-council/ealing,CHILDREN & ADULTS,1,DISABILITIES,SOCIAL SERVICES DIRECT PAYMENTS,4231,,08/07/2022,23193591,849.28,80764,CARE IN FINANCE LTD
INSERTED DETAIL,,Ealing Council,http://opendatacommunities.org/id/london-borough-council/ealing,CHILDREN & ADULTS,1,DISABILITIES,RESIDENTIAL HOMES EXTERNAL,4220,,19/07/2022,23196469,42197.76,29812,RICHARDSON GROVE LIMITED
INSERTED DETAIL,,Ealing Council,http://opendatacommunities.org/id/london-borough-council/ealing,CHILDREN & ADULTS,1,DISABILITIES,RESIDENTIAL HOMES EXTERNAL,4220,,21/07/2022,23197037,6251.52,29812,RICHARDSON GROVE LIMITED
INSERTED DETAIL,,Ealing Council,http://opendatacommunities.org/id/london-borough-council/ealing,CHILDREN & ADULTS,1,DISABILITIES,RESIDENTIAL HOMES EXTERNAL,4220,,21/07/2022,23197037,4677.16,29812,RICHARDSON GROVE LIMITED
INSERTED DETAIL,,Ealing Council,http://opendatacommunities.org/id/london-borough-council/ealing,CHILDREN & ADULTS,1,DISABILITIES,RESIDENTIAL HOMES EXTERNAL-INCOME,8780,,21/07/2022,23196635,-627.8,30088,THE REGARD PARTNERSHIP LTD (ACHIEVE TOGETHER)
INSERTED DETAIL,,Ealing Council,http://opendatacommunities.org/id/london-borough-council/ealing,CHILDREN & ADULTS,1,DISABILITIES,SUPPORTED LIVING,4236,,21/07/2022,23197015,4072,30088,THE REGARD PARTNERSHIP LTD (ACHIEVE TOGETHER)
INSERTED DETAIL,,Ealing Council,http://opendatacommunities.org/id/london-borough-council/ealing,CHILDREN & ADULTS,1,DISABILITIES,SOCIAL SERVICES DIRECT PAYMENTS,4231,,08/07/2022,23193591,2844.28,80764,CARE IN FINANCE LTD
INSERTED DETAIL,,Ealing Council,http://opendatacommunities.org/id/london-borough-council/ealing,CHILDREN & ADULTS,1,DISABILITIES,SUPPORTED LIVING,4236,,21/07/2022,23196915,2645.68,28298,CARE PLUS MORE LTD
INSERTED DETAIL,,Ealing Council,http://opendatacommunities.org/id/london-borough-council/ealing,CHILDREN & ADULTS,1,DISABILITIES,SUPPORTED LIVING,4236,,21/07/2022,23196976,2940,28298,CARE PLUS MORE LTD
INSERTED DETAIL,,Ealing Council,http://opendatacommunities.org/id/london-borough-council/ealing,CHILDREN & ADULTS,1,DISABILITIES,SUPPORTED LIVING,4236,,21/07/2022,23196992,3362,28881,INNOVATIVE SUPPORT LTD
INSERTED DETAIL,,Ealing Council,http://opendatacommunities.org/id/london-borough-council/ealing,CHILDREN & ADULTS,1,DISABILITIES,RESIDENTIAL HOMES EXTERNAL,4220,,21/07/2022,23196992,980,28881,INNOVATIVE SUPPORT LTD
INSERTED DETAIL,,Ealing Council,http://opendatacommunities.org/id/london-borough-council/ealing,CHILDREN & ADULTS,1,DISABILITIES,DOMICILIARY CARE - BLOCK,4240,,18/07/2022,23196625,340,29187,PREMIUM HOMECARE LTD
INSERTED DETAIL,,Ealing Council,http://opendatacommunities.org/id/london-borough-council/ealing,CHILDREN & ADULTS,1,DISABILITIES,RESIDENTIAL HOMES EXTERNAL,4220,,19/07/2022,23196469,31570.83,29812,RICHARDSON GROVE LIMITED
INSERTED DETAIL,,Ealing Council,http://opendatacommunities.org/id/london-borough-council/ealing,CHILDREN & ADULTS,1,DISABILITIES,DOMICILIARY CARE - BLOCK,4240,,26/07/2022,23197344,2700,27968,INVICTA CARE AND TRAINING LTD
INSERTED DETAIL,,Ealing Council,http://opendatacommunities.org/id/london-borough-council/ealing,CHILDREN & ADULTS,1,DISABILITIES,DOMICILIARY CARE - BLOCK,4240,,26/07/2022,23197344,2700,27968,INVICTA CARE AND TRAINING LTD
INSERTED DETAIL,,Ealing Council,http://opendatacommunities.org/id/london-borough-council/ealing,CHILDREN & ADULTS,1,DISABILITIES,RESIDENTIAL HOMES EXTERNAL,4220,,21/07/2022,23196893,1380,27968,INVICTA CARE AND TRAINING LTD
INSERTED DETAIL,,Ealing Council,http://opendatacommunities.org/id/london-borough-council/ealing,CHILDREN & ADULTS,1,DISABILITIES,RESIDENTIAL HOMES EXTERNAL,4220,,21/07/2022,23196904,5400,28094,DRS CARE HOMES LTD
INSERTED DETAIL,,Ealing Council,http://opendatacommunities.org/id/london-borough-council/ealing,CHILDREN & ADULTS,1,DISABILITIES,RESIDENTIAL HOMES EXTERNAL,4220,,21/07/2022,23196976,3626,28298,CARE PLUS MORE LTD
INSERTED DETAIL,,Ealing Council,http://opendatacommunities.org/id/london-borough-council/ealing,CHILDREN & ADULTS,1,DISABILITIES,RESIDENTIAL HOMES EXTERNAL,4220,,21/07/2022,23196915,4144,28298,CARE PLUS MORE LTD
INSERTED DETAIL,,Ealing Council,http://opendatacommunities.org/id/london-borough-council/ealing,CHILDREN & ADULTS,1,DISABILITIES,DAY CARE CENTRES,4250,,21/07/2022,23196843,634.64,26510,BEAD SEW CRAFTY LTD
INSERTED DETAIL,,Ealing Council,http://opendatacommunities.org/id/london-borough-council/ealing,CHILDREN & ADULTS,1,DISABILITIES,DAY CARE CENTRES,4250,,21/07/2022,23196843,475.96,26510,BEAD SEW CRAFTY LTD
INSERTED DETAIL,,Ealing Council,http://opendatacommunities.org/id/london-borough-council/ealing,CHILDREN & ADULTS,1,DISABILITIES,RESIDENTIAL HOMES EXTERNAL,4220,,21/07/2022,23196863,8359.64,27096,ACCOMPLISH GROUP LIMITED
INSERTED DETAIL,,Ealing Council,http://opendatacommunities.org/id/london-borough-council/ealing,CHILDREN & ADULTS,1,DISABILITIES,SUPPORTED LIVING,4236,,21/07/2022,23196917,3388.44,27609,COMFORT CARE SERVICES UK LTD
INSERTED DETAIL,,Ealing Council,http://opendatacommunities.org/id/london-borough-council/ealing,CHILDREN & ADULTS,1,DISABILITIES,RESIDENTIAL HOMES EXTERNAL,4220,,21/07/2022,23196917,7731.6,27609,COMFORT CARE SERVICES UK LTD
INSERTED DETAIL,,Ealing Council,http://opendatacommunities.org/id/london-borough-council/ealing,CHILDREN & ADULTS,1,DISABILITIES,DOMICILIARY CARE - BLOCK,4240,,26/07/2022,23197344,4410,27968,INVICTA CARE AND TRAINING LTD
INSERTED DETAIL,,Ealing Council,http://opendatacommunities.org/id/london-borough-council/ealing,CHILDREN & ADULTS,1,DISABILITIES,DOMICILIARY CARE - BLOCK,4240,,30/06/2022,23192609,1260,26026,SOMA HEALTHCARE LIMITED
INSERTED DETAIL,,Ealing Council,http://opendatacommunities.org/id/london-borough-council/ealing,CHILDREN & ADULTS,1,DISABILITIES,DAY CARE CENTRES,4250,,21/07/2022,23196855,538.08,26492,PLAY ASSOCIATION HAMMERSMITH & FULHAM
INSERTED DETAIL,,Ealing Council,http://opendatacommunities.org/id/london-borough-council/ealing,CHILDREN & ADULTS,1,DISABILITIES,DAY CARE CENTRES,4250,,21/07/2022,23196855,333.12,26492,PLAY ASSOCIATION HAMMERSMITH & FULHAM
INSERTED DETAIL,,Ealing Council,http://opendatacommunities.org/id/london-borough-council/ealing,CHILDREN & ADULTS,1,DISABILITIES,DAY CARE CENTRES,4250,,21/07/2022,23196855,486.84,26492,PLAY ASSOCIATION HAMMERSMITH & FULHAM
INSERTED DETAIL,,Ealing Council,http://opendatacommunities.org/id/london-borough-council/ealing,CHIEF EXECUTIVE DIRECTORATE,5,CUSTOMER & TRANSACTIONAL SERVICES,DEBT COLLECTION COST (DCC),2850,,29/06/2022,41019945,1561.11,13721,NEWLYN PLC
INSERTED DETAIL,,Ealing Council,http://opendatacommunities.org/id/london-borough-council/ealing,CHIEF EXECUTIVE DIRECTORATE,5,CUSTOMER & TRANSACTIONAL SERVICES,DEBT COLLECTION COST (DCC),2850,,07/07/2022,41021255,1199.52,11089,CIVICA UK LIMITED
INSERTED DETAIL,,Ealing Council,http://opendatacommunities.org/id/london-borough-council/ealing,CHIEF EXECUTIVE DIRECTORATE,5,CUSTOMER & TRANSACTIONAL SERVICES,DEBT COLLECTION COST (DCC),2850,,17/06/2022,41018506,3712.24,11089,CIVICA UK LIMITED
INSERTED DETAIL,,Ealing Council,http://opendatacommunities.org/id/london-borough-council/ealing,CHIEF EXECUTIVE DIRECTORATE,5,CUSTOMER & TRANSACTIONAL SERVICES,TELEPHONE,3230,,30/06/2022,41020654,10405.26,24706,TELSOLUTIONS LTD
INSERTED DETAIL,,Ealing Council,http://opendatacommunities.org/id/london-borough-council/ealing,CHIEF EXECUTIVE DIRECTORATE,5,CUSTOMER & TRANSACTIONAL SERVICES,COMP SOFTWARE,3210,,06/07/2022,41021597,27872,29737,ASCENDANT SOLUTIONS LTD
INSERTED DETAIL,,Ealing Council,http://opendatacommunities.org/id/london-borough-council/ealing,PLACE,6,PROPERTY REGULATION,EXTERNAL TECHNICAL ADVICE,4060,,04/07/2022,41020151,1699,9900017,TACAGNI CONSULTANCY LIMITED
INSERTED DETAIL,,Ealing Council,http://opendatacommunities.org/id/london-borough-council/ealing,PLACE,6,PROPERTY REGULATION,PROPERTY LICENSING INCOME,8766,,11/07/2022,41020905,538,9900017,REDACTED SENSITIVE SUPPLIER
INSERTED DETAIL,,Ealing Council,http://opendatacommunities.org/id/london-borough-council/ealing,PLACE,6,HRA HOUSING DEVELOPMENT,COMPENSATION  PAYMENTS,2900,,28/07/2022,41022982,7100,9900017,REDACTED SENSITIVE SUPPLIER
INSERTED DETAIL,,Ealing Council,http://opendatacommunities.org/id/london-borough-council/ealing,PLACE,6,HRA HOUSING DEVELOPMENT,REMOVALS,2680,,27/06/2022,41019423,2000,26911,MOVIVAN LTD
INSERTED DETAIL,,Ealing Council,http://opendatacommunities.org/id/london-borough-council/ealing,PLACE,6,HRA HOUSING DEVELOPMENT,REMOVALS,2680,,11/07/2022,41021833,6000,26911,MOVIVAN LTD
INSERTED DETAIL,,Ealing Council,http://opendatacommunities.org/id/london-borough-council/ealing,CHILDREN & ADULTS,1,EALING SERVICE FOR CHILDREN WITH ADDITIONAL NEEDS,PRE 16 SEN PROVISION,4271,,17/03/2022,41020581,250,19081,REDACTED SENSITIVE SUPPLIER
INSERTED DETAIL,,Ealing Council,http://opendatacommunities.org/id/london-borough-council/ealing,CHILDREN & ADULTS,1,EALING SERVICE FOR CHILDREN WITH ADDITIONAL NEEDS,POST 16 SEN PROVISION,4272,,18/07/2022,50001775,71333,15521,HCUC
INSERTED DETAIL,,Ealing Council,http://opendatacommunities.org/id/london-borough-council/ealing,CHILDREN & ADULTS,1,EALING SERVICE FOR CHILDREN WITH ADDITIONAL NEEDS,POST 16 SEN PROVISION,4272,,18/07/2022,50001775,83966.33,17071,WEST THAMES COLLEGE
INSERTED DETAIL,,Ealing Council,http://opendatacommunities.org/id/london-borough-council/ealing,CHILDREN & ADULTS,1,EALING SERVICE FOR CHILDREN WITH ADDITIONAL NEEDS,POST 16 SEN PROVISION,4272,,18/07/2022,50001775,259780,11606,"EALING, HAMMERSMITH& WEST LND COLLEGE"
INSERTED DETAIL,,Ealing Council,http://opendatacommunities.org/id/london-borough-council/ealing,CHILDREN & ADULTS,1,"PLANNING, COMMISSIONING & PARTNERSHIPS",ADVERTISING,2690,,31/05/2022,41020038,495,19361,MA EDUCATION LIMITED
INSERTED DETAIL,,Ealing Council,http://opendatacommunities.org/id/london-borough-council/ealing,CHILDREN & ADULTS,1,BUSINESS MANAGEMENT,COMP OUTSOURCED SERVICES,3220,,29/06/2022,41020772,975,27646,ACCESS UK LIMITED
INSERTED DETAIL,,Ealing Council,http://opendatacommunities.org/id/london-borough-council/ealing,PLACE,6,HOUSING PROPERTY & ASSETS,REPAIR AND MAINTENANCE,1410,,01/07/2022,41022134,1402.37,28096,KWEST RESEARCH LTD
INSERTED DETAIL,,Ealing Council,http://opendatacommunities.org/id/london-borough-council/ealing,COUNCIL WIDE OTHER,9,BALANCE SHEET,CTRL OR B/S REFUNDS,6056,,08/07/2022,23193388,-438.63,9900002,
INSERTED DETAIL,,Ealing Council,http://opendatacommunities.org/id/london-borough-council/ealing,COUNCIL WIDE OTHER,9,BALANCE SHEET,CTRL OR B/S REFUNDS,6056,,08/07/2022,23193389,-448.06,9900002,
INSERTED DETAIL,,Ealing Council,http://opendatacommunities.org/id/london-borough-council/ealing,COUNCIL WIDE OTHER,9,BALANCE SHEET,CTRL OR B/S REFUNDS,6056,,04/07/2022,23192522,-840.55,9900002,
INSERTED DETAIL,,Ealing Council,http://opendatacommunities.org/id/london-borough-council/ealing,COUNCIL WIDE OTHER,9,BALANCE SHEET,CTRL OR B/S REFUNDS,6056,,04/07/2022,23192523,-1709.56,9900002,
INSERTED DETAIL,,Ealing Council,http://opendatacommunities.org/id/london-borough-council/ealing,CHILDREN & ADULTS,1,SCHOOLS EFFECTIVENESS,PAYMENTS TO OTHER ESTAB.,4350,,08/07/2022,23193390,-700,9900014,
INSERTED DETAIL,,Ealing Council,http://opendatacommunities.org/id/london-borough-council/ealing,CHILDREN & ADULTS,1,SCHOOLS EFFECTIVENESS,PAYMENTS TO OTHER ESTAB.,4350,,05/07/2022,41020393,645,29331,CHERRY TREE LEARNING SERVICES LTD T/A CHERRY TREE EDUCATION
INSERTED DETAIL,,Ealing Council,http://opendatacommunities.org/id/london-borough-council/ealing,CHIEF EXECUTIVE DIRECTORATE,5,CHIEF EXECUTIVES OFFICE,AGENCY,70,,30/06/2022,41020828,14160,29664,FAERFIELD LIMITED
INSERTED DETAIL,,Ealing Council,http://opendatacommunities.org/id/london-borough-council/ealing,CHIEF EXECUTIVE DIRECTORATE,5,PROPERTY SERVICES,VEHICLE HIRE,2010,,01/07/2022,41020321,335.85,12371,MITSUBISHI HC CAPITAL UK PLC T/A NOVUNA VEHICLE SOLUTIONS
INSERTED DETAIL,,Ealing Council,http://opendatacommunities.org/id/london-borough-council/ealing,CHIEF EXECUTIVE DIRECTORATE,5,PROPERTY SERVICES,VEHICLE HIRE,2010,,01/07/2022,41020322,335.85,12371,MITSUBISHI HC CAPITAL UK PLC T/A NOVUNA VEHICLE SOLUTIONS
INSERTED DETAIL,,Ealing Council,http://opendatacommunities.org/id/london-borough-council/ealing,CHIEF EXECUTIVE DIRECTORATE,5,PROPERTY SERVICES,VEHICLE HIRE,2010,,01/07/2022,41020318,335.85,12371,MITSUBISHI HC CAPITAL UK PLC T/A NOVUNA VEHICLE SOLUTIONS
INSERTED DETAIL,,Ealing Council,http://opendatacommunities.org/id/london-borough-council/ealing,CHIEF EXECUTIVE DIRECTORATE,5,PROPERTY SERVICES,VEHICLE HIRE,2010,,01/07/2022,41020323,359.87,12371,MITSUBISHI HC CAPITAL UK PLC T/A NOVUNA VEHICLE SOLUTIONS
INSERTED DETAIL,,Ealing Council,http://opendatacommunities.org/id/london-borough-council/ealing,CHIEF EXECUTIVE DIRECTORATE,5,PROPERTY SERVICES,VEHICLE HIRE,2010,,01/07/2022,41020324,359.87,12371,MITSUBISHI HC CAPITAL UK PLC T/A NOVUNA VEHICLE SOLUTIONS
INSERTED DETAIL,,Ealing Council,http://opendatacommunities.org/id/london-borough-council/ealing,PLACE,6,HOUSING  DEMAND,PAYMENTS TO CONTRACTORS,4000,,22/07/2022,41022206,600,9900018,REDACTED SENSITIVE SUPPLIER
INSERTED DETAIL,,Ealing Council,http://opendatacommunities.org/id/london-borough-council/ealing,CHILDREN & ADULTS,1,SAFEGUARDING & SUPPORT - CIC,SOCIAL SERVICES -INDEPENDENT FOSTERING,4221,,11/07/2022,23194057,606.5,12174,GREATER LONDON FOSTERING (GLF)
INSERTED DETAIL,,Ealing Council,http://opendatacommunities.org/id/london-borough-council/ealing,CHILDREN & ADULTS,1,SAFEGUARDING & SUPPORT - CIC,SOCIAL SERVICES -INDEPENDENT FOSTERING,4221,,11/07/2022,23194057,3000.85,12174,GREATER LONDON FOSTERING (GLF)
INSERTED DETAIL,,Ealing Council,http://opendatacommunities.org/id/london-borough-council/ealing,CHILDREN & ADULTS,1,SAFEGUARDING & SUPPORT - CIC,SOCIAL SERVICES -INDEPENDENT FOSTERING,4221,,11/07/2022,23194057,3000.85,12174,GREATER LONDON FOSTERING (GLF)
INSERTED DETAIL,,Ealing Council,http://opendatacommunities.org/id/london-borough-council/ealing,CHILDREN & ADULTS,1,SAFEGUARDING & SUPPORT - CIC,SOCIAL SERVICES -INDEPENDENT FOSTERING,4221,,11/07/2022,23194057,3596.15,12174,GREATER LONDON FOSTERING (GLF)
INSERTED DETAIL,,Ealing Council,http://opendatacommunities.org/id/london-borough-council/ealing,CHILDREN & ADULTS,1,SAFEGUARDING & SUPPORT - CIC,SOCIAL SERVICES -INDEPENDENT FOSTERING,4221,,11/07/2022,23194089,3114.65,14961,SUNBEAM FOSTERING AGENCY LTD
INSERTED DETAIL,,Ealing Council,http://opendatacommunities.org/id/london-borough-council/ealing,CHILDREN & ADULTS,1,SAFEGUARDING & SUPPORT - CIC,SOCIAL SERVICES -INDEPENDENT FOSTERING,4221,,11/07/2022,23194089,3052.5,14961,SUNBEAM FOSTERING AGENCY LTD
INSERTED DETAIL,,Ealing Council,http://opendatacommunities.org/id/london-borough-council/ealing,CHILDREN & ADULTS,1,SAFEGUARDING & SUPPORT - CIC,CHILDRENS SERVICES -ELIGIBLE CHILDREN ACCOMMODATIO,4281,,11/07/2022,23194023,10071.43,29784,CHALK HILL HOUSE LTD
INSERTED DETAIL,,Ealing Council,http://opendatacommunities.org/id/london-borough-council/ealing,CHILDREN & ADULTS,1,SAFEGUARDING & SUPPORT - CIC,CHILDRENS SERVICES -ELIGIBLE CHILDREN ACCOMMODATIO,4281,,26/07/2022,23197340,5271.43,29762,REDACTED SENSITIVE SUPPLIER
INSERTED DETAIL,,Ealing Council,http://opendatacommunities.org/id/london-borough-council/ealing,CHILDREN & ADULTS,1,SAFEGUARDING & SUPPORT - CIC,CHILDRENS SERVICES -ELIGIBLE CHILDREN ACCOMMODATIO,4281,,26/07/2022,23197340,9664.29,29762,REDACTED SENSITIVE SUPPLIER
INSERTED DETAIL,,Ealing Council,http://opendatacommunities.org/id/london-borough-council/ealing,CHILDREN & ADULTS,1,SAFEGUARDING & SUPPORT - CIC,CHILDRENS SERVICES -ELIGIBLE CHILDREN ACCOMMODATIO,4281,,26/07/2022,23197340,4392.86,29762,REDACTED SENSITIVE SUPPLIER
INSERTED DETAIL,,Ealing Council,http://opendatacommunities.org/id/london-borough-council/ealing,CHILDREN & ADULTS,1,SAFEGUARDING & SUPPORT - CIC,CHILDRENS SERVICES -ELIGIBLE CHILDREN ACCOMMODATIO,4281,,26/07/2022,23197341,793.65,29784,CHALK HILL HOUSE LTD
INSERTED DETAIL,,Ealing Council,http://opendatacommunities.org/id/london-borough-council/ealing,CHILDREN & ADULTS,1,SAFEGUARDING & SUPPORT - CIC,CHILDRENS SERVICES -ELIGIBLE CHILDREN ACCOMMODATIO,4281,,11/07/2022,23194023,1500,29784,CHALK HILL HOUSE LTD
INSERTED DETAIL,,Ealing Council,http://opendatacommunities.org/id/london-borough-council/ealing,CHILDREN & ADULTS,1,SAFEGUARDING & SUPPORT - CIC,CHILDRENS SERVICES -ELIGIBLE CHILDREN ACCOMMODATIO,4281,,11/07/2022,23194023,3857.15,29784,CHALK HILL HOUSE LTD
INSERTED DETAIL,,Ealing Council,http://opendatacommunities.org/id/london-borough-council/ealing,CHILDREN & ADULTS,1,SAFEGUARDING & SUPPORT - CIC,CHILDRENS SERVICES -ELIGIBLE CHILDREN OTHER COSTS,4282,,11/07/2022,23194101,2142.85,29517,CARE 2 CARE CHILDREN�S HOMES LTD
INSERTED DETAIL,,Ealing Council,http://opendatacommunities.org/id/london-borough-council/ealing,CHILDREN & ADULTS,1,SAFEGUARDING & SUPPORT - CIC,CHILDRENS SERVICES -ELIGIBLE CHILDREN OTHER COSTS,4282,,11/07/2022,23194101,3000,29517,CARE 2 CARE CHILDREN�S HOMES LTD
INSERTED DETAIL,,Ealing Council,http://opendatacommunities.org/id/london-borough-council/ealing,CHILDREN & ADULTS,1,SAFEGUARDING & SUPPORT - CIC,CHILDRENS SERVICES -ELIGIBLE CHILDREN OTHER COSTS,4282,,11/07/2022,23194101,2850,29517,CARE 2 CARE CHILDREN�S HOMES LTD
INSERTED DETAIL,,Ealing Council,http://opendatacommunities.org/id/london-borough-council/ealing,CHILDREN & ADULTS,1,SAFEGUARDING & SUPPORT - CIC,SOCIAL SERVICES -INDEPENDENT FOSTERING,4221,,11/07/2022,23194070,5781.47,29646,LIGHTHOUSE FOSTERING LTD
INSERTED DETAIL,,Ealing Council,http://opendatacommunities.org/id/london-borough-council/ealing,CHILDREN & ADULTS,1,SAFEGUARDING & SUPPORT - CIC,SOCIAL SERVICES -INDEPENDENT FOSTERING,4221,,11/07/2022,23194070,5781.47,29646,LIGHTHOUSE FOSTERING LTD
INSERTED DETAIL,,Ealing Council,http://opendatacommunities.org/id/london-borough-council/ealing,CHILDREN & ADULTS,1,SAFEGUARDING & SUPPORT - CIC,SOCIAL SERVICES -INDEPENDENT FOSTERING,4221,,11/07/2022,23194070,5781.47,29646,LIGHTHOUSE FOSTERING LTD
INSERTED DETAIL,,Ealing Council,http://opendatacommunities.org/id/london-borough-council/ealing,CHILDREN & ADULTS,1,SAFEGUARDING & SUPPORT - CIC,CHILDRENS SERVICES -ELIGIBLE CHILDREN ACCOMMODATIO,4281,,11/07/2022,23193999,857.15,28619,ABIDING LIMITED T/A ABIDING CARE & SUPPORT
INSERTED DETAIL,,Ealing Council,http://opendatacommunities.org/id/london-borough-council/ealing,CHILDREN & ADULTS,1,SAFEGUARDING & SUPPORT - CIC,CHILDRENS SERVICES -ELIGIBLE CHILDREN ACCOMMODATIO,4281,,11/07/2022,23193999,1242.85,28619,ABIDING LIMITED T/A ABIDING CARE & SUPPORT
INSERTED DETAIL,,Ealing Council,http://opendatacommunities.org/id/london-borough-council/ealing,CHILDREN & ADULTS,1,SAFEGUARDING & SUPPORT - CIC,CHILDRENS SERVICES -ELIGIBLE CHILDREN ACCOMMODATIO,4281,,11/07/2022,23193999,261.65,28619,ABIDING LIMITED T/A ABIDING CARE & SUPPORT
INSERTED DETAIL,,Ealing Council,http://opendatacommunities.org/id/london-borough-council/ealing,CHILDREN & ADULTS,1,SAFEGUARDING & SUPPORT - CIC,CHILDRENS SERVICES -ELIGIBLE CHILDREN ACCOMMODATIO,4281,,11/07/2022,23194021,2678.57,29141,WYF VENTURES LTD T/A TOTAL CARE
INSERTED DETAIL,,Ealing Council,http://opendatacommunities.org/id/london-borough-council/ealing,CHILDREN & ADULTS,1,SAFEGUARDING & SUPPORT - CIC,CHILDRENS SERVICES -ELIGIBLE CHILDREN ACCOMMODATIO,4281,,11/07/2022,23194021,1607.15,29141,WYF VENTURES LTD T/A TOTAL CARE
INSERTED DETAIL,,Ealing Council,http://opendatacommunities.org/id/london-borough-council/ealing,CHILDREN & ADULTS,1,SAFEGUARDING & SUPPORT - CIC,RESIDENTIAL HOMES EXTERNAL,4220,,11/07/2022,23194101,14914.28,29517,CARE 2 CARE CHILDREN�S HOMES LTD
INSERTED DETAIL,,Ealing Council,http://opendatacommunities.org/id/london-borough-council/ealing,CHILDREN & ADULTS,1,SAFEGUARDING & SUPPORT - CIC,CHILDRENS SERVICES -ELIGIBLE CHILDREN ACCOMMODATIO,4281,,24/06/2022,23194132,2999.99,28394,EMPOWER HOUSE LTD
INSERTED DETAIL,,Ealing Council,http://opendatacommunities.org/id/london-borough-council/ealing,CHILDREN & ADULTS,1,SAFEGUARDING & SUPPORT - CIC,CHILDRENS SERVICES -ELIGIBLE CHILDREN ACCOMMODATIO,4281,,24/06/2022,23194132,261.65,28394,EMPOWER HOUSE LTD
INSERTED DETAIL,,Ealing Council,http://opendatacommunities.org/id/london-borough-council/ealing,CHILDREN & ADULTS,1,SAFEGUARDING & SUPPORT - CIC,CHILDRENS SERVICES -ELIGIBLE CHILDREN ACCOMMODATIO,4281,,24/06/2022,23194137,857.15,28394,EMPOWER HOUSE LTD
INSERTED DETAIL,,Ealing Council,http://opendatacommunities.org/id/london-borough-council/ealing,CHILDREN & ADULTS,1,ADULT MENTAL HEALTH,SUPPORTED LIVING,4236,,21/07/2022,23196976,2940,28298,CARE PLUS MORE LTD
INSERTED DETAIL,,Ealing Council,http://opendatacommunities.org/id/london-borough-council/ealing,CHILDREN & ADULTS,1,ADULT MENTAL HEALTH,SUPPORTED LIVING,4236,,21/07/2022,23196976,2940,28298,CARE PLUS MORE LTD
INSERTED DETAIL,,Ealing Council,http://opendatacommunities.org/id/london-borough-council/ealing,CHILDREN & ADULTS,1,ADULT MENTAL HEALTH,SUPPORTED LIVING,4236,,21/07/2022,23196976,2940,28298,CARE PLUS MORE LTD
INSERTED DETAIL,,Ealing Council,http://opendatacommunities.org/id/london-borough-council/ealing,CHILDREN & ADULTS,1,ADULT MENTAL HEALTH,RESIDENTIAL HOMES EXTERNAL,4220,,21/07/2022,23197012,2641.2,29572,OPTIMA CARE SHINE LONDON LTD
INSERTED DETAIL,,Ealing Council,http://opendatacommunities.org/id/london-borough-council/ealing,CHILDREN & ADULTS,1,ADULT MENTAL HEALTH,SUPPORTED LIVING,4236,,21/07/2022,23197012,4209.12,29572,OPTIMA CARE SHINE LONDON LTD
INSERTED DETAIL,,Ealing Council,http://opendatacommunities.org/id/london-borough-council/ealing,CHILDREN & ADULTS,1,ADULT MENTAL HEALTH,RESIDENTIAL HOMES EXTERNAL,4220,,25/07/2022,23197071,3810.36,29855,PURECARE CARE SERVICES LTD T/A PURE CARE
INSERTED DETAIL,,Ealing Council,http://opendatacommunities.org/id/london-borough-council/ealing,CHILDREN & ADULTS,1,ADULT MENTAL HEALTH,RESIDENTIAL HOMES EXTERNAL,4220,,21/07/2022,23196935,3075,30206,BRIGHTON HOUSING TRUST (BHT)
INSERTED DETAIL,,Ealing Council,http://opendatacommunities.org/id/london-borough-council/ealing,CHILDREN & ADULTS,1,ADULT MENTAL HEALTH,RESIDENTIAL HOMES EXTERNAL,4220,,21/07/2022,23196976,1110,28298,CARE PLUS MORE LTD
INSERTED DETAIL,,Ealing Council,http://opendatacommunities.org/id/london-borough-council/ealing,CHILDREN & ADULTS,1,ADULT MENTAL HEALTH,SUPPORTED LIVING,4236,,21/07/2022,23196915,2474.96,28298,CARE PLUS MORE LTD
INSERTED DETAIL,,Ealing Council,http://opendatacommunities.org/id/london-borough-council/ealing,CHILDREN & ADULTS,1,ADULT MENTAL HEALTH,SUPPORTED LIVING,4236,,21/07/2022,23196984,2742.86,28827,ST GEORGES SUPPORTED LIVING LTD
INSERTED DETAIL,,Ealing Council,http://opendatacommunities.org/id/london-borough-council/ealing,CHILDREN & ADULTS,1,ADULT MENTAL HEALTH,DOMICILIARY CARE - BLOCK,4240,,18/07/2022,23196626,735,29634,INTEGRATED KARE SOLUTIONS LTD
INSERTED DETAIL,,Ealing Council,http://opendatacommunities.org/id/london-borough-council/ealing,CHILDREN & ADULTS,1,ADULT MENTAL HEALTH,DOMICILIARY CARE - BLOCK,4240,,18/07/2022,23196622,840,29040,BIRMINGHAM BUSINESS ASSOCIATE LTD T/A BBA CARE LTD LONDON
INSERTED DETAIL,,Ealing Council,http://opendatacommunities.org/id/london-borough-council/ealing,CHILDREN & ADULTS,1,ADULT MENTAL HEALTH,DOMICILIARY CARE - BLOCK,4240,,18/07/2022,23196622,735,29040,BIRMINGHAM BUSINESS ASSOCIATE LTD T/A BBA CARE LTD LONDON
INSERTED DETAIL,,Ealing Council,http://opendatacommunities.org/id/london-borough-council/ealing,CHILDREN & ADULTS,1,ADULT MENTAL HEALTH,RESIDENTIAL HOMES EXTERNAL,4220,,21/07/2022,23197001,5706.88,29460,QUALITIES SERVICES LTD
INSERTED DETAIL,,Ealing Council,http://opendatacommunities.org/id/london-borough-council/ealing,CHILDREN & ADULTS,1,ADULT MENTAL HEALTH,RESIDENTIAL HOMES EXTERNAL,4220,,21/07/2022,23197001,4480,29460,QUALITIES SERVICES LTD
INSERTED DETAIL,,Ealing Council,http://opendatacommunities.org/id/london-borough-council/ealing,CHILDREN & ADULTS,1,ADULT MENTAL HEALTH,DOMICILIARY CARE - BLOCK,4240,,19/07/2022,23196470,1260,28266,SOMCARE AGENCY LIMITED
INSERTED DETAIL,,Ealing Council,http://opendatacommunities.org/id/london-borough-council/ealing,CHILDREN & ADULTS,1,ADULT MENTAL HEALTH,SUPPORTED LIVING,4236,,21/07/2022,23196984,3200,28827,ST GEORGES SUPPORTED LIVING LTD
INSERTED DETAIL,,Ealing Council,http://opendatacommunities.org/id/london-borough-council/ealing,CHILDREN & ADULTS,1,ADULT MENTAL HEALTH,SUPPORTED LIVING,4236,,21/07/2022,23196984,3200,28827,ST GEORGES SUPPORTED LIVING LTD
INSERTED DETAIL,,Ealing Council,http://opendatacommunities.org/id/london-borough-council/ealing,CHILDREN & ADULTS,1,ADULT MENTAL HEALTH,SUPPORTED LIVING,4236,,21/07/2022,23196984,3200,28827,ST GEORGES SUPPORTED LIVING LTD
INSERTED DETAIL,,Ealing Council,http://opendatacommunities.org/id/london-borough-council/ealing,CHILDREN & ADULTS,1,ADULT MENTAL HEALTH,SUPPORTED LIVING,4236,,21/07/2022,23196984,2800,28827,ST GEORGES SUPPORTED LIVING LTD
INSERTED DETAIL,,Ealing Council,http://opendatacommunities.org/id/london-borough-council/ealing,CHILDREN & ADULTS,1,ADULT MENTAL HEALTH,SUPPORTED LIVING,4236,,21/07/2022,23196984,2800,28827,ST GEORGES SUPPORTED LIVING LTD
INSERTED DETAIL,,Ealing Council,http://opendatacommunities.org/id/london-borough-council/ealing,CHILDREN & ADULTS,1,ADULT MENTAL HEALTH,RESIDENTIAL HOMES EXTERNAL,4220,,21/07/2022,23196964,2484,29050,MASH CARE LTD
INSERTED DETAIL,,Ealing Council,http://opendatacommunities.org/id/london-borough-council/ealing,CHILDREN & ADULTS,1,ADULT MENTAL HEALTH,SUPPORTED LIVING,4236,,21/07/2022,23196964,1840,29050,MASH CARE LTD
INSERTED DETAIL,,Ealing Council,http://opendatacommunities.org/id/london-borough-council/ealing,CHILDREN & ADULTS,1,ADULT MENTAL HEALTH,NURSING HOMES EXTERNAL,4230,,21/07/2022,23196975,4176,29121,THE COTSWOLD NURSING HOME CO LTD T/A KINGSLEY HOUSE NURSING HOME
INSERTED DETAIL,,Ealing Council,http://opendatacommunities.org/id/london-borough-council/ealing,CHILDREN & ADULTS,1,ADULT MENTAL HEALTH,DOMICILIARY CARE - BLOCK,4240,,18/07/2022,23196624,735,29161,CITY HOME CARE LTD
INSERTED DETAIL,,Ealing Council,http://opendatacommunities.org/id/london-borough-council/ealing,CHILDREN & ADULTS,1,ADULT MENTAL HEALTH,SOCIAL SERVICES DIRECT PAYMENTS,4231,,08/07/2022,23193547,2469,80406,REDACTED SENSITIVE SUPPLIER
INSERTED DETAIL,,Ealing Council,http://opendatacommunities.org/id/london-borough-council/ealing,CHILDREN & ADULTS,1,ADULT MENTAL HEALTH,DOMICILIARY CARE - BLOCK,4240,,19/07/2022,23196470,560,28266,SOMCARE AGENCY LIMITED
INSERTED DETAIL,,Ealing Council,http://opendatacommunities.org/id/london-borough-council/ealing,CHILDREN & ADULTS,1,ADULT MENTAL HEALTH,SUPPORTED LIVING,4236,,21/07/2022,23197009,3320,28727,AKM CARE
INSERTED DETAIL,,Ealing Council,http://opendatacommunities.org/id/london-borough-council/ealing,CHILDREN & ADULTS,1,ADULT MENTAL HEALTH,RESIDENTIAL HOMES EXTERNAL,4220,,21/07/2022,23196937,4700,28727,AKM CARE
INSERTED DETAIL,,Ealing Council,http://opendatacommunities.org/id/london-borough-council/ealing,CHILDREN & ADULTS,1,ADULT MENTAL HEALTH,RESIDENTIAL HOMES EXTERNAL,4220,,21/07/2022,23196937,5300,28727,AKM CARE
INSERTED DETAIL,,Ealing Council,http://opendatacommunities.org/id/london-borough-council/ealing,CHILDREN & ADULTS,1,ADULT MENTAL HEALTH,RESIDENTIAL HOMES EXTERNAL,4220,,21/07/2022,23196937,5000,28727,AKM CARE
INSERTED DETAIL,,Ealing Council,http://opendatacommunities.org/id/london-borough-council/ealing,CHILDREN & ADULTS,1,ADULT MENTAL HEALTH,RESIDENTIAL HOMES EXTERNAL,4220,,21/07/2022,23196937,1924,28727,AKM CARE
INSERTED DETAIL,,Ealing Council,http://opendatacommunities.org/id/london-borough-council/ealing,CHILDREN & ADULTS,1,ADULT MENTAL HEALTH,NURSING HOMES EXTERNAL,4230,,01/06/2022,23197064,3815.4,29001,APEX CARE CONTRACTING LTD
INSERTED DETAIL,,Ealing Council,http://opendatacommunities.org/id/london-borough-council/ealing,CHILDREN & ADULTS,1,ADULT MENTAL HEALTH,RESIDENTIAL HOMES EXTERNAL,4220,,21/07/2022,23196932,893.2,28679,JOYMAC CARE LTD
INSERTED DETAIL,,Ealing Council,http://opendatacommunities.org/id/london-borough-council/ealing,CAPITAL SCHEMES,K,PLACE DELIVERY,CAPITAL - INFRASTRUCTURE ASSETS,7140,,29/06/2022,41019974,60784.72,13593,MURRILL CONSTRUCTION LIMITED
INSERTED DETAIL,,Ealing Council,http://opendatacommunities.org/id/london-borough-council/ealing,COUNCIL WIDE OTHER,9,BALANCE SHEET,CTRL OR B/S VEHICLES,6120,,30/04/2022,41020890,4125.13,14715,CITY CAR CLUB LTD
INSERTED DETAIL,,Ealing Council,http://opendatacommunities.org/id/london-borough-council/ealing,COUNCIL WIDE OTHER,9,BALANCE SHEET,CTRL OR B/S VEHICLES,6120,,30/06/2022,41022904,4339.34,14715,CITY CAR CLUB LTD
INSERTED DETAIL,,Ealing Council,http://opendatacommunities.org/id/london-borough-council/ealing,PLACE,6,PARKING,PAYMENTS TO CONTRACTORS,4000,,23/03/2022,41022147,1000,13593,MURRILL CONSTRUCTION LIMITED
INSERTED DETAIL,,Ealing Council,http://opendatacommunities.org/id/london-borough-council/ealing,PLACE,6,PARKING,PAYMENTS TO CONTRACTORS,4000,,14/07/2022,41022300,3900,30226,SERCO LIMITED
INSERTED DETAIL,,Ealing Council,http://opendatacommunities.org/id/london-borough-council/ealing,PLACE,6,PARKING,PAYMENTS TO CONTRACTORS,4000,,30/06/2022,41020065,263.5,13322,METRIC GROUP LTD
INSERTED DETAIL,,Ealing Council,http://opendatacommunities.org/id/london-borough-council/ealing,PLACE,6,EMPLOYMENT SKILLS AND ADULT LEARNING,AGENCY,70,,13/06/2022,41019982,2032.8,18421,PROTOCOL NATIONAL LIMITED
INSERTED DETAIL,,Ealing Council,http://opendatacommunities.org/id/london-borough-council/ealing,CAPITAL SCHEMES,K,PLACE DELIVERY,"CAPITAL � PLANT, FURNITURE AND EQUIPMENT",7400,,29/04/2022,41022073,9303,28795,ONE51 ES PLASTICS (UK) LIMITED T/A MGB PLASTICS
INSERTED DETAIL,,Ealing Council,http://opendatacommunities.org/id/london-borough-council/ealing,CAPITAL SCHEMES,K,PLACE DELIVERY,"CAPITAL � PLANT, FURNITURE AND EQUIPMENT",7400,,29/04/2022,41022074,9303,28795,ONE51 ES PLASTICS (UK) LIMITED T/A MGB PLASTICS
INSERTED DETAIL,,Ealing Council,http://opendatacommunities.org/id/london-borough-council/ealing,CAPITAL SCHEMES,K,PLACE DELIVERY,"CAPITAL � PLANT, FURNITURE AND EQUIPMENT",7400,,25/04/2022,41022075,16200,28795,ONE51 ES PLASTICS (UK) LIMITED T/A MGB PLASTICS
INSERTED DETAIL,,Ealing Council,http://opendatacommunities.org/id/london-borough-council/ealing,CAPITAL SCHEMES,K,PLACE DELIVERY,"CAPITAL � PLANT, FURNITURE AND EQUIPMENT",7400,,19/07/2022,41022906,982.8,9900018,THE COMPOST BAG COMPANY LTD
INSERTED DETAIL,,Ealing Council,http://opendatacommunities.org/id/london-borough-council/ealing,CHIEF EXECUTIVE DIRECTORATE,5,ICT,COMP OUTSOURCED SERVICES,3220,,25/02/2022,41022596,1650,10276,NEC SOFTWARE SOLUTIONS UK LIMITED
INSERTED DETAIL,,Ealing Council,http://opendatacommunities.org/id/london-borough-council/ealing,CHIEF EXECUTIVE DIRECTORATE,5,ICT,COMP OUTSOURCED SERVICES,3220,,19/05/2022,41019816,3450,11089,CIVICA UK LIMITED
INSERTED DETAIL,,Ealing Council,http://opendatacommunities.org/id/london-borough-council/ealing,CHIEF EXECUTIVE DIRECTORATE,5,PROPERTY SERVICES,PROGRAMMED MAINTENANCE,1510,,15/07/2022,41022726,320,26573,LAKER BUILDING MANAGEMENT SOLUTIONS LIMITED
INSERTED DETAIL,,Ealing Council,http://opendatacommunities.org/id/london-borough-council/ealing,CHIEF EXECUTIVE DIRECTORATE,5,PROPERTY SERVICES,PROGRAMMED MAINTENANCE,1510,,15/07/2022,41022723,250,26573,LAKER BUILDING MANAGEMENT SOLUTIONS LIMITED
INSERTED DETAIL,,Ealing Council,http://opendatacommunities.org/id/london-borough-council/ealing,CHIEF EXECUTIVE DIRECTORATE,5,PROPERTY SERVICES,PROGRAMMED MAINTENANCE,1510,,15/07/2022,41022773,1239.44,26573,LAKER BUILDING MANAGEMENT SOLUTIONS LIMITED
INSERTED DETAIL,,Ealing Council,http://opendatacommunities.org/id/london-borough-council/ealing,CHIEF EXECUTIVE DIRECTORATE,5,PROPERTY SERVICES,PROGRAMMED MAINTENANCE,1510,,15/07/2022,41022725,1190,26573,LAKER BUILDING MANAGEMENT SOLUTIONS LIMITED
INSERTED DETAIL,,Ealing Council,http://opendatacommunities.org/id/london-borough-council/ealing,CHIEF EXECUTIVE DIRECTORATE,5,PROPERTY SERVICES,PROGRAMMED MAINTENANCE,1510,,15/07/2022,41022724,260,26573,LAKER BUILDING MANAGEMENT SOLUTIONS LIMITED
INSERTED DETAIL,,Ealing Council,http://opendatacommunities.org/id/london-borough-council/ealing,CHIEF EXECUTIVE DIRECTORATE,5,PROPERTY SERVICES,PROGRAMMED MAINTENANCE,1510,,06/07/2022,41021274,3000,26573,LAKER BUILDING MANAGEMENT SOLUTIONS LIMITED
INSERTED DETAIL,,Ealing Council,http://opendatacommunities.org/id/london-borough-council/ealing,CHIEF EXECUTIVE DIRECTORATE,5,PROPERTY SERVICES,PROGRAMMED MAINTENANCE,1510,,18/07/2022,41022636,600,27319,EVANS AND BROOKS FIRE LTD
INSERTED DETAIL,,Ealing Council,http://opendatacommunities.org/id/london-borough-council/ealing,CHIEF EXECUTIVE DIRECTORATE,5,PROPERTY SERVICES,PROGRAMMED MAINTENANCE,1510,,30/06/2022,41020753,265,26031,BEAUCARE MEDICAL LTD
INSERTED DETAIL,,Ealing Council,http://opendatacommunities.org/id/london-borough-council/ealing,CHIEF EXECUTIVE DIRECTORATE,5,PROPERTY SERVICES,PROGRAMMED MAINTENANCE,1510,,14/07/2022,41022144,1010,26347,R.O.D. DRAINTECH LIMITED
INSERTED DETAIL,,Ealing Council,http://opendatacommunities.org/id/london-borough-council/ealing,CHIEF EXECUTIVE DIRECTORATE,5,PROPERTY SERVICES,PROGRAMMED MAINTENANCE,1510,,18/07/2022,41022719,412.75,27319,EVANS AND BROOKS FIRE LTD
INSERTED DETAIL,,Ealing Council,http://opendatacommunities.org/id/london-borough-council/ealing,CHIEF EXECUTIVE DIRECTORATE,5,PROPERTY SERVICES,PROGRAMMED MAINTENANCE,1510,,18/07/2022,41022718,399.5,27319,EVANS AND BROOKS FIRE LTD
INSERTED DETAIL,,Ealing Council,http://opendatacommunities.org/id/london-borough-council/ealing,CHIEF EXECUTIVE DIRECTORATE,5,PROPERTY SERVICES,PROGRAMMED MAINTENANCE,1510,,18/07/2022,41022643,1635,27319,EVANS AND BROOKS FIRE LTD
INSERTED DETAIL,,Ealing Council,http://opendatacommunities.org/id/london-borough-council/ealing,CHIEF EXECUTIVE DIRECTORATE,5,PROPERTY SERVICES,PROGRAMMED MAINTENANCE,1510,,18/07/2022,41022642,2041.3,27319,EVANS AND BROOKS FIRE LTD
INSERTED DETAIL,,Ealing Council,http://opendatacommunities.org/id/london-borough-council/ealing,CHIEF EXECUTIVE DIRECTORATE,5,PROPERTY SERVICES,PROGRAMMED MAINTENANCE,1510,,12/07/2022,41021645,4193.98,27105,H2O NATIONWIDE LIMITED
INSERTED DETAIL,,Ealing Council,http://opendatacommunities.org/id/london-borough-council/ealing,CHIEF EXECUTIVE DIRECTORATE,5,PROPERTY SERVICES,PROGRAMMED MAINTENANCE,1510,,12/07/2022,41021658,635.35,27105,H2O NATIONWIDE LIMITED
INSERTED DETAIL,,Ealing Council,http://opendatacommunities.org/id/london-borough-council/ealing,CHIEF EXECUTIVE DIRECTORATE,5,PROPERTY SERVICES,PROGRAMMED MAINTENANCE,1510,,12/07/2022,41021661,404.28,27105,H2O NATIONWIDE LIMITED
INSERTED DETAIL,,Ealing Council,http://opendatacommunities.org/id/london-borough-council/ealing,CHIEF EXECUTIVE DIRECTORATE,5,PROPERTY SERVICES,PROGRAMMED MAINTENANCE,1510,,12/07/2022,41021655,440,27105,H2O NATIONWIDE LIMITED
INSERTED DETAIL,,Ealing Council,http://opendatacommunities.org/id/london-borough-council/ealing,CHIEF EXECUTIVE DIRECTORATE,5,PROPERTY SERVICES,PROGRAMMED MAINTENANCE,1510,,11/07/2022,41021913,1014,26218,J REDPATH BUCHANAN & CO LTD
INSERTED DETAIL,,Ealing Council,http://opendatacommunities.org/id/london-borough-council/ealing,CHIEF EXECUTIVE DIRECTORATE,5,PROPERTY SERVICES,PROGRAMMED MAINTENANCE,1510,,30/06/2022,41020754,377,26031,BEAUCARE MEDICAL LTD
INSERTED DETAIL,,Ealing Council,http://opendatacommunities.org/id/london-borough-council/ealing,CHILDREN & ADULTS,1,DISABILITIES,TRAINING,80,,30/06/2022,41020224,658,10181,ALAN JOHN ASSOCIATES LTD
INSERTED DETAIL,,Ealing Council,http://opendatacommunities.org/id/london-borough-council/ealing,CAPITAL SCHEMES,K,HRA,CAPITAL - CONTRACT PAYMENTS,7200,,21/06/2022,41018895,900,21205,CALFORDSEADEN LLP
INSERTED DETAIL,,Ealing Council,http://opendatacommunities.org/id/london-borough-council/ealing,CAPITAL SCHEMES,K,HRA,CAPITAL � CAPITALISATION OF SALARIES,7590,,31/03/2022,41011401,2572,29072,SOURCE PARTNERSHIP CONSULTING LTD
INSERTED DETAIL,,Ealing Council,http://opendatacommunities.org/id/london-borough-council/ealing,CAPITAL SCHEMES,K,HRA,CAPITAL � CAPITALISATION OF SALARIES,7590,,06/04/2022,41020759,1250,20887,SWECO CONSULTING ENGINEERS LIMITED
INSERTED DETAIL,,Ealing Council,http://opendatacommunities.org/id/london-borough-council/ealing,CAPITAL SCHEMES,K,HRA,CAPITAL � CAPITALISATION OF SALARIES,7590,,30/06/2022,41020071,18986,23679,ATKINS LIMITED T/A FAITHFUL + GOULD LTD
INSERTED DETAIL,,Ealing Council,http://opendatacommunities.org/id/london-borough-council/ealing,CAPITAL SCHEMES,K,HRA,CAPITAL � CAPITALISATION OF SALARIES,7590,,30/06/2022,41020072,10588,23679,ATKINS LIMITED T/A FAITHFUL + GOULD LTD
INSERTED DETAIL,,Ealing Council,http://opendatacommunities.org/id/london-borough-council/ealing,PLACE,6,STREET SERVICES,PAYMENTS TO CONTRACTORS,4000,,08/07/2022,41020086,83452.85,28826,GREENER EALING LIMITED
INSERTED DETAIL,,Ealing Council,http://opendatacommunities.org/id/london-borough-council/ealing,PLACE,6,HOUSING BUSINESS PLANNING,RENTS,1200,,30/06/2022,41020206,948.99,23040,ALLPAY.NET
INSERTED DETAIL,,Ealing Council,http://opendatacommunities.org/id/london-borough-council/ealing,PLACE,6,HOUSING BUSINESS PLANNING,RENTS,1200,,30/06/2022,41020207,2529.58,23040,ALLPAY.NET
INSERTED DETAIL,,Ealing Council,http://opendatacommunities.org/id/london-borough-council/ealing,CAPITAL SCHEMES,K,COMMUNITY DEVELOPMENT,CAPITAL - CONTRACT PAYMENTS,7200,,05/07/2022,41020725,458.65,11538,DRAYTON FENCING COMPANY
INSERTED DETAIL,,Ealing Council,http://opendatacommunities.org/id/london-borough-council/ealing,CAPITAL SCHEMES,K,COMMUNITY DEVELOPMENT,CAPITAL - CONTRACT PAYMENTS,7200,,05/07/2022,41020961,269.5,17880,SAFE PARTNERSHIP LIMITED
INSERTED DETAIL,,Ealing Council,http://opendatacommunities.org/id/london-borough-council/ealing,CAPITAL SCHEMES,K,COMMUNITY DEVELOPMENT,CAPITAL - CONTRACT PAYMENTS,7200,,12/07/2022,41022024,342.5,17880,SAFE PARTNERSHIP LIMITED
INSERTED DETAIL,,Ealing Council,http://opendatacommunities.org/id/london-borough-council/ealing,PLACE,6,RESIDENT SERVICES,PAYMENTS TO CONTRACTORS,4000,,30/06/2022,41020100,1000,28712,RIGHTMOVE GROUP LIMITED
INSERTED DETAIL,,Ealing Council,http://opendatacommunities.org/id/london-borough-council/ealing,PLACE,6,RESIDENT SERVICES,REPAIR AND MAINTENANCE,1410,,30/06/2021,41020361,1926,13883,ORBIS PROTECT LIMITED
INSERTED DETAIL,,Ealing Council,http://opendatacommunities.org/id/london-borough-council/ealing,PLACE,6,EMPLOYMENT SKILLS AND ADULT LEARNING,PAYMENTS TO CONTRACTORS,4000,,01/07/2022,41020220,1440,30165,CENTRE FOR ARMENIAN INFO & ADV
INSERTED DETAIL,,Ealing Council,http://opendatacommunities.org/id/london-borough-council/ealing,CORPORATE ITEMS,7,COVID-19,MINOR EQUIP PURCHASE,3320,,28/06/2022,41020172,1165827.95,27936,HAWK INCENTIVES LIMITED (CCS FRAMEWORK)
INSERTED DETAIL,,Ealing Council,http://opendatacommunities.org/id/london-borough-council/ealing,CORPORATE ITEMS,7,COVID-19,PAYMENTS TO CONTRACTORS,4000,,28/07/2022,41022940,574,9900018,REDACTED SENSITIVE SUPPLIER
INSERTED DETAIL,,Ealing Council,http://opendatacommunities.org/id/london-borough-council/ealing,CORPORATE ITEMS,7,COVID-19,PAYMENTS TO CONTRACTORS,4000,,28/07/2022,41022942,422,9900018,REDACTED SENSITIVE SUPPLIER
INSERTED DETAIL,,Ealing Council,http://opendatacommunities.org/id/london-borough-council/ealing,CORPORATE ITEMS,7,COVID-19,PAYMENTS TO CONTRACTORS,4000,,28/07/2022,41022952,730,9900018,REDACTED SENSITIVE SUPPLIER
INSERTED DETAIL,,Ealing Council,http://opendatacommunities.org/id/london-borough-council/ealing,CORPORATE ITEMS,7,COVID-19,PAYMENTS TO CONTRACTORS,4000,,28/07/2022,41022958,400,9900018,REDACTED SENSITIVE SUPPLIER
INSERTED DETAIL,,Ealing Council,http://opendatacommunities.org/id/london-borough-council/ealing,CORPORATE ITEMS,7,COVID-19,PAYMENTS TO CONTRACTORS,4000,,28/07/2022,41022963,622,9900018,REDACTED SENSITIVE SUPPLIER
INSERTED DETAIL,,Ealing Council,http://opendatacommunities.org/id/london-borough-council/ealing,CORPORATE ITEMS,7,COVID-19,PAYMENTS TO CONTRACTORS,4000,,26/07/2022,41022402,1000,9900018,REDACTED SENSITIVE SUPPLIER
INSERTED DETAIL,,Ealing Council,http://opendatacommunities.org/id/london-borough-council/ealing,CORPORATE ITEMS,7,COVID-19,PAYMENTS TO CONTRACTORS,4000,,19/07/2022,41021892,1170,9900018,REDACTED SENSITIVE SUPPLIER
INSERTED DETAIL,,Ealing Council,http://opendatacommunities.org/id/london-borough-council/ealing,CORPORATE ITEMS,7,COVID-19,PAYMENTS TO CONTRACTORS,4000,,19/07/2022,41021893,704,9900018,REDACTED SENSITIVE SUPPLIER
INSERTED DETAIL,,Ealing Council,http://opendatacommunities.org/id/london-borough-council/ealing,CORPORATE ITEMS,7,COVID-19,PAYMENTS TO CONTRACTORS,4000,,20/07/2022,41021901,980,9900018,REDACTED SENSITIVE SUPPLIER
INSERTED DETAIL,,Ealing Council,http://opendatacommunities.org/id/london-borough-council/ealing,CORPORATE ITEMS,7,COVID-19,PAYMENTS TO CONTRACTORS,4000,,20/07/2022,41021949,400,9900018,REDACTED SENSITIVE SUPPLIER
INSERTED DETAIL,,Ealing Council,http://opendatacommunities.org/id/london-borough-council/ealing,CORPORATE ITEMS,7,COVID-19,PAYMENTS TO CONTRACTORS,4000,,25/07/2022,41022306,380,9900018,REDACTED SENSITIVE SUPPLIER
INSERTED DETAIL,,Ealing Council,http://opendatacommunities.org/id/london-borough-council/ealing,CORPORATE ITEMS,7,COVID-19,PAYMENTS TO CONTRACTORS,4000,,26/07/2022,41022325,400,9900018,REDACTED SENSITIVE SUPPLIER
INSERTED DETAIL,,Ealing Council,http://opendatacommunities.org/id/london-borough-council/ealing,CORPORATE ITEMS,7,COVID-19,PAYMENTS TO CONTRACTORS,4000,,13/07/2022,41021419,309,9900018,SUNNIA SAJID
INSERTED DETAIL,,Ealing Council,http://opendatacommunities.org/id/london-borough-council/ealing,CORPORATE ITEMS,7,COVID-19,PAYMENTS TO CONTRACTORS,4000,,14/07/2022,41021456,355,9900018,REDACTED SENSITIVE SUPPLIER
INSERTED DETAIL,,Ealing Council,http://opendatacommunities.org/id/london-borough-council/ealing,CORPORATE ITEMS,7,COVID-19,PAYMENTS TO CONTRACTORS,4000,,14/07/2022,41021459,570,9900018,REDACTED SENSITIVE SUPPLIER
INSERTED DETAIL,,Ealing Council,http://opendatacommunities.org/id/london-borough-council/ealing,CORPORATE ITEMS,7,COVID-19,PAYMENTS TO CONTRACTORS,4000,,14/07/2022,41021476,296,9900018,REDACTED SENSITIVE SUPPLIER
INSERTED DETAIL,,Ealing Council,http://opendatacommunities.org/id/london-borough-council/ealing,CORPORATE ITEMS,7,COVID-19,PAYMENTS TO CONTRACTORS,4000,,14/07/2022,41021478,250,9900018,REDACTED SENSITIVE SUPPLIER
INSERTED DETAIL,,Ealing Council,http://opendatacommunities.org/id/london-borough-council/ealing,CHIEF EXECUTIVE DIRECTORATE,5,PROPERTY SERVICES,PROGRAMMED MAINTENANCE,1510,,30/06/2022,41021501,4702.5,25639,LAPLACE BUILDING SOLUTIONS (SOUTH) LTD
INSERTED DETAIL,,Ealing Council,http://opendatacommunities.org/id/london-borough-council/ealing,CHIEF EXECUTIVE DIRECTORATE,5,PROPERTY SERVICES,CIS REPAIRS AND MAINTENANCE,1411,,31/03/2022,41020166,270,25639,LAPLACE BUILDING SOLUTIONS (SOUTH) LTD
INSERTED DETAIL,,Ealing Council,http://opendatacommunities.org/id/london-borough-council/ealing,CHIEF EXECUTIVE DIRECTORATE,5,PROPERTY SERVICES,PROGRAMMED MAINTENANCE,1510,,12/07/2022,41021643,758,27105,H2O NATIONWIDE LIMITED
INSERTED DETAIL,,Ealing Council,http://opendatacommunities.org/id/london-borough-council/ealing,CHIEF EXECUTIVE DIRECTORATE,5,PROPERTY SERVICES,PROGRAMMED MAINTENANCE,1510,,12/07/2022,41021644,2916,27105,H2O NATIONWIDE LIMITED
INSERTED DETAIL,,Ealing Council,http://opendatacommunities.org/id/london-borough-council/ealing,CHIEF EXECUTIVE DIRECTORATE,5,PROPERTY SERVICES,PROGRAMMED MAINTENANCE,1510,,13/07/2022,41022083,486,27105,H2O NATIONWIDE LIMITED
INSERTED DETAIL,,Ealing Council,http://opendatacommunities.org/id/london-borough-council/ealing,CHIEF EXECUTIVE DIRECTORATE,5,PROPERTY SERVICES,PROGRAMMED MAINTENANCE,1510,,12/07/2022,41021657,686.16,27105,H2O NATIONWIDE LIMITED
INSERTED DETAIL,,Ealing Council,http://opendatacommunities.org/id/london-borough-council/ealing,CHIEF EXECUTIVE DIRECTORATE,5,PROPERTY SERVICES,PROGRAMMED MAINTENANCE,1510,,06/07/2022,41021264,2600,26573,LAKER BUILDING MANAGEMENT SOLUTIONS LIMITED
INSERTED DETAIL,,Ealing Council,http://opendatacommunities.org/id/london-borough-council/ealing,CHIEF EXECUTIVE DIRECTORATE,5,PROPERTY SERVICES,PROGRAMMED MAINTENANCE,1510,,06/07/2022,41021605,360,26573,LAKER BUILDING MANAGEMENT SOLUTIONS LIMITED
INSERTED DETAIL,,Ealing Council,http://opendatacommunities.org/id/london-borough-council/ealing,CHIEF EXECUTIVE DIRECTORATE,5,PROPERTY SERVICES,PROGRAMMED MAINTENANCE,1510,,06/07/2022,41021607,1742.45,26573,LAKER BUILDING MANAGEMENT SOLUTIONS LIMITED
INSERTED DETAIL,,Ealing Council,http://opendatacommunities.org/id/london-borough-council/ealing,CHIEF EXECUTIVE DIRECTORATE,5,PROPERTY SERVICES,CIS REPAIRS AND MAINTENANCE,1411,,24/06/2022,41020830,370,27986,DIRECT CATERING EQUIPMENT LTD
INSERTED DETAIL,,Ealing Council,http://opendatacommunities.org/id/london-borough-council/ealing,CHIEF EXECUTIVE DIRECTORATE,5,PROPERTY SERVICES,PROGRAMMED MAINTENANCE,1510,,30/06/2022,41021547,920,25262,APEX REFRIGERATION & AIR CONDITIONING LTD
INSERTED DETAIL,,Ealing Council,http://opendatacommunities.org/id/london-borough-council/ealing,CHIEF EXECUTIVE DIRECTORATE,5,PROPERTY SERVICES,PROGRAMMED MAINTENANCE,1510,,30/06/2022,41021545,7885,25262,APEX REFRIGERATION & AIR CONDITIONING LTD
INSERTED DETAIL,,Ealing Council,http://opendatacommunities.org/id/london-borough-council/ealing,PLACE,6,ECONOMIC GROWTH,PAYMENTS TO CONTRACTORS,4000,,22/07/2022,41022294,4950,29929,IMPACT DATA METRICS LIMITED
INSERTED DETAIL,,Ealing Council,http://opendatacommunities.org/id/london-borough-council/ealing,PLACE,6,PLANNING AND ENVIRONMENTAL ENFORCEMENT,COMPENSATION  PAYMENTS,2900,,05/07/2022,41020410,2600,9900017,MASMA LIMITED
INSERTED DETAIL,,Ealing Council,http://opendatacommunities.org/id/london-borough-council/ealing,PLACE,6,HOUSING  DEMAND,RENTS,1200,,09/08/2021,41020148,4500,10232,ALTWOOD PROPERTIES LTD
INSERTED DETAIL,,Ealing Council,http://opendatacommunities.org/id/london-borough-council/ealing,PLACE,6,HOUSING  DEMAND,RENTS,1200,,07/12/2021,41020149,1500,10232,ALTWOOD PROPERTIES LTD
INSERTED DETAIL,,Ealing Council,http://opendatacommunities.org/id/london-borough-council/ealing,PLACE,6,HOUSING  DEMAND,RENTS,1200,,12/01/2022,41020150,1500,10232,ALTWOOD PROPERTIES LTD
INSERTED DETAIL,,Ealing Council,http://opendatacommunities.org/id/london-borough-council/ealing,PLACE,6,HOUSING  DEMAND,RENTS,1200,,01/04/2021,41019861,3000,27021,ASK ESTATES LIMITED
INSERTED DETAIL,,Ealing Council,http://opendatacommunities.org/id/london-borough-council/ealing,PLACE,6,HOUSING  DEMAND,RENTS,1200,,04/07/2022,41020576,1000,26961,CASTLE RESIDENTIAL HOUSING LTD
INSERTED DETAIL,,Ealing Council,http://opendatacommunities.org/id/london-borough-council/ealing,PLACE,6,HOUSING  DEMAND,RENTS,1200,,04/07/2022,41020577,2000,26961,CASTLE RESIDENTIAL HOUSING LTD
INSERTED DETAIL,,Ealing Council,http://opendatacommunities.org/id/london-borough-council/ealing,PLACE,6,HOUSING  DEMAND,RENTS,1200,,28/06/2022,41019750,441.86,9900017,REDACTED SENSITIVE SUPPLIER
INSERTED DETAIL,,Ealing Council,http://opendatacommunities.org/id/london-borough-council/ealing,PLACE,6,HOUSING  DEMAND,RENTS,1200,,01/07/2022,41020422,1000,9900017,REDACTED SENSITIVE SUPPLIER
INSERTED DETAIL,,Ealing Council,http://opendatacommunities.org/id/london-borough-council/ealing,PLACE,6,HOUSING  DEMAND,RENTS,1200,,05/07/2022,41020457,1282.2,9900017,CITY ESTATES MANAGEMENT LTD T/A CITY ESTATES CLIENT A/C
INSERTED DETAIL,,Ealing Council,http://opendatacommunities.org/id/london-borough-council/ealing,PLACE,6,HOUSING  DEMAND,RENTS,1200,,30/05/2022,41021186,3000,9900017,NETWORK HOUSING SOLUTIONS LIMITED
INSERTED DETAIL,,Ealing Council,http://opendatacommunities.org/id/london-borough-council/ealing,PLACE,6,HOUSING  DEMAND,RENTS,1200,,01/07/2022,41020299,4000,27916,MIDLAND RELOCATION LTD
INSERTED DETAIL,,Ealing Council,http://opendatacommunities.org/id/london-borough-council/ealing,PLACE,6,HOUSING  DEMAND,RENTS,1200,,15/07/2022,41022648,3000,28181,REDACTED SENSITIVE SUPPLIER
INSERTED DETAIL,,Ealing Council,http://opendatacommunities.org/id/london-borough-council/ealing,PLACE,6,HOUSING  DEMAND,RENTS,1200,,18/07/2022,41021816,641.1,9900017,CITY ESTATES MANAGEMENT LIMITED T/A CITY ESTATES (CLIENT A/C)
INSERTED DETAIL,,Ealing Council,http://opendatacommunities.org/id/london-borough-council/ealing,PLACE,6,HOUSING  DEMAND,RENTS,1200,,01/07/2022,41020422,502.92,9900017,REDACTED SENSITIVE SUPPLIER
INSERTED DETAIL,,Ealing Council,http://opendatacommunities.org/id/london-borough-council/ealing,PLACE,6,HOUSING  DEMAND,RENTS,1200,,22/07/2022,41022286,5500,9900017,CARIDON PROPERTY LIMITED
INSERTED DETAIL,,Ealing Council,http://opendatacommunities.org/id/london-borough-council/ealing,PLACE,6,HOUSING  DEMAND,RENTS,1200,,28/06/2022,41019750,5000,9900017,REDACTED SENSITIVE SUPPLIER
INSERTED DETAIL,,Ealing Council,http://opendatacommunities.org/id/london-borough-council/ealing,CHILDREN & ADULTS,1,SAFEGUARDING & SUPPORT - CIC,CHILDRENS SERVICES -ELIGIBLE CHILDREN OTHER COSTS,4282,,05/07/2022,23193033,2000,200533,REDACTED SENSITIVE SUPPLIER
INSERTED DETAIL,,Ealing Council,http://opendatacommunities.org/id/london-borough-council/ealing,CHILDREN & ADULTS,1,SAFEGUARDING & SUPPORT - CIC,CHILDRENS SERVICES -ELIGIBLE CHILDREN OTHER COSTS,4282,,19/07/2022,23196239,370,200559,REDACTED SENSITIVE SUPPLIER
INSERTED DETAIL,,Ealing Council,http://opendatacommunities.org/id/london-borough-council/ealing,CHILDREN & ADULTS,1,SAFEGUARDING & SUPPORT - CIC,CHILDRENS SERVICES -ELIGIBLE CHILDREN OTHER COSTS,4282,,06/07/2022,23193181,1792.64,200889,REDACTED SENSITIVE SUPPLIER
INSERTED DETAIL,,Ealing Council,http://opendatacommunities.org/id/london-borough-council/ealing,CORPORATE ITEMS,7,COVID-19,PAYMENTS TO CONTRACTORS,4000,,19/07/2022,41021814,400,9900018,REDACTED SENSITIVE SUPPLIER
INSERTED DETAIL,,Ealing Council,http://opendatacommunities.org/id/london-borough-council/ealing,CORPORATE ITEMS,7,COVID-19,PAYMENTS TO CONTRACTORS,4000,,04/07/2022,41020127,316,9900018,REDACTED SENSITIVE SUPPLIER
INSERTED DETAIL,,Ealing Council,http://opendatacommunities.org/id/london-borough-council/ealing,CORPORATE ITEMS,7,COVID-19,PAYMENTS TO CONTRACTORS,4000,,04/07/2022,41020129,310,9900018,STEPHANIE ANN BURKSFIELD
INSERTED DETAIL,,Ealing Council,http://opendatacommunities.org/id/london-borough-council/ealing,CORPORATE ITEMS,7,COVID-19,PAYMENTS TO CONTRACTORS,4000,,04/07/2022,41020132,465,9900018,REDACTED SENSITIVE SUPPLIER
INSERTED DETAIL,,Ealing Council,http://opendatacommunities.org/id/london-borough-council/ealing,CORPORATE ITEMS,7,COVID-19,PAYMENTS TO CONTRACTORS,4000,,30/06/2022,41019818,400,9900018,REDACTED SENSITIVE SUPPLIER
INSERTED DETAIL,,Ealing Council,http://opendatacommunities.org/id/london-borough-council/ealing,CORPORATE ITEMS,7,COVID-19,PAYMENTS TO CONTRACTORS,4000,,30/06/2022,41019819,271,9900018,REDACTED SENSITIVE SUPPLIER
INSERTED DETAIL,,Ealing Council,http://opendatacommunities.org/id/london-borough-council/ealing,CORPORATE ITEMS,7,COVID-19,PAYMENTS TO CONTRACTORS,4000,,12/07/2022,41021256,400,9900018,REDACTED SENSITIVE SUPPLIER
INSERTED DETAIL,,Ealing Council,http://opendatacommunities.org/id/london-borough-council/ealing,CORPORATE ITEMS,7,COVID-19,PAYMENTS TO CONTRACTORS,4000,,06/07/2022,41020621,701,9900018,REDACTED SENSITIVE SUPPLIER
INSERTED DETAIL,,Ealing Council,http://opendatacommunities.org/id/london-borough-council/ealing,CORPORATE ITEMS,7,COVID-19,PAYMENTS TO CONTRACTORS,4000,,07/07/2022,41020675,1000,9900018,REDACTED SENSITIVE SUPPLIER
INSERTED DETAIL,,Ealing Council,http://opendatacommunities.org/id/london-borough-council/ealing,CORPORATE ITEMS,7,COVID-19,PAYMENTS TO CONTRACTORS,4000,,07/07/2022,41020676,269,9900018,REDACTED SENSITIVE SUPPLIER
INSERTED DETAIL,,Ealing Council,http://opendatacommunities.org/id/london-borough-council/ealing,CORPORATE ITEMS,7,COVID-19,PAYMENTS TO CONTRACTORS,4000,,30/06/2022,41020095,400,9900018,REDACTED SENSITIVE SUPPLIER
INSERTED DETAIL,,Ealing Council,http://opendatacommunities.org/id/london-borough-council/ealing,CORPORATE ITEMS,7,COVID-19,PAYMENTS TO CONTRACTORS,4000,,10/06/2022,41020106,260,9900018,REDACTED SENSITIVE SUPPLIER
INSERTED DETAIL,,Ealing Council,http://opendatacommunities.org/id/london-borough-council/ealing,CORPORATE ITEMS,7,COVID-19,PAYMENTS TO CONTRACTORS,4000,,01/07/2022,41020109,373,9900018,REDACTED SENSITIVE SUPPLIER
INSERTED DETAIL,,Ealing Council,http://opendatacommunities.org/id/london-borough-council/ealing,CORPORATE ITEMS,7,COVID-19,PAYMENTS TO CONTRACTORS,4000,,05/07/2022,41020302,342,9900018,REDACTED SENSITIVE SUPPLIER
INSERTED DETAIL,,Ealing Council,http://opendatacommunities.org/id/london-borough-council/ealing,CORPORATE ITEMS,7,COVID-19,PAYMENTS TO CONTRACTORS,4000,,05/07/2022,41020377,400,9900018,REDACTED SENSITIVE SUPPLIER
INSERTED DETAIL,,Ealing Council,http://opendatacommunities.org/id/london-borough-council/ealing,CORPORATE ITEMS,7,COVID-19,PAYMENTS TO CONTRACTORS,4000,,06/07/2022,41020439,619,9900018,REDACTED SENSITIVE SUPPLIER
INSERTED DETAIL,,Ealing Council,http://opendatacommunities.org/id/london-borough-council/ealing,CORPORATE ITEMS,7,COVID-19,PAYMENTS TO CONTRACTORS,4000,,06/07/2022,41020441,610,9900018,REDACTED SENSITIVE SUPPLIER
INSERTED DETAIL,,Ealing Council,http://opendatacommunities.org/id/london-borough-council/ealing,CORPORATE ITEMS,7,COVID-19,PAYMENTS TO CONTRACTORS,4000,,06/07/2022,41020443,400,9900018,REDACTED SENSITIVE SUPPLIER
INSERTED DETAIL,,Ealing Council,http://opendatacommunities.org/id/london-borough-council/ealing,CORPORATE ITEMS,7,COVID-19,PAYMENTS TO CONTRACTORS,4000,,06/07/2022,41020501,400,9900018,REDACTED SENSITIVE SUPPLIER
INSERTED DETAIL,,Ealing Council,http://opendatacommunities.org/id/london-borough-council/ealing,CORPORATE ITEMS,7,COVID-19,PAYMENTS TO CONTRACTORS,4000,,13/07/2022,41021300,790,9900018,REDACTED SENSITIVE SUPPLIER
INSERTED DETAIL,,Ealing Council,http://opendatacommunities.org/id/london-borough-council/ealing,CORPORATE ITEMS,7,COVID-19,PAYMENTS TO CONTRACTORS,4000,,13/07/2022,41021301,283,9900018,REDACTED SENSITIVE SUPPLIER
INSERTED DETAIL,,Ealing Council,http://opendatacommunities.org/id/london-borough-council/ealing,CORPORATE ITEMS,7,COVID-19,PAYMENTS TO CONTRACTORS,4000,,04/07/2022,41020251,700,9900018,REDACTED SENSITIVE SUPPLIER
INSERTED DETAIL,,Ealing Council,http://opendatacommunities.org/id/london-borough-council/ealing,CORPORATE ITEMS,7,COVID-19,PAYMENTS TO CONTRACTORS,4000,,04/07/2022,41020252,780,9900018,REDACTED SENSITIVE SUPPLIER
INSERTED DETAIL,,Ealing Council,http://opendatacommunities.org/id/london-borough-council/ealing,CORPORATE ITEMS,7,COVID-19,PAYMENTS TO CONTRACTORS,4000,,04/07/2022,41020254,380,9900018,REDACTED SENSITIVE SUPPLIER
INSERTED DETAIL,,Ealing Council,http://opendatacommunities.org/id/london-borough-council/ealing,CORPORATE ITEMS,7,COVID-19,PAYMENTS TO CONTRACTORS,4000,,04/07/2022,41020255,311,9900018,REDACTED SENSITIVE SUPPLIER
INSERTED DETAIL,,Ealing Council,http://opendatacommunities.org/id/london-borough-council/ealing,CORPORATE ITEMS,7,COVID-19,PAYMENTS TO CONTRACTORS,4000,,06/07/2022,41020969,400,9900018,REDACTED SENSITIVE SUPPLIER
INSERTED DETAIL,,Ealing Council,http://opendatacommunities.org/id/london-borough-council/ealing,CORPORATE ITEMS,7,COVID-19,PAYMENTS TO CONTRACTORS,4000,,12/07/2022,41021086,400,9900018,REDACTED SENSITIVE SUPPLIER
INSERTED DETAIL,,Ealing Council,http://opendatacommunities.org/id/london-borough-council/ealing,CORPORATE ITEMS,7,COVID-19,PAYMENTS TO CONTRACTORS,4000,,12/07/2022,41021087,400,9900018,REDACTED SENSITIVE SUPPLIER
INSERTED DETAIL,,Ealing Council,http://opendatacommunities.org/id/london-borough-council/ealing,CORPORATE ITEMS,7,COVID-19,PAYMENTS TO CONTRACTORS,4000,,12/07/2022,41021090,271,9900018,REDACTED SENSITIVE SUPPLIER
INSERTED DETAIL,,Ealing Council,http://opendatacommunities.org/id/london-borough-council/ealing,CORPORATE ITEMS,7,COVID-19,PAYMENTS TO CONTRACTORS,4000,,12/07/2022,41021091,400,9900018,REDACTED SENSITIVE SUPPLIER
INSERTED DETAIL,,Ealing Council,http://opendatacommunities.org/id/london-borough-council/ealing,CHIEF EXECUTIVE DIRECTORATE,5,PROPERTY SERVICES,VEHICLE HIRE,2010,,01/07/2022,41020319,323.04,12371,MITSUBISHI HC CAPITAL UK PLC T/A NOVUNA VEHICLE SOLUTIONS
INSERTED DETAIL,,Ealing Council,http://opendatacommunities.org/id/london-borough-council/ealing,CHIEF EXECUTIVE DIRECTORATE,5,PROPERTY SERVICES,VEHICLE HIRE,2010,,30/06/2022,41019882,255.8,12371,MITSUBISHI HC CAPITAL UK PLC T/A NOVUNA VEHICLE SOLUTIONS
INSERTED DETAIL,,Ealing Council,http://opendatacommunities.org/id/london-borough-council/ealing,CHIEF EXECUTIVE DIRECTORATE,5,PROPERTY SERVICES,VEHICLE HIRE,2010,,30/06/2022,41019885,313.37,12371,MITSUBISHI HC CAPITAL UK PLC T/A NOVUNA VEHICLE SOLUTIONS
INSERTED DETAIL,,Ealing Council,http://opendatacommunities.org/id/london-borough-council/ealing,CHIEF EXECUTIVE DIRECTORATE,5,PROPERTY SERVICES,VEHICLE HIRE,2010,,30/06/2022,41019887,255.8,12371,MITSUBISHI HC CAPITAL UK PLC T/A NOVUNA VEHICLE SOLUTIONS
INSERTED DETAIL,,Ealing Council,http://opendatacommunities.org/id/london-borough-council/ealing,CHIEF EXECUTIVE DIRECTORATE,5,PROPERTY SERVICES,VEHICLE HIRE,2010,,01/07/2022,41020320,323.04,12371,MITSUBISHI HC CAPITAL UK PLC T/A NOVUNA VEHICLE SOLUTIONS
INSERTED DETAIL,,Ealing Council,http://opendatacommunities.org/id/london-borough-council/ealing,PLACE,6,HOUSING PROPERTY & ASSETS,REPAIR AND MAINTENANCE,1410,,30/06/2022,41021006,3900,29788,RESPONSE TEAM 247 LIMITED
INSERTED DETAIL,,Ealing Council,http://opendatacommunities.org/id/london-borough-council/ealing,PLACE,6,HOUSING PROPERTY & ASSETS,REPAIR AND MAINTENANCE,1410,,31/05/2022,41019605,576,29788,RESPONSE TEAM 247 LIMITED
INSERTED DETAIL,,Ealing Council,http://opendatacommunities.org/id/london-borough-council/ealing,PLACE,6,HOUSING  DEMAND,COMP OUTSOURCED SERVICES,3220,,30/06/2022,41020203,375.62,23040,ALLPAY.NET
INSERTED DETAIL,,Ealing Council,http://opendatacommunities.org/id/london-borough-council/ealing,PLACE,6,STRATEGIC PROPERTY,PAYMENTS TO CONTRACTORS,4000,,31/05/2022,41016639,12500,19633,LAMBERT SMITH HAMPTON GROUP LIMITED
INSERTED DETAIL,,Ealing Council,http://opendatacommunities.org/id/london-borough-council/ealing,PLACE,6,STRATEGIC PROPERTY,PAYMENTS TO CONTRACTORS,4000,,28/06/2022,41019608,3000,28751,CARTER JONAS SERVICE COMPANY
INSERTED DETAIL,,Ealing Council,http://opendatacommunities.org/id/london-borough-council/ealing,PLACE,6,STRATEGIC PROPERTY,PAYMENTS TO CONTRACTORS,4000,,28/06/2022,41019613,2422,28751,CARTER JONAS SERVICE COMPANY
INSERTED DETAIL,,Ealing Council,http://opendatacommunities.org/id/london-borough-council/ealing,PLACE,6,STRATEGIC PROPERTY,PAYMENTS TO CONTRACTORS,4000,,28/06/2022,41019620,20172.11,28751,CARTER JONAS SERVICE COMPANY
INSERTED DETAIL,,Ealing Council,http://opendatacommunities.org/id/london-borough-council/ealing,PLACE,6,STRATEGIC PROPERTY,PAYMENTS TO CONTRACTORS,4000,,28/06/2022,41019621,18871.19,28751,CARTER JONAS SERVICE COMPANY
INSERTED DETAIL,,Ealing Council,http://opendatacommunities.org/id/london-borough-council/ealing,PLACE,6,STRATEGIC PROPERTY,PAYMENTS TO CONTRACTORS,4000,,28/06/2022,41020949,10800,28751,CARTER JONAS SERVICE COMPANY
INSERTED DETAIL,,Ealing Council,http://opendatacommunities.org/id/london-borough-council/ealing,PLACE,6,STRATEGIC PROPERTY,PAYMENTS TO CONTRACTORS,4000,,22/03/2022,41020543,3000,28751,CARTER JONAS SERVICE COMPANY
INSERTED DETAIL,,Ealing Council,http://opendatacommunities.org/id/london-borough-council/ealing,PLACE,6,STRATEGIC PROPERTY,PAYMENTS TO CONTRACTORS,4000,,28/06/2022,41019612,19773.27,28751,CARTER JONAS SERVICE COMPANY
INSERTED DETAIL,,Ealing Council,http://opendatacommunities.org/id/london-borough-council/ealing,PLACE,6,STRATEGIC PROPERTY,PAYMENTS TO CONTRACTORS,4000,,25/04/2022,41012861,19777.38,28751,CARTER JONAS SERVICE COMPANY
INSERTED DETAIL,,Ealing Council,http://opendatacommunities.org/id/london-borough-council/ealing,CAPITAL SCHEMES,K,PLACE DELIVERY,CAPITAL - INFRASTRUCTURE ASSETS,7140,,29/06/2022,41019973,31736.71,13593,MURRILL CONSTRUCTION LIMITED
INSERTED DETAIL,,Ealing Council,http://opendatacommunities.org/id/london-borough-council/ealing,CHILDREN & ADULTS,1,PUBLIC HEALTH DRUGS AND ALCOHOL,PAYMENTS TO CONTRACTORS,4000,,24/06/2022,41019865,1080,11593,SUPPORT FOR LIVING LTD
INSERTED DETAIL,,Ealing Council,http://opendatacommunities.org/id/london-borough-council/ealing,CHILDREN & ADULTS,1,SAFEGUARDING & SUPPORT - SM,RECRUITMENT COSTS,510,,06/07/2022,41020767,476.73,29504,TRIPOD PARTNERS LTD
INSERTED DETAIL,,Ealing Council,http://opendatacommunities.org/id/london-borough-council/ealing,CHILDREN & ADULTS,1,SAFEGUARDING & SUPPORT - SM,RECRUITMENT COSTS,510,,06/07/2022,41020771,1213.98,29504,TRIPOD PARTNERS LTD
INSERTED DETAIL,,Ealing Council,http://opendatacommunities.org/id/london-borough-council/ealing,CHILDREN & ADULTS,1,SAFEGUARDING & SUPPORT - SM,RECRUITMENT COSTS,510,,06/07/2022,41020770,575.7,29504,TRIPOD PARTNERS LTD
INSERTED DETAIL,,Ealing Council,http://opendatacommunities.org/id/london-borough-council/ealing,CHILDREN & ADULTS,1,SAFEGUARDING & SUPPORT - SM,RECRUITMENT COSTS,510,,06/07/2022,41020769,608.49,29504,TRIPOD PARTNERS LTD
INSERTED DETAIL,,Ealing Council,http://opendatacommunities.org/id/london-borough-council/ealing,CHILDREN & ADULTS,1,SAFEGUARDING & SUPPORT - SM,RECRUITMENT COSTS,510,,23/06/2022,41019726,6652.99,29504,TRIPOD PARTNERS LTD
INSERTED DETAIL,,Ealing Council,http://opendatacommunities.org/id/london-borough-council/ealing,CHILDREN & ADULTS,1,SAFEGUARDING & SUPPORT - SM,RECRUITMENT COSTS,510,,20/05/2022,41019723,1767.62,29504,TRIPOD PARTNERS LTD
INSERTED DETAIL,,Ealing Council,http://opendatacommunities.org/id/london-borough-council/ealing,CHILDREN & ADULTS,1,SAFEGUARDING & SUPPORT - SM,RECRUITMENT COSTS,510,,18/03/2022,41019720,534.45,29504,TRIPOD PARTNERS LTD
INSERTED DETAIL,,Ealing Council,http://opendatacommunities.org/id/london-borough-council/ealing,CHILDREN & ADULTS,1,EARLY YEARS CHILDCARE & SAFE,CIS REPAIRS AND MAINTENANCE,1411,,07/07/2022,41021461,20000,25871,CENTURIAN SURFACING LTD - T/A CENTURIAN SERVICES
INSERTED DETAIL,,Ealing Council,http://opendatacommunities.org/id/london-borough-council/ealing,CHILDREN & ADULTS,1,EARLY YEARS CHILDCARE & SAFE,CIS REPAIRS AND MAINTENANCE,1411,,07/07/2022,41021461,10000,25871,CENTURIAN SURFACING LTD - T/A CENTURIAN SERVICES
INSERTED DETAIL,,Ealing Council,http://opendatacommunities.org/id/london-borough-council/ealing,CAPITAL SCHEMES,K,HOUSING DEVELOPMENT,CAPITAL � CAPITALISATION OF SALARIES,7590,,30/06/2022,41020107,325,19354,RED LOFT PARTNERSHIP
INSERTED DETAIL,,Ealing Council,http://opendatacommunities.org/id/london-borough-council/ealing,CAPITAL SCHEMES,K,HOUSING DEVELOPMENT,CAPITAL � CAPITALISATION OF SALARIES,7590,,30/06/2022,41019986,80330,21013,REDACTED SENSITIVE SUPPLIER
INSERTED DETAIL,,Ealing Council,http://opendatacommunities.org/id/london-borough-council/ealing,CAPITAL SCHEMES,K,HOUSING DEVELOPMENT,CAPITAL � CAPITALISATION OF SALARIES,7590,,30/06/2022,41020548,12000,23864,REDACTED SENSITIVE SUPPLIER
INSERTED DETAIL,,Ealing Council,http://opendatacommunities.org/id/london-borough-council/ealing,CAPITAL SCHEMES,K,HOUSING DEVELOPMENT,CAPITAL � CAPITALISATION OF SALARIES,7590,,30/06/2022,41020084,12500,11671,MATRIX SCM LTD
INSERTED DETAIL,,Ealing Council,http://opendatacommunities.org/id/london-borough-council/ealing,CAPITAL SCHEMES,K,HOUSING DEVELOPMENT,CAPITAL � CAPITALISATION OF SALARIES,7590,,30/06/2022,41020012,3806.8,20071,BPTW PARTNERSHIP
INSERTED DETAIL,,Ealing Council,http://opendatacommunities.org/id/london-borough-council/ealing,CAPITAL SCHEMES,K,HOUSING DEVELOPMENT,CAPITAL � CAPITALISATION OF SALARIES,7590,,30/06/2022,41020051,23660,20071,BPTW PARTNERSHIP
INSERTED DETAIL,,Ealing Council,http://opendatacommunities.org/id/london-borough-council/ealing,CAPITAL SCHEMES,K,HOUSING DEVELOPMENT,CAPITAL � CAPITALISATION OF SALARIES,7590,,30/11/2021,40992479,1522.83,28584,PERFECT CIRCLE JV LTD
INSERTED DETAIL,,Ealing Council,http://opendatacommunities.org/id/london-borough-council/ealing,CAPITAL SCHEMES,K,HOUSING DEVELOPMENT,CAPITAL � CAPITALISATION OF SALARIES,7590,,25/05/2022,41016837,304872.22,28584,PERFECT CIRCLE JV LTD
INSERTED DETAIL,,Ealing Council,http://opendatacommunities.org/id/london-borough-council/ealing,CAPITAL SCHEMES,K,HOUSING DEVELOPMENT,CAPITAL � CAPITALISATION OF SALARIES,7590,,01/07/2022,41020607,10889.88,29763,SARAH WIGGLESWORTH ARCHITECTS LTD T/A SARAH WIGGLESWORTH ARCHITECTS
INSERTED DETAIL,,Ealing Council,http://opendatacommunities.org/id/london-borough-council/ealing,CAPITAL SCHEMES,K,HOUSING DEVELOPMENT,CAPITAL � CAPITALISATION OF SALARIES,7590,,30/06/2022,41019897,2660.5,9900017,HAYDEN'S ARBORICULTURAL CONSULTANTS
INSERTED DETAIL,,Ealing Council,http://opendatacommunities.org/id/london-borough-council/ealing,CHILDREN & ADULTS,1,SAFEGUARDING & SUPPORT - CIC,CHILDRENS SERVICES -ELIGIBLE CHILDREN ACCOMMODATIO,4281,,24/06/2022,23194137,2785.7,28394,EMPOWER HOUSE LTD
INSERTED DETAIL,,Ealing Council,http://opendatacommunities.org/id/london-borough-council/ealing,CHILDREN & ADULTS,1,SAFEGUARDING & SUPPORT - CIC,CHILDRENS SERVICES -ELIGIBLE CHILDREN ACCOMMODATIO,4281,,24/06/2022,23194137,261.65,28394,EMPOWER HOUSE LTD
INSERTED DETAIL,,Ealing Council,http://opendatacommunities.org/id/london-borough-council/ealing,CHILDREN & ADULTS,1,SAFEGUARDING & SUPPORT - CIC,CHILDRENS SERVICES -ELIGIBLE CHILDREN ACCOMMODATIO,4281,,11/07/2022,23193999,1542.85,28619,ABIDING LIMITED T/A ABIDING CARE & SUPPORT
INSERTED DETAIL,,Ealing Council,http://opendatacommunities.org/id/london-borough-council/ealing,CHILDREN & ADULTS,1,SAFEGUARDING & SUPPORT - CIC,SOCIAL SERVICES -INDEPENDENT FOSTERING,4221,,11/07/2022,23194062,3515.57,26035,CONNECT FOSTERING SERVICES LTD
INSERTED DETAIL,,Ealing Council,http://opendatacommunities.org/id/london-borough-council/ealing,CHILDREN & ADULTS,1,SAFEGUARDING & SUPPORT - CIC,SOCIAL SERVICES -INDEPENDENT FOSTERING,4221,,11/07/2022,23194066,6594.68,28177,SHINE FOSTERING LTD
INSERTED DETAIL,,Ealing Council,http://opendatacommunities.org/id/london-borough-council/ealing,CHILDREN & ADULTS,1,SAFEGUARDING & SUPPORT - CIC,SOCIAL SERVICES -INDEPENDENT FOSTERING,4221,,11/07/2022,23194066,5394.65,28177,SHINE FOSTERING LTD
INSERTED DETAIL,,Ealing Council,http://opendatacommunities.org/id/london-borough-council/ealing,CHILDREN & ADULTS,1,SAFEGUARDING & SUPPORT - CIC,CHILDRENS SERVICES -ELIGIBLE CHILDREN ACCOMMODATIO,4281,,24/06/2022,23194130,3000,28394,EMPOWER HOUSE LTD
INSERTED DETAIL,,Ealing Council,http://opendatacommunities.org/id/london-borough-council/ealing,CHILDREN & ADULTS,1,SAFEGUARDING & SUPPORT - CIC,CHILDRENS SERVICES -ELIGIBLE CHILDREN ACCOMMODATIO,4281,,24/06/2022,23194130,357.14,28394,EMPOWER HOUSE LTD
INSERTED DETAIL,,Ealing Council,http://opendatacommunities.org/id/london-borough-council/ealing,CHILDREN & ADULTS,1,SAFEGUARDING & SUPPORT - CIC,CHILDRENS SERVICES -ELIGIBLE CHILDREN ACCOMMODATIO,4281,,24/06/2022,23194132,428.57,28394,EMPOWER HOUSE LTD
INSERTED DETAIL,,Ealing Council,http://opendatacommunities.org/id/london-borough-council/ealing,CHILDREN & ADULTS,1,SAFEGUARDING & SUPPORT - CIC,SOCIAL SERVICES -INDEPENDENT FOSTERING,4221,,11/07/2022,23194062,1155,26035,CONNECT FOSTERING SERVICES LTD
INSERTED DETAIL,,Ealing Council,http://opendatacommunities.org/id/london-borough-council/ealing,CHILDREN & ADULTS,1,SAFEGUARDING & SUPPORT - CIC,SOCIAL SERVICES -INDEPENDENT FOSTERING,4221,,11/07/2022,23194062,3538.07,26035,CONNECT FOSTERING SERVICES LTD
INSERTED DETAIL,,Ealing Council,http://opendatacommunities.org/id/london-borough-council/ealing,CHILDREN & ADULTS,1,SAFEGUARDING & SUPPORT - CIC,SOCIAL SERVICES -INDEPENDENT FOSTERING,4221,,11/07/2022,23194062,2850,26035,CONNECT FOSTERING SERVICES LTD
INSERTED DETAIL,,Ealing Council,http://opendatacommunities.org/id/london-borough-council/ealing,CHILDREN & ADULTS,1,SAFEGUARDING & SUPPORT - CIC,SOCIAL SERVICES -INDEPENDENT FOSTERING,4221,,11/07/2022,23194062,676.88,26035,CONNECT FOSTERING SERVICES LTD
INSERTED DETAIL,,Ealing Council,http://opendatacommunities.org/id/london-borough-council/ealing,CHILDREN & ADULTS,1,SAFEGUARDING & SUPPORT - CIC,SOCIAL SERVICES -INDEPENDENT FOSTERING,4221,,11/07/2022,23194062,1155,26035,CONNECT FOSTERING SERVICES LTD
INSERTED DETAIL,,Ealing Council,http://opendatacommunities.org/id/london-borough-council/ealing,CHILDREN & ADULTS,1,SAFEGUARDING & SUPPORT - CIC,SOCIAL SERVICES -INDEPENDENT FOSTERING,4221,,11/07/2022,23194062,3750,26035,CONNECT FOSTERING SERVICES LTD
INSERTED DETAIL,,Ealing Council,http://opendatacommunities.org/id/london-borough-council/ealing,CHILDREN & ADULTS,1,SAFEGUARDING & SUPPORT - CIC,SOCIAL SERVICES -INDEPENDENT FOSTERING,4221,,11/07/2022,23194062,3750,26035,CONNECT FOSTERING SERVICES LTD
INSERTED DETAIL,,Ealing Council,http://opendatacommunities.org/id/london-borough-council/ealing,CHILDREN & ADULTS,1,SAFEGUARDING & SUPPORT - CIC,SOCIAL SERVICES -INDEPENDENT FOSTERING,4221,,11/07/2022,23194062,4671.43,26035,CONNECT FOSTERING SERVICES LTD
INSERTED DETAIL,,Ealing Council,http://opendatacommunities.org/id/london-borough-council/ealing,CHILDREN & ADULTS,1,SAFEGUARDING & SUPPORT - CIC,SOCIAL SERVICES -INDEPENDENT FOSTERING,4221,,11/07/2022,23194062,2850,26035,CONNECT FOSTERING SERVICES LTD
INSERTED DETAIL,,Ealing Council,http://opendatacommunities.org/id/london-borough-council/ealing,CHILDREN & ADULTS,1,SAFEGUARDING & SUPPORT - CIC,SOCIAL SERVICES -INDEPENDENT FOSTERING,4221,,11/07/2022,23194062,676.88,26035,CONNECT FOSTERING SERVICES LTD
INSERTED DETAIL,,Ealing Council,http://opendatacommunities.org/id/london-borough-council/ealing,CHILDREN & ADULTS,1,SAFEGUARDING & SUPPORT - CIC,SOCIAL SERVICES -INDEPENDENT FOSTERING,4221,,11/07/2022,23194062,3921.43,26035,CONNECT FOSTERING SERVICES LTD
INSERTED DETAIL,,Ealing Council,http://opendatacommunities.org/id/london-borough-council/ealing,CHILDREN & ADULTS,1,SAFEGUARDING & SUPPORT - CIC,SOCIAL SERVICES -INDEPENDENT FOSTERING,4221,,11/07/2022,23194062,3357,26035,CONNECT FOSTERING SERVICES LTD
INSERTED DETAIL,,Ealing Council,http://opendatacommunities.org/id/london-borough-council/ealing,CHILDREN & ADULTS,1,SAFEGUARDING & SUPPORT - CIC,SOCIAL SERVICES -INDEPENDENT FOSTERING,4221,,11/07/2022,23194055,3148.12,14302,RAINBOW FOSTERING SERVICES LTD
INSERTED DETAIL,,Ealing Council,http://opendatacommunities.org/id/london-borough-council/ealing,CHILDREN & ADULTS,1,SAFEGUARDING & SUPPORT - CIC,SOCIAL SERVICES -INDEPENDENT FOSTERING,4221,,11/07/2022,23194055,5962.5,14302,RAINBOW FOSTERING SERVICES LTD
INSERTED DETAIL,,Ealing Council,http://opendatacommunities.org/id/london-borough-council/ealing,CHILDREN & ADULTS,1,SAFEGUARDING & SUPPORT - CIC,SOCIAL SERVICES -INDEPENDENT FOSTERING,4221,,11/07/2022,23194055,3603.22,14302,RAINBOW FOSTERING SERVICES LTD
INSERTED DETAIL,,Ealing Council,http://opendatacommunities.org/id/london-borough-council/ealing,CHILDREN & ADULTS,1,SAFEGUARDING & SUPPORT - CIC,SOCIAL SERVICES -INDEPENDENT FOSTERING,4221,,11/07/2022,23194055,3707.15,14302,RAINBOW FOSTERING SERVICES LTD
INSERTED DETAIL,,Ealing Council,http://opendatacommunities.org/id/london-borough-council/ealing,CHILDREN & ADULTS,1,SAFEGUARDING & SUPPORT - CIC,CHILDRENS SERVICES -ELIGIBLE CHILDREN OTHER COSTS,4282,,11/07/2022,23194046,6107.15,25444,ALICIE ENTERPRISES LIMITED
INSERTED DETAIL,,Ealing Council,http://opendatacommunities.org/id/london-borough-council/ealing,CHILDREN & ADULTS,1,SAFEGUARDING & SUPPORT - CIC,RESIDENTIAL HOMES EXTERNAL,4220,,11/07/2022,23194046,15798.43,25444,ALICIE ENTERPRISES LIMITED
INSERTED DETAIL,,Ealing Council,http://opendatacommunities.org/id/london-borough-council/ealing,CHILDREN & ADULTS,1,SAFEGUARDING & SUPPORT - CIC,SOCIAL SERVICES -INDEPENDENT FOSTERING,4221,,11/07/2022,23194055,1821.43,14302,RAINBOW FOSTERING SERVICES LTD
INSERTED DETAIL,,Ealing Council,http://opendatacommunities.org/id/london-borough-council/ealing,CHILDREN & ADULTS,1,SAFEGUARDING & SUPPORT - CIC,SOCIAL SERVICES -INDEPENDENT FOSTERING,4221,,11/07/2022,23194055,3343.67,14302,RAINBOW FOSTERING SERVICES LTD
INSERTED DETAIL,,Ealing Council,http://opendatacommunities.org/id/london-borough-council/ealing,CHILDREN & ADULTS,1,SAFEGUARDING & SUPPORT - CIC,SOCIAL SERVICES -INDEPENDENT FOSTERING,4221,,11/07/2022,23194055,3343.67,14302,RAINBOW FOSTERING SERVICES LTD
INSERTED DETAIL,,Ealing Council,http://opendatacommunities.org/id/london-borough-council/ealing,CHILDREN & ADULTS,1,ADULT MENTAL HEALTH,SUPPORTED LIVING,4236,,21/07/2022,23196932,1965.04,28679,JOYMAC CARE LTD
INSERTED DETAIL,,Ealing Council,http://opendatacommunities.org/id/london-borough-council/ealing,CHILDREN & ADULTS,1,ADULT MENTAL HEALTH,SUPPORTED LIVING,4236,,21/07/2022,23196968,2640.6,28679,JOYMAC CARE LTD
INSERTED DETAIL,,Ealing Council,http://opendatacommunities.org/id/london-borough-council/ealing,CHILDREN & ADULTS,1,ADULT MENTAL HEALTH,SUPPORTED LIVING,4236,,21/07/2022,23196965,3160,28727,AKM CARE
INSERTED DETAIL,,Ealing Council,http://opendatacommunities.org/id/london-borough-council/ealing,CHILDREN & ADULTS,1,ADULT MENTAL HEALTH,SUPPORTED LIVING,4236,,21/07/2022,23196965,3160,28727,AKM CARE
INSERTED DETAIL,,Ealing Council,http://opendatacommunities.org/id/london-borough-council/ealing,CHILDREN & ADULTS,1,ADULT MENTAL HEALTH,SUPPORTED LIVING,4236,,21/07/2022,23197009,3860,28727,AKM CARE
INSERTED DETAIL,,Ealing Council,http://opendatacommunities.org/id/london-borough-council/ealing,CHILDREN & ADULTS,1,ADULT MENTAL HEALTH,DOMICILIARY CARE - BLOCK,4240,,15/07/2022,23196446,800,28265,SALUS CARE LTD
INSERTED DETAIL,,Ealing Council,http://opendatacommunities.org/id/london-borough-council/ealing,CHILDREN & ADULTS,1,ADULT MENTAL HEALTH,DOMICILIARY CARE - BLOCK,4240,,30/06/2022,23192611,401.8,28304,GOLDCREST HEALTHCARE SERVICE LIMITED
INSERTED DETAIL,,Ealing Council,http://opendatacommunities.org/id/london-borough-council/ealing,CHILDREN & ADULTS,1,ADULT MENTAL HEALTH,DOMICILIARY CARE - BLOCK,4240,,30/06/2022,23192611,645.92,28304,GOLDCREST HEALTHCARE SERVICE LIMITED
INSERTED DETAIL,,Ealing Council,http://opendatacommunities.org/id/london-borough-council/ealing,CHILDREN & ADULTS,1,ADULT MENTAL HEALTH,SUPPORTED LIVING,4236,,21/07/2022,23197020,4032,28752,DYNASTY CARE SERVICES LTD
INSERTED DETAIL,,Ealing Council,http://opendatacommunities.org/id/london-borough-council/ealing,CHILDREN & ADULTS,1,ADULT MENTAL HEALTH,SUPPORTED LIVING,4236,,21/07/2022,23196943,3024,28752,DYNASTY CARE SERVICES LTD
INSERTED DETAIL,,Ealing Council,http://opendatacommunities.org/id/london-borough-council/ealing,CHILDREN & ADULTS,1,ADULT MENTAL HEALTH,RESIDENTIAL HOMES EXTERNAL,4220,,21/07/2022,23196932,446.6,28679,JOYMAC CARE LTD
INSERTED DETAIL,,Ealing Council,http://opendatacommunities.org/id/london-borough-council/ealing,CHILDREN & ADULTS,1,ADULT MENTAL HEALTH,SUPPORTED LIVING,4236,,21/07/2022,23196790,2346,24022,CARE ASSIST LTD T/A CARE ASSIST LTD HAMILTON ROAD
INSERTED DETAIL,,Ealing Council,http://opendatacommunities.org/id/london-borough-council/ealing,CHILDREN & ADULTS,1,ADULT MENTAL HEALTH,NURSING HOMES EXTERNAL,4230,,21/07/2022,23196808,7032.04,25271,BARCHESTER HEALTHCARE LTD - WESTGATE HOUSE
INSERTED DETAIL,,Ealing Council,http://opendatacommunities.org/id/london-borough-council/ealing,CHILDREN & ADULTS,1,ADULT MENTAL HEALTH,SUPPORTED LIVING,4236,,21/07/2022,23196844,2044,26418,SANCTUARY HOME CARE LTD
INSERTED DETAIL,,Ealing Council,http://opendatacommunities.org/id/london-borough-council/ealing,CHILDREN & ADULTS,1,ADULT MENTAL HEALTH,SUPPORTED LIVING,4236,,21/07/2022,23196844,2133.92,26418,SANCTUARY HOME CARE LTD
INSERTED DETAIL,,Ealing Council,http://opendatacommunities.org/id/london-borough-council/ealing,CHILDREN & ADULTS,1,ADULT MENTAL HEALTH,DOMICILIARY CARE - BLOCK,4240,,18/07/2022,23196618,551.99,27283,CHURCHILL HEALTH CARE LTD
INSERTED DETAIL,,Ealing Council,http://opendatacommunities.org/id/london-borough-council/ealing,CHILDREN & ADULTS,1,ADULT MENTAL HEALTH,DOMICILIARY CARE - BLOCK,4240,,15/07/2022,23196446,315,28265,SALUS CARE LTD
INSERTED DETAIL,,Ealing Council,http://opendatacommunities.org/id/london-borough-council/ealing,CHILDREN & ADULTS,1,ADULT MENTAL HEALTH,RESIDENTIAL HOMES EXTERNAL,4220,,21/07/2022,23196976,296,28298,CARE PLUS MORE LTD
INSERTED DETAIL,,Ealing Council,http://opendatacommunities.org/id/london-borough-council/ealing,CHILDREN & ADULTS,1,ADULT MENTAL HEALTH,RESIDENTIAL HOMES EXTERNAL,4220,,21/07/2022,23196976,3626,28298,CARE PLUS MORE LTD
INSERTED DETAIL,,Ealing Council,http://opendatacommunities.org/id/london-borough-council/ealing,CHILDREN & ADULTS,1,ADULT MENTAL HEALTH,RESIDENTIAL HOMES EXTERNAL,4220,,21/07/2022,23196976,4144,28298,CARE PLUS MORE LTD
INSERTED DETAIL,,Ealing Council,http://opendatacommunities.org/id/london-borough-council/ealing,CHILDREN & ADULTS,1,ADULT MENTAL HEALTH,SUPPORTED LIVING,4236,,21/07/2022,23196790,2346,24022,CARE ASSIST LTD T/A CARE ASSIST LTD HAMILTON ROAD
INSERTED DETAIL,,Ealing Council,http://opendatacommunities.org/id/london-borough-council/ealing,CHILDREN & ADULTS,1,ADULT MENTAL HEALTH,SUPPORTED LIVING,4236,,21/07/2022,23196790,2200,24022,CARE ASSIST LTD T/A CARE ASSIST LTD HAMILTON ROAD
INSERTED DETAIL,,Ealing Council,http://opendatacommunities.org/id/london-borough-council/ealing,CHILDREN & ADULTS,1,ADULT MENTAL HEALTH,SUPPORTED LIVING,4236,,21/07/2022,23196790,2244,24022,CARE ASSIST LTD T/A CARE ASSIST LTD HAMILTON ROAD
INSERTED DETAIL,,Ealing Council,http://opendatacommunities.org/id/london-borough-council/ealing,CHILDREN & ADULTS,1,ADULT MENTAL HEALTH,RESIDENTIAL HOMES EXTERNAL,4220,,21/07/2022,23196684,2435.92,27834,ROSHINI CARE HOME LTD
INSERTED DETAIL,,Ealing Council,http://opendatacommunities.org/id/london-borough-council/ealing,CHILDREN & ADULTS,1,ADULT MENTAL HEALTH,DOMICILIARY CARE - BLOCK,4240,,26/07/2022,23197344,1260,27968,INVICTA CARE AND TRAINING LTD
INSERTED DETAIL,,Ealing Council,http://opendatacommunities.org/id/london-borough-council/ealing,CHILDREN & ADULTS,1,ADULT MENTAL HEALTH,DOMICILIARY CARE - BLOCK,4240,,26/07/2022,23197344,630,27968,INVICTA CARE AND TRAINING LTD
INSERTED DETAIL,,Ealing Council,http://opendatacommunities.org/id/london-borough-council/ealing,CHILDREN & ADULTS,1,ADULT MENTAL HEALTH,DOMICILIARY CARE - BLOCK,4240,,26/07/2022,23197344,420,27968,INVICTA CARE AND TRAINING LTD
INSERTED DETAIL,,Ealing Council,http://opendatacommunities.org/id/london-borough-council/ealing,CHILDREN & ADULTS,1,ADULT MENTAL HEALTH,DOMICILIARY CARE - BLOCK,4240,,26/07/2022,23197344,2520,27968,INVICTA CARE AND TRAINING LTD
INSERTED DETAIL,,Ealing Council,http://opendatacommunities.org/id/london-borough-council/ealing,CHILDREN & ADULTS,1,ADULT MENTAL HEALTH,RESIDENTIAL HOMES EXTERNAL,4220,,21/07/2022,23196915,4662,28298,CARE PLUS MORE LTD
INSERTED DETAIL,,Ealing Council,http://opendatacommunities.org/id/london-borough-council/ealing,CHILDREN & ADULTS,1,ADULT MENTAL HEALTH,RESIDENTIAL HOMES EXTERNAL,4220,,21/07/2022,23196875,379,27609,COMFORT CARE SERVICES UK LTD
INSERTED DETAIL,,Ealing Council,http://opendatacommunities.org/id/london-borough-council/ealing,CHILDREN & ADULTS,1,ADULT MENTAL HEALTH,RESIDENTIAL HOMES EXTERNAL,4220,,21/07/2022,23196684,2726.12,27834,ROSHINI CARE HOME LTD
INSERTED DETAIL,,Ealing Council,http://opendatacommunities.org/id/london-borough-council/ealing,CHILDREN & ADULTS,1,ADULT MENTAL HEALTH,RESIDENTIAL HOMES EXTERNAL,4220,,21/07/2022,23196684,2435.92,27834,ROSHINI CARE HOME LTD
INSERTED DETAIL,,Ealing Council,http://opendatacommunities.org/id/london-borough-council/ealing,CHILDREN & ADULTS,1,ADULT MENTAL HEALTH,RESIDENTIAL HOMES EXTERNAL,4220,,21/07/2022,23196684,5040,27834,ROSHINI CARE HOME LTD
INSERTED DETAIL,,Ealing Council,http://opendatacommunities.org/id/london-borough-council/ealing,CHILDREN & ADULTS,1,ADULT MENTAL HEALTH,RESIDENTIAL HOMES EXTERNAL,4220,,21/07/2022,23196684,2214.48,27834,ROSHINI CARE HOME LTD
INSERTED DETAIL,,Ealing Council,http://opendatacommunities.org/id/london-borough-council/ealing,CHILDREN & ADULTS,1,ADULT MENTAL HEALTH,RESIDENTIAL HOMES EXTERNAL,4220,,21/07/2022,23196684,2726.12,27834,ROSHINI CARE HOME LTD
INSERTED DETAIL,,Ealing Council,http://opendatacommunities.org/id/london-borough-council/ealing,PLACE,6,HOUSING PROPERTY & ASSETS,WATER,1140,,14/06/2022,41021854,14445.78,15076,THAMES WATER UTILITIES LTD
INSERTED DETAIL,,Ealing Council,http://opendatacommunities.org/id/london-borough-council/ealing,PLACE,6,STREET SERVICES,PAYMENTS TO CONTRACTORS,4000,,30/06/2022,41020088,325.7,14514,WERNICK HIRE LTD
INSERTED DETAIL,,Ealing Council,http://opendatacommunities.org/id/london-borough-council/ealing,PLACE,6,STREET SERVICES,REPAIR AND MAINTENANCE,1410,,06/07/2022,41022582,3119,28826,GREENER EALING LIMITED
INSERTED DETAIL,,Ealing Council,http://opendatacommunities.org/id/london-borough-council/ealing,PLACE,6,LEISURE,REPAIR AND MAINTENANCE,1410,,09/02/2022,41019287,297.73,29721,NETWORK RAIL INFRASTRUCTURE LTD PROPERTY COLLECTION A/C
INSERTED DETAIL,,Ealing Council,http://opendatacommunities.org/id/london-borough-council/ealing,PLACE,6,LEISURE,REPAIR AND MAINTENANCE,1410,,11/05/2022,41019290,297.73,29721,NETWORK RAIL INFRASTRUCTURE LTD PROPERTY COLLECTION A/C
INSERTED DETAIL,,Ealing Council,http://opendatacommunities.org/id/london-borough-council/ealing,PLACE,6,LEISURE,PAYMENTS TO CONTRACTORS,4000,,30/06/2022,41020306,1440,29406,PROFESSIONAL SPORTSTURF DESIGN (NORTH WEST) LTD
INSERTED DETAIL,,Ealing Council,http://opendatacommunities.org/id/london-borough-council/ealing,PLACE,6,LEISURE,PAYMENTS TO CONTRACTORS,4000,,30/06/2022,41020307,1760,29406,PROFESSIONAL SPORTSTURF DESIGN (NORTH WEST) LTD
INSERTED DETAIL,,Ealing Council,http://opendatacommunities.org/id/london-borough-council/ealing,PLACE,6,HIGHWAYS,CONTRACT PAYMENTS -HIGHWAYS,4005,,18/07/2022,41022597,1414.85,14795,ENERVEO LTD
INSERTED DETAIL,,Ealing Council,http://opendatacommunities.org/id/london-borough-council/ealing,PLACE,6,HIGHWAYS,CONTRACT PAYMENTS -HIGHWAYS,4005,,22/06/2022,41019046,4483.56,14795,ENERVEO LTD
INSERTED DETAIL,,Ealing Council,http://opendatacommunities.org/id/london-borough-council/ealing,PLACE,6,HOUSING PROPERTY & ASSETS,Services Contracts Agency Interim Consultants,2970,,01/07/2022,41021433,4500,10334,ARK CONSULTANCY LTD
INSERTED DETAIL,,Ealing Council,http://opendatacommunities.org/id/london-borough-council/ealing,COUNCIL WIDE OTHER,9,BALANCE SHEET,CTRL OR B/S DEPOSITS,6610,,11/07/2022,41020933,870.34,9900018,ESMART NETWORKS LTD
INSERTED DETAIL,,Ealing Council,http://opendatacommunities.org/id/london-borough-council/ealing,CHILDREN & ADULTS,1,PUBLIC HEALTH ADMIN AND MANAGEMENT,RECOUPMENT,4261,,14/07/2022,41022301,6049,11249,CITY OF LONDON
INSERTED DETAIL,,Ealing Council,http://opendatacommunities.org/id/london-borough-council/ealing,CHIEF EXECUTIVE DIRECTORATE,5,STRATEGY & ENGAGEMENT,GRANTS,5010,,01/07/2022,41020472,7974.75,15191,THE LOG CABIN CHARITY
INSERTED DETAIL,,Ealing Council,http://opendatacommunities.org/id/london-borough-council/ealing,CHIEF EXECUTIVE DIRECTORATE,5,STRATEGY & ENGAGEMENT,GRANTS,5010,,04/07/2022,41021009,5000,15487,UNITED ANGLO CARIBBEAN SOCIETY
INSERTED DETAIL,,Ealing Council,http://opendatacommunities.org/id/london-borough-council/ealing,CHIEF EXECUTIVE DIRECTORATE,5,STRATEGY & ENGAGEMENT,GRANTS,5010,,09/05/2022,41014172,7500,14776,SOUTHALL COMMUNITY ALLIANCE
INSERTED DETAIL,,Ealing Council,http://opendatacommunities.org/id/london-borough-council/ealing,CHIEF EXECUTIVE DIRECTORATE,5,STRATEGY & ENGAGEMENT,GRANTS,5010,,07/06/2022,41017156,22408.25,28095,ADVANCE ADVOCACY & NON VIOLENCE COMMUNITY EDUCATION
INSERTED DETAIL,,Ealing Council,http://opendatacommunities.org/id/london-borough-council/ealing,CHIEF EXECUTIVE DIRECTORATE,5,STRATEGY & ENGAGEMENT,GRANTS,5010,,27/06/2022,41022120,4000,9900015,CAME WOMEN AND GIRLS DEVELOPMENT ORGANISATION
INSERTED DETAIL,,Ealing Council,http://opendatacommunities.org/id/london-borough-council/ealing,CHIEF EXECUTIVE DIRECTORATE,5,STRATEGY & ENGAGEMENT,GRANTS,5010,,27/06/2022,41022120,3500,9900015,CAME WOMEN AND GIRLS DEVELOPMENT ORGANISATION
INSERTED DETAIL,,Ealing Council,http://opendatacommunities.org/id/london-borough-council/ealing,CHIEF EXECUTIVE DIRECTORATE,5,STRATEGY & ENGAGEMENT,GRANTS,5010,,06/07/2022,41021592,77500,30164,DEMENTIA CONCERN
INSERTED DETAIL,,Ealing Council,http://opendatacommunities.org/id/london-borough-council/ealing,CHIEF EXECUTIVE DIRECTORATE,5,STRATEGY & ENGAGEMENT,GRANTS,5010,,11/07/2022,41021930,25000,40010,THE TRUST OF ST BENEDICT'S ABBEY T/A EALING ABBEY COUNSELLING SERV
INSERTED DETAIL,,Ealing Council,http://opendatacommunities.org/id/london-borough-council/ealing,CHIEF EXECUTIVE DIRECTORATE,5,STRATEGY & ENGAGEMENT,GRANTS,5010,,01/07/2022,41020492,42849.25,40042,COMMUNITY ACTIVITIES PROJECT EALING (CAPE)
INSERTED DETAIL,,Ealing Council,http://opendatacommunities.org/id/london-borough-council/ealing,CHIEF EXECUTIVE DIRECTORATE,5,STRATEGY & ENGAGEMENT,GRANTS,5010,,01/07/2022,41020493,13750,40042,COMMUNITY ACTIVITIES PROJECT EALING (CAPE)
INSERTED DETAIL,,Ealing Council,http://opendatacommunities.org/id/london-borough-council/ealing,CHIEF EXECUTIVE DIRECTORATE,5,STRATEGY & ENGAGEMENT,GRANTS,5010,,01/07/2022,41020494,3562.5,40042,COMMUNITY ACTIVITIES PROJECT EALING (CAPE)
INSERTED DETAIL,,Ealing Council,http://opendatacommunities.org/id/london-borough-council/ealing,CHIEF EXECUTIVE DIRECTORATE,5,STRATEGY & ENGAGEMENT,GRANTS,5010,,27/06/2022,41020188,2500,9900015,READ EASY EALING
INSERTED DETAIL,,Ealing Council,http://opendatacommunities.org/id/london-borough-council/ealing,CHIEF EXECUTIVE DIRECTORATE,5,STRATEGY & ENGAGEMENT,GRANTS,5010,,27/06/2022,41020396,2400,9900015,HOOKS BOXING ABC
INSERTED DETAIL,,Ealing Council,http://opendatacommunities.org/id/london-borough-council/ealing,CHILDREN & ADULTS,1,DISABILITIES,DAY CARE CENTRES,4250,,21/07/2022,23196843,793.24,26510,BEAD SEW CRAFTY LTD
INSERTED DETAIL,,Ealing Council,http://opendatacommunities.org/id/london-borough-council/ealing,CHILDREN & ADULTS,1,DISABILITIES,DAY CARE CENTRES,4250,,21/07/2022,23196843,317.32,26510,BEAD SEW CRAFTY LTD
INSERTED DETAIL,,Ealing Council,http://opendatacommunities.org/id/london-borough-council/ealing,CHILDREN & ADULTS,1,DISABILITIES,DOMICILIARY CARE - BLOCK,4240,,27/07/2022,23197714,511.46,24418,SIGNET HEALTHCARE LTD
INSERTED DETAIL,,Ealing Council,http://opendatacommunities.org/id/london-borough-council/ealing,CHILDREN & ADULTS,1,DISABILITIES,DOMICILIARY CARE - BLOCK,4240,,27/07/2022,23197714,1384.84,24418,SIGNET HEALTHCARE LTD
INSERTED DETAIL,,Ealing Council,http://opendatacommunities.org/id/london-borough-council/ealing,CHILDREN & ADULTS,1,DISABILITIES,DOMICILIARY CARE - BLOCK,4240,,05/07/2022,23192800,572,24418,SIGNET HEALTHCARE LTD
INSERTED DETAIL,,Ealing Council,http://opendatacommunities.org/id/london-borough-council/ealing,CHILDREN & ADULTS,1,DISABILITIES,DOMICILIARY CARE - BLOCK,4240,,05/07/2022,23192800,1384.84,24418,SIGNET HEALTHCARE LTD
INSERTED DETAIL,,Ealing Council,http://opendatacommunities.org/id/london-borough-council/ealing,CHILDREN & ADULTS,1,DISABILITIES,DOMICILIARY CARE - BLOCK,4240,,30/06/2022,23192609,480,26026,SOMA HEALTHCARE LIMITED
INSERTED DETAIL,,Ealing Council,http://opendatacommunities.org/id/london-borough-council/ealing,CHILDREN & ADULTS,1,DISABILITIES,DOMICILIARY CARE - BLOCK,4240,,30/06/2022,23192609,300,26026,SOMA HEALTHCARE LIMITED
INSERTED DETAIL,,Ealing Council,http://opendatacommunities.org/id/london-borough-council/ealing,CHILDREN & ADULTS,1,DISABILITIES,DOMICILIARY CARE - BLOCK,4240,,30/06/2022,23192613,2314.07,19913,LONDON CARE LTD
INSERTED DETAIL,,Ealing Council,http://opendatacommunities.org/id/london-borough-council/ealing,CHILDREN & ADULTS,1,DISABILITIES,RESIDENTIAL HOMES EXTERNAL,4220,,21/07/2022,23196762,3878.08,20533,EAST VIEW HOUSING MANAGEMENT LTD
INSERTED DETAIL,,Ealing Council,http://opendatacommunities.org/id/london-borough-council/ealing,CHILDREN & ADULTS,1,DISABILITIES,DOMICILIARY CARE - BLOCK,4240,,18/07/2022,23195833,3993.4,23111,ELEANOR NURSING & SOCIAL CARE LTD
INSERTED DETAIL,,Ealing Council,http://opendatacommunities.org/id/london-borough-council/ealing,CHILDREN & ADULTS,1,DISABILITIES,DOMICILIARY CARE - BLOCK,4240,,18/07/2022,23195833,3360,23111,ELEANOR NURSING & SOCIAL CARE LTD
INSERTED DETAIL,,Ealing Council,http://opendatacommunities.org/id/london-borough-council/ealing,CHILDREN & ADULTS,1,DISABILITIES,DOMICILIARY CARE - BLOCK,4240,,18/07/2022,23195833,1220,23111,ELEANOR NURSING & SOCIAL CARE LTD
INSERTED DETAIL,,Ealing Council,http://opendatacommunities.org/id/london-borough-council/ealing,CHILDREN & ADULTS,1,DISABILITIES,DOMICILIARY CARE - BLOCK,4240,,18/07/2022,23195833,672.4,23111,ELEANOR NURSING & SOCIAL CARE LTD
INSERTED DETAIL,,Ealing Council,http://opendatacommunities.org/id/london-borough-council/ealing,CHILDREN & ADULTS,1,DISABILITIES,SOCIAL SERVICES DIRECT PAYMENTS,4231,,08/07/2022,23193565,311.76,80341,REDACTED SENSITIVE SUPPLIER
INSERTED DETAIL,,Ealing Council,http://opendatacommunities.org/id/london-borough-council/ealing,CHILDREN & ADULTS,1,DISABILITIES,SOCIAL SERVICES DIRECT PAYMENTS,4231,,08/07/2022,23193541,1176,80421,REDACTED SENSITIVE SUPPLIER
INSERTED DETAIL,,Ealing Council,http://opendatacommunities.org/id/london-borough-council/ealing,CHILDREN & ADULTS,1,DISABILITIES,SOCIAL SERVICES DIRECT PAYMENTS,4231,,08/07/2022,23193541,664.48,80421,REDACTED SENSITIVE SUPPLIER
INSERTED DETAIL,,Ealing Council,http://opendatacommunities.org/id/london-borough-council/ealing,CHILDREN & ADULTS,1,DISABILITIES,SOCIAL SERVICES DIRECT PAYMENTS,4231,,08/07/2022,23193516,288,80711,REDACTED SENSITIVE SUPPLIER
INSERTED DETAIL,,Ealing Council,http://opendatacommunities.org/id/london-borough-council/ealing,CHILDREN & ADULTS,1,DISABILITIES,SOCIAL SERVICES DIRECT PAYMENTS,4231,,08/07/2022,23193516,1472.96,80711,REDACTED SENSITIVE SUPPLIER
INSERTED DETAIL,,Ealing Council,http://opendatacommunities.org/id/london-borough-council/ealing,CHILDREN & ADULTS,1,DISABILITIES,SOCIAL SERVICES DIRECT PAYMENTS,4231,,08/07/2022,23193551,649.6,80898,REDACTED SENSITIVE SUPPLIER
INSERTED DETAIL,,Ealing Council,http://opendatacommunities.org/id/london-borough-council/ealing,CHILDREN & ADULTS,1,DISABILITIES,RESIDENTIAL HOMES EXTERNAL,4220,,21/07/2022,23197017,1400,29652,NUTLEY HALL
INSERTED DETAIL,,Ealing Council,http://opendatacommunities.org/id/london-borough-council/ealing,CHILDREN & ADULTS,1,DISABILITIES,RESIDENTIAL HOMES EXTERNAL,4220,,21/07/2022,23197017,4800,29652,NUTLEY HALL
INSERTED DETAIL,,Ealing Council,http://opendatacommunities.org/id/london-borough-council/ealing,CHILDREN & ADULTS,1,DISABILITIES,SOCIAL SERVICES DIRECT PAYMENTS,4231,,08/07/2022,23193519,1638.64,80011,REDACTED SENSITIVE SUPPLIER
INSERTED DETAIL,,Ealing Council,http://opendatacommunities.org/id/london-borough-council/ealing,CHILDREN & ADULTS,1,DISABILITIES,SOCIAL SERVICES DIRECT PAYMENTS,4231,,08/07/2022,23193519,441.04,80011,REDACTED SENSITIVE SUPPLIER
INSERTED DETAIL,,Ealing Council,http://opendatacommunities.org/id/london-borough-council/ealing,CHILDREN & ADULTS,1,DISABILITIES,SOCIAL SERVICES DIRECT PAYMENTS,4231,,08/07/2022,23193545,2887.24,80128,REDACTED SENSITIVE SUPPLIER
INSERTED DETAIL,,Ealing Council,http://opendatacommunities.org/id/london-borough-council/ealing,CHILDREN & ADULTS,1,DISABILITIES,SOCIAL SERVICES DIRECT PAYMENTS,4231,,08/07/2022,23193565,2437.56,80341,REDACTED SENSITIVE SUPPLIER
INSERTED DETAIL,,Ealing Council,http://opendatacommunities.org/id/london-borough-council/ealing,CHILDREN & ADULTS,1,DISABILITIES,DOMICILIARY CARE - BLOCK,4240,,19/07/2022,23196470,2688,28266,SOMCARE AGENCY LIMITED
INSERTED DETAIL,,Ealing Council,http://opendatacommunities.org/id/london-borough-council/ealing,CAPITAL SCHEMES,K,HOUSING DEVELOPMENT,CAPITAL � CAPITALISATION OF SALARIES,7590,,30/09/2021,40985107,2869.5,28584,PERFECT CIRCLE JV LTD
INSERTED DETAIL,,Ealing Council,http://opendatacommunities.org/id/london-borough-council/ealing,CAPITAL SCHEMES,K,HOUSING DEVELOPMENT,CAPITAL � CAPITALISATION OF SALARIES,7590,,30/09/2021,40984977,2869.5,28584,PERFECT CIRCLE JV LTD
INSERTED DETAIL,,Ealing Council,http://opendatacommunities.org/id/london-borough-council/ealing,CAPITAL SCHEMES,K,HOUSING DEVELOPMENT,CAPITAL � CAPITALISATION OF SALARIES,7590,,31/08/2021,40980949,3237,28584,PERFECT CIRCLE JV LTD
INSERTED DETAIL,,Ealing Council,http://opendatacommunities.org/id/london-borough-council/ealing,CAPITAL SCHEMES,K,HOUSING DEVELOPMENT,CAPITAL � CAPITALISATION OF SALARIES,7590,,31/08/2021,40980951,3237,28584,PERFECT CIRCLE JV LTD
INSERTED DETAIL,,Ealing Council,http://opendatacommunities.org/id/london-borough-council/ealing,CAPITAL SCHEMES,K,HOUSING DEVELOPMENT,CAPITAL � CAPITALISATION OF SALARIES,7590,,30/11/2021,40992478,1522.83,28584,PERFECT CIRCLE JV LTD
INSERTED DETAIL,,Ealing Council,http://opendatacommunities.org/id/london-borough-council/ealing,CAPITAL SCHEMES,K,HOUSING DEVELOPMENT,CAPITAL � CAPITALISATION OF SALARIES,7590,,30/06/2022,41022146,1250,28658,GL  HEARN LIMITED
INSERTED DETAIL,,Ealing Council,http://opendatacommunities.org/id/london-borough-council/ealing,CAPITAL SCHEMES,K,HOUSING DEVELOPMENT,CAPITAL � CAPITALISATION OF SALARIES,7590,,08/06/2022,41017945,10000,29144,TRIGON FIRE SAFETY LTD
INSERTED DETAIL,,Ealing Council,http://opendatacommunities.org/id/london-borough-council/ealing,CAPITAL SCHEMES,K,HOUSING DEVELOPMENT,CAPITAL � CAPITALISATION OF SALARIES,7590,,06/07/2022,41020978,15000,29144,TRIGON FIRE SAFETY LTD
INSERTED DETAIL,,Ealing Council,http://opendatacommunities.org/id/london-borough-council/ealing,CAPITAL SCHEMES,K,HOUSING DEVELOPMENT,CAPITAL � CAPITALISATION OF SALARIES,7590,,23/06/2022,41019104,1200,29714,CALFORD SEADEN (HEALTH AND SAFETY) LIMITED
INSERTED DETAIL,,Ealing Council,http://opendatacommunities.org/id/london-borough-council/ealing,CAPITAL SCHEMES,K,HOUSING DEVELOPMENT,CAPITAL � CAPITALISATION OF SALARIES,7590,,12/07/2022,41021945,3950,29847,GARETH JONES HERITAGE PLANNING LIMITED
INSERTED DETAIL,,Ealing Council,http://opendatacommunities.org/id/london-borough-council/ealing,CAPITAL SCHEMES,K,HOUSING DEVELOPMENT,CAPITAL � CAPITALISATION OF SALARIES,7590,,30/06/2022,41021081,2000,29815,PULSE ASSOCIATES LIMITED T/A PULSE CONSULT
INSERTED DETAIL,,Ealing Council,http://opendatacommunities.org/id/london-borough-council/ealing,CAPITAL SCHEMES,K,HOUSING DEVELOPMENT,CAPITAL � CAPITALISATION OF SALARIES,7590,,14/07/2022,41022292,1280,29198,ADVANCED TRANSPORT RESEARCH LTD
INSERTED DETAIL,,Ealing Council,http://opendatacommunities.org/id/london-borough-council/ealing,CAPITAL SCHEMES,K,HOUSING DEVELOPMENT,CAPITAL - CONTRACT PAYMENTS,7200,,28/06/2022,41019579,17422.5,29279,MOTT MACDONALD LIMITED
INSERTED DETAIL,,Ealing Council,http://opendatacommunities.org/id/london-borough-council/ealing,CAPITAL SCHEMES,K,HOUSING DEVELOPMENT,CAPITAL � CAPITALISATION OF SALARIES,7590,,30/06/2022,41020242,12000,28658,GL  HEARN LIMITED
INSERTED DETAIL,,Ealing Council,http://opendatacommunities.org/id/london-borough-council/ealing,CAPITAL SCHEMES,K,HOUSING DEVELOPMENT,CAPITAL � CAPITALISATION OF SALARIES,7590,,30/06/2022,41022145,750,28658,GL  HEARN LIMITED
INSERTED DETAIL,,Ealing Council,http://opendatacommunities.org/id/london-borough-council/ealing,CAPITAL SCHEMES,K,HOUSING DEVELOPMENT,CAPITAL � CAPITALISATION OF SALARIES,7590,,30/06/2022,41022146,1250,28658,GL  HEARN LIMITED
INSERTED DETAIL,,Ealing Council,http://opendatacommunities.org/id/london-borough-council/ealing,CAPITAL SCHEMES,K,HOUSING DEVELOPMENT,CAPITAL � CAPITALISATION OF SALARIES,7590,,30/06/2022,41022146,1250,28658,GL  HEARN LIMITED
INSERTED DETAIL,,Ealing Council,http://opendatacommunities.org/id/london-borough-council/ealing,CAPITAL SCHEMES,K,HOUSING DEVELOPMENT,CAPITAL � CAPITALISATION OF SALARIES,7590,,15/07/2022,41021896,80700,29767,CULLINAN STUDIO LTD
INSERTED DETAIL,,Ealing Council,http://opendatacommunities.org/id/london-borough-council/ealing,CAPITAL SCHEMES,K,HOUSING DEVELOPMENT,CAPITAL � CAPITALISATION OF SALARIES,7590,,15/07/2022,41021897,80700,29767,CULLINAN STUDIO LTD
INSERTED DETAIL,,Ealing Council,http://opendatacommunities.org/id/london-borough-council/ealing,CAPITAL SCHEMES,K,HOUSING DEVELOPMENT,CAPITAL � CAPITALISATION OF SALARIES,7590,,22/06/2022,41022630,2350,9900014,ENSAFE CONSULTANTS
INSERTED DETAIL,,Ealing Council,http://opendatacommunities.org/id/london-borough-council/ealing,CAPITAL SCHEMES,K,HOUSING DEVELOPMENT,CAPITAL � CAPITALISATION OF SALARIES,7590,,17/06/2022,41021859,1980,9900014,CHALLEN COMMERCIAL INVESTIGATIONS LTD T/A ENSAFE CONSULTANTS
INSERTED DETAIL,,Ealing Council,http://opendatacommunities.org/id/london-borough-council/ealing,CAPITAL SCHEMES,K,HOUSING DEVELOPMENT,CAPITAL � CAPITALISATION OF SALARIES,7590,,31/05/2022,41018441,2600,27157,GREENHATCH GROUP LTD
INSERTED DETAIL,,Ealing Council,http://opendatacommunities.org/id/london-borough-council/ealing,CAPITAL SCHEMES,K,HOUSING DEVELOPMENT,CAPITAL - CONTRACT PAYMENTS,7200,,04/07/2022,41020271,663188.89,28811,MACKENZIE (SOUTH WEST) HOMES LTD
INSERTED DETAIL,,Ealing Council,http://opendatacommunities.org/id/london-borough-council/ealing,CAPITAL SCHEMES,K,HOUSING DEVELOPMENT,CAPITAL � CAPITALISATION OF SALARIES,7590,,25/05/2022,41016286,9683.37,23918,SILVER DCC LIMITED T/A SILVER
INSERTED DETAIL,,Ealing Council,http://opendatacommunities.org/id/london-borough-council/ealing,CAPITAL SCHEMES,K,HOUSING DEVELOPMENT,CAPITAL � CAPITALISATION OF SALARIES,7590,,30/06/2022,41020048,7796.06,23918,SILVER DCC LIMITED T/A SILVER
INSERTED DETAIL,,Ealing Council,http://opendatacommunities.org/id/london-borough-council/ealing,CAPITAL SCHEMES,K,HOUSING DEVELOPMENT,CAPITAL � CAPITALISATION OF SALARIES,7590,,24/06/2022,41019599,3739.98,23918,SILVER DCC LIMITED T/A SILVER
INSERTED DETAIL,,Ealing Council,http://opendatacommunities.org/id/london-borough-council/ealing,CAPITAL SCHEMES,K,HOUSING DEVELOPMENT,CAPITAL � CAPITALISATION OF SALARIES,7590,,24/06/2022,41019628,5993.04,23918,SILVER DCC LIMITED T/A SILVER
INSERTED DETAIL,,Ealing Council,http://opendatacommunities.org/id/london-borough-council/ealing,CAPITAL SCHEMES,K,HOUSING DEVELOPMENT,CAPITAL � CAPITALISATION OF SALARIES,7590,,24/06/2022,41019629,5993.04,23918,SILVER DCC LIMITED T/A SILVER
INSERTED DETAIL,,Ealing Council,http://opendatacommunities.org/id/london-borough-council/ealing,CAPITAL SCHEMES,K,HOUSING DEVELOPMENT,CAPITAL � CAPITALISATION OF SALARIES,7590,,24/06/2022,41019630,9594.87,23918,SILVER DCC LIMITED T/A SILVER
INSERTED DETAIL,,Ealing Council,http://opendatacommunities.org/id/london-borough-council/ealing,CAPITAL SCHEMES,K,PLACE DELIVERY,CAPITAL - INFRASTRUCTURE ASSETS,7140,,29/06/2022,41019738,1320,25715,THAMES WATER UTILITIES LTD (PROPERTY SEARCHES)
INSERTED DETAIL,,Ealing Council,http://opendatacommunities.org/id/london-borough-council/ealing,CHILDREN & ADULTS,1,EALING SERVICE FOR CHILDREN WITH ADDITIONAL NEEDS,HOME & SCHOOL,2130,,30/06/2022,41021983,69953.33,11591,EALING COMMUNITY TRANSPORT
INSERTED DETAIL,,Ealing Council,http://opendatacommunities.org/id/london-borough-council/ealing,CHILDREN & ADULTS,1,EALING SERVICE FOR CHILDREN WITH ADDITIONAL NEEDS,PAYMENTS TO CONTRACTORS,4000,,30/06/2022,41021984,22877.56,11591,EALING COMMUNITY TRANSPORT
INSERTED DETAIL,,Ealing Council,http://opendatacommunities.org/id/london-borough-council/ealing,CORPORATE ITEMS,7,COVID-19,PAYMENTS TO CONTRACTORS,4000,,12/07/2022,41021093,400,9900018,REDACTED SENSITIVE SUPPLIER
INSERTED DETAIL,,Ealing Council,http://opendatacommunities.org/id/london-borough-council/ealing,CORPORATE ITEMS,7,COVID-19,PAYMENTS TO CONTRACTORS,4000,,11/07/2022,41020912,400,9900018,REDACTED SENSITIVE SUPPLIER
INSERTED DETAIL,,Ealing Council,http://opendatacommunities.org/id/london-borough-council/ealing,CORPORATE ITEMS,7,COVID-19,PAYMENTS TO CONTRACTORS,4000,,11/07/2022,41020934,399,9900018,REDACTED SENSITIVE SUPPLIER
INSERTED DETAIL,,Ealing Council,http://opendatacommunities.org/id/london-borough-council/ealing,CORPORATE ITEMS,7,COVID-19,PAYMENTS TO CONTRACTORS,4000,,11/07/2022,41020936,296,9900018,REDACTED SENSITIVE SUPPLIER
INSERTED DETAIL,,Ealing Council,http://opendatacommunities.org/id/london-borough-council/ealing,CORPORATE ITEMS,7,COVID-19,PAYMENTS TO CONTRACTORS,4000,,11/07/2022,41020937,360,9900018,REDACTED SENSITIVE SUPPLIER
INSERTED DETAIL,,Ealing Council,http://opendatacommunities.org/id/london-borough-council/ealing,CORPORATE ITEMS,7,COVID-19,PAYMENTS TO CONTRACTORS,4000,,11/07/2022,41020940,400,9900018,REDACTED SENSITIVE SUPPLIER
INSERTED DETAIL,,Ealing Council,http://opendatacommunities.org/id/london-borough-council/ealing,CORPORATE ITEMS,7,COVID-19,PAYMENTS TO CONTRACTORS,4000,,11/07/2022,41020941,269,9900018,REDACTED SENSITIVE SUPPLIER
INSERTED DETAIL,,Ealing Council,http://opendatacommunities.org/id/london-borough-council/ealing,CORPORATE ITEMS,7,COVID-19,PAYMENTS TO CONTRACTORS,4000,,08/07/2022,41020872,573,9900018,REDACTED SENSITIVE SUPPLIER
INSERTED DETAIL,,Ealing Council,http://opendatacommunities.org/id/london-borough-council/ealing,CORPORATE ITEMS,7,COVID-19,PAYMENTS TO CONTRACTORS,4000,,08/07/2022,41020873,960,9900018,REDACTED SENSITIVE SUPPLIER
INSERTED DETAIL,,Ealing Council,http://opendatacommunities.org/id/london-borough-council/ealing,CORPORATE ITEMS,7,COVID-19,PAYMENTS TO CONTRACTORS,4000,,08/07/2022,41020874,879,9900018,REDACTED SENSITIVE SUPPLIER
INSERTED DETAIL,,Ealing Council,http://opendatacommunities.org/id/london-borough-council/ealing,CORPORATE ITEMS,7,COVID-19,PAYMENTS TO CONTRACTORS,4000,,11/07/2022,41020884,304,9900018,REDACTED SENSITIVE SUPPLIER
INSERTED DETAIL,,Ealing Council,http://opendatacommunities.org/id/london-borough-council/ealing,CORPORATE ITEMS,7,COVID-19,PAYMENTS TO CONTRACTORS,4000,,11/07/2022,41020899,269,9900018,REDACTED SENSITIVE SUPPLIER
INSERTED DETAIL,,Ealing Council,http://opendatacommunities.org/id/london-borough-council/ealing,CORPORATE ITEMS,7,COVID-19,PAYMENTS TO CONTRACTORS,4000,,11/07/2022,41020911,1150,9900018,REDACTED SENSITIVE SUPPLIER
INSERTED DETAIL,,Ealing Council,http://opendatacommunities.org/id/london-borough-council/ealing,CORPORATE ITEMS,7,COVID-19,PAYMENTS TO CONTRACTORS,4000,,27/07/2022,41022567,400,9900018,REDACTED SENSITIVE SUPPLIER
INSERTED DETAIL,,Ealing Council,http://opendatacommunities.org/id/london-borough-council/ealing,CORPORATE ITEMS,7,COVID-19,PAYMENTS TO CONTRACTORS,4000,,07/07/2022,41020749,780,9900018,REDACTED SENSITIVE SUPPLIER
INSERTED DETAIL,,Ealing Council,http://opendatacommunities.org/id/london-borough-council/ealing,CORPORATE ITEMS,7,COVID-19,PAYMENTS TO CONTRACTORS,4000,,08/07/2022,41020750,289,9900018,SURAJ PAL KALER
INSERTED DETAIL,,Ealing Council,http://opendatacommunities.org/id/london-borough-council/ealing,CORPORATE ITEMS,7,COVID-19,PAYMENTS TO CONTRACTORS,4000,,08/07/2022,41020763,530,9900018,REDACTED SENSITIVE SUPPLIER
INSERTED DETAIL,,Ealing Council,http://opendatacommunities.org/id/london-borough-council/ealing,CORPORATE ITEMS,7,COVID-19,PAYMENTS TO CONTRACTORS,4000,,08/07/2022,41020869,400,9900018,REDACTED SENSITIVE SUPPLIER
INSERTED DETAIL,,Ealing Council,http://opendatacommunities.org/id/london-borough-council/ealing,CORPORATE ITEMS,7,COVID-19,PAYMENTS TO CONTRACTORS,4000,,08/07/2022,41020871,428,9900018,REDACTED SENSITIVE SUPPLIER
INSERTED DETAIL,,Ealing Council,http://opendatacommunities.org/id/london-borough-council/ealing,CORPORATE ITEMS,7,COVID-19,PAYMENTS TO CONTRACTORS,4000,,22/07/2022,41022217,250,9900018,REDACTED SENSITIVE SUPPLIER
INSERTED DETAIL,,Ealing Council,http://opendatacommunities.org/id/london-borough-council/ealing,CORPORATE ITEMS,7,COVID-19,PAYMENTS TO CONTRACTORS,4000,,22/07/2022,41022231,379,9900018,REDACTED SENSITIVE SUPPLIER
INSERTED DETAIL,,Ealing Council,http://opendatacommunities.org/id/london-borough-council/ealing,CORPORATE ITEMS,7,COVID-19,PAYMENTS TO CONTRACTORS,4000,,22/07/2022,41022260,713,9900018,REDACTED SENSITIVE SUPPLIER
INSERTED DETAIL,,Ealing Council,http://opendatacommunities.org/id/london-borough-council/ealing,CORPORATE ITEMS,7,COVID-19,PAYMENTS TO CONTRACTORS,4000,,25/07/2022,41022289,300,9900018,REDACTED SENSITIVE SUPPLIER
INSERTED DETAIL,,Ealing Council,http://opendatacommunities.org/id/london-borough-council/ealing,CORPORATE ITEMS,7,COVID-19,PAYMENTS TO CONTRACTORS,4000,,25/07/2022,41022290,400,9900018,REDACTED SENSITIVE SUPPLIER
INSERTED DETAIL,,Ealing Council,http://opendatacommunities.org/id/london-borough-council/ealing,CORPORATE ITEMS,7,COVID-19,PAYMENTS TO CONTRACTORS,4000,,25/07/2022,41022305,279,9900018,REDACTED SENSITIVE SUPPLIER
INSERTED DETAIL,,Ealing Council,http://opendatacommunities.org/id/london-borough-council/ealing,CORPORATE ITEMS,7,COVID-19,PAYMENTS TO CONTRACTORS,4000,,15/07/2022,41021590,260,9900018,REDACTED SENSITIVE SUPPLIER
INSERTED DETAIL,,Ealing Council,http://opendatacommunities.org/id/london-borough-council/ealing,CORPORATE ITEMS,7,COVID-19,PAYMENTS TO CONTRACTORS,4000,,15/07/2022,41021679,780,9900018,REDACTED SENSITIVE SUPPLIER
INSERTED DETAIL,,Ealing Council,http://opendatacommunities.org/id/london-borough-council/ealing,CORPORATE ITEMS,7,COVID-19,PAYMENTS TO CONTRACTORS,4000,,18/07/2022,41021715,259,9900018,REDACTED SENSITIVE SUPPLIER
INSERTED DETAIL,,Ealing Council,http://opendatacommunities.org/id/london-borough-council/ealing,CORPORATE ITEMS,7,COVID-19,PAYMENTS TO CONTRACTORS,4000,,18/07/2022,41021792,250,9900018,REDACTED SENSITIVE SUPPLIER
INSERTED DETAIL,,Ealing Council,http://opendatacommunities.org/id/london-borough-council/ealing,CORPORATE ITEMS,7,COVID-19,PAYMENTS TO CONTRACTORS,4000,,19/07/2022,41022109,400,9900018,REDACTED SENSITIVE SUPPLIER
INSERTED DETAIL,,Ealing Council,http://opendatacommunities.org/id/london-borough-council/ealing,CHILDREN & ADULTS,1,SAFEGUARDING & SUPPORT - CIC,SOCIAL SERVICES -INDEPENDENT FOSTERING,4221,,11/07/2022,23194055,1853.58,14302,RAINBOW FOSTERING SERVICES LTD
INSERTED DETAIL,,Ealing Council,http://opendatacommunities.org/id/london-borough-council/ealing,CHILDREN & ADULTS,1,SAFEGUARDING & SUPPORT - CIC,SOCIAL SERVICES -INDEPENDENT FOSTERING,4221,,11/07/2022,23194055,3148.12,14302,RAINBOW FOSTERING SERVICES LTD
INSERTED DETAIL,,Ealing Council,http://opendatacommunities.org/id/london-borough-council/ealing,CHILDREN & ADULTS,1,SAFEGUARDING & SUPPORT - CIC,SOCIAL SERVICES -INDEPENDENT FOSTERING,4221,,11/07/2022,23194055,3148.12,14302,RAINBOW FOSTERING SERVICES LTD
INSERTED DETAIL,,Ealing Council,http://opendatacommunities.org/id/london-borough-council/ealing,CHILDREN & ADULTS,1,SAFEGUARDING & SUPPORT - CIC,RESIDENTIAL HOMES EXTERNAL,4220,,11/07/2022,23194043,2454.08,10339,ARNFIELD CARE LTD
INSERTED DETAIL,,Ealing Council,http://opendatacommunities.org/id/london-borough-council/ealing,CHILDREN & ADULTS,1,SAFEGUARDING & SUPPORT - CIC,RESIDENTIAL HOMES EXTERNAL,4220,,11/07/2022,23194043,17976.68,10339,ARNFIELD CARE LTD
INSERTED DETAIL,,Ealing Council,http://opendatacommunities.org/id/london-borough-council/ealing,CHILDREN & ADULTS,1,SAFEGUARDING & SUPPORT - CIC,RESIDENTIAL HOMES EXTERNAL,4220,,11/07/2022,23194043,2454.08,10339,ARNFIELD CARE LTD
INSERTED DETAIL,,Ealing Council,http://opendatacommunities.org/id/london-borough-council/ealing,CHILDREN & ADULTS,1,SAFEGUARDING & SUPPORT - CIC,SOCIAL SERVICES -INDEPENDENT FOSTERING,4221,,11/07/2022,23194055,3148.12,14302,RAINBOW FOSTERING SERVICES LTD
INSERTED DETAIL,,Ealing Council,http://opendatacommunities.org/id/london-borough-council/ealing,CHILDREN & ADULTS,1,SAFEGUARDING & SUPPORT - CIC,SOCIAL SERVICES -INDEPENDENT FOSTERING,4221,,11/07/2022,23194055,3148.12,14302,RAINBOW FOSTERING SERVICES LTD
INSERTED DETAIL,,Ealing Council,http://opendatacommunities.org/id/london-borough-council/ealing,CHILDREN & ADULTS,1,SAFEGUARDING & SUPPORT - CIC,SOCIAL SERVICES -INDEPENDENT FOSTERING,4221,,11/07/2022,23194055,3148.12,14302,RAINBOW FOSTERING SERVICES LTD
INSERTED DETAIL,,Ealing Council,http://opendatacommunities.org/id/london-borough-council/ealing,CHILDREN & ADULTS,1,SAFEGUARDING & SUPPORT - CIC,RESIDENTIAL HOMES EXTERNAL,4220,,11/07/2022,23194109,6505.58,29738,CARE IN MIND RESIDENTIAL SERVICES LIMITED
INSERTED DETAIL,,Ealing Council,http://opendatacommunities.org/id/london-borough-council/ealing,CHILDREN & ADULTS,1,SAFEGUARDING & SUPPORT - CIC,CHILDRENS SERVICES -ELIGIBLE CHILDREN ACCOMMODATIO,4281,,11/07/2022,23194028,2749.8,29866,ELEVATE CARE HOMES LTD
INSERTED DETAIL,,Ealing Council,http://opendatacommunities.org/id/london-borough-council/ealing,CHILDREN & ADULTS,1,SAFEGUARDING & SUPPORT - CIC,CHILDRENS SERVICES -ELIGIBLE CHILDREN ACCOMMODATIO,4281,,11/07/2022,23194028,857.15,29866,ELEVATE CARE HOMES LTD
INSERTED DETAIL,,Ealing Council,http://opendatacommunities.org/id/london-borough-council/ealing,CHILDREN & ADULTS,1,SAFEGUARDING & SUPPORT - CIC,CHILDRENS SERVICES -ELIGIBLE CHILDREN ACCOMMODATIO,4281,,11/07/2022,23194028,428.57,29866,ELEVATE CARE HOMES LTD
INSERTED DETAIL,,Ealing Council,http://opendatacommunities.org/id/london-borough-council/ealing,CHILDREN & ADULTS,1,SAFEGUARDING & SUPPORT - CIC,CHILDRENS SERVICES -ELIGIBLE CHILDREN OTHER COSTS,4282,,11/07/2022,23194043,407.15,10339,ARNFIELD CARE LTD
INSERTED DETAIL,,Ealing Council,http://opendatacommunities.org/id/london-borough-council/ealing,CHILDREN & ADULTS,1,SAFEGUARDING & SUPPORT - CIC,RESIDENTIAL HOMES EXTERNAL,4220,,11/07/2022,23194043,17569.55,10339,ARNFIELD CARE LTD
INSERTED DETAIL,,Ealing Council,http://opendatacommunities.org/id/london-borough-council/ealing,CHILDREN & ADULTS,1,SAFEGUARDING & SUPPORT - CIC,CHILDRENS SERVICES -ELIGIBLE CHILDREN ACCOMMODATIO,4281,,11/07/2022,23194106,3600,29707,ALLBETTER CARE LTD
INSERTED DETAIL,,Ealing Council,http://opendatacommunities.org/id/london-borough-council/ealing,CHILDREN & ADULTS,1,SAFEGUARDING & SUPPORT - CIC,CHILDRENS SERVICES -ELIGIBLE CHILDREN ACCOMMODATIO,4281,,11/07/2022,23194106,3642.85,29707,ALLBETTER CARE LTD
INSERTED DETAIL,,Ealing Council,http://opendatacommunities.org/id/london-borough-council/ealing,CHILDREN & ADULTS,1,SAFEGUARDING & SUPPORT - CIC,CHILDRENS SERVICES -ELIGIBLE CHILDREN ACCOMMODATIO,4281,,11/07/2022,23194106,8400,29707,ALLBETTER CARE LTD
INSERTED DETAIL,,Ealing Council,http://opendatacommunities.org/id/london-borough-council/ealing,CHILDREN & ADULTS,1,SAFEGUARDING & SUPPORT - CIC,CHILDRENS SERVICES -ELIGIBLE CHILDREN ACCOMMODATIO,4281,,11/07/2022,23194106,2142.85,29707,ALLBETTER CARE LTD
INSERTED DETAIL,,Ealing Council,http://opendatacommunities.org/id/london-borough-council/ealing,CHILDREN & ADULTS,1,SAFEGUARDING & SUPPORT - CIC,SOCIAL SERVICES -INDEPENDENT FOSTERING,4221,,11/07/2022,23194108,6407.15,29734,STEPPING STONES FOSTERING LTD
INSERTED DETAIL,,Ealing Council,http://opendatacommunities.org/id/london-borough-council/ealing,CHILDREN & ADULTS,1,SAFEGUARDING & SUPPORT - CIC,RESIDENTIAL HOMES EXTERNAL,4220,,11/07/2022,23194109,12040.42,29738,CARE IN MIND RESIDENTIAL SERVICES LIMITED
INSERTED DETAIL,,Ealing Council,http://opendatacommunities.org/id/london-borough-council/ealing,CHILDREN & ADULTS,1,SAFEGUARDING & SUPPORT - CIC,CHILDRENS SERVICES -ELIGIBLE CHILDREN ACCOMMODATIO,4281,,11/07/2022,23194007,261.65,29509,CREATELIFE LIMITED T/A TRANSITIONS LIVING
INSERTED DETAIL,,Ealing Council,http://opendatacommunities.org/id/london-borough-council/ealing,CHILDREN & ADULTS,1,SAFEGUARDING & SUPPORT - CIC,CHILDRENS SERVICES -ELIGIBLE CHILDREN ACCOMMODATIO,4281,,11/07/2022,23194007,1928.57,29509,CREATELIFE LIMITED T/A TRANSITIONS LIVING
INSERTED DETAIL,,Ealing Council,http://opendatacommunities.org/id/london-borough-council/ealing,CHILDREN & ADULTS,1,SAFEGUARDING & SUPPORT - CIC,CHILDRENS SERVICES -ELIGIBLE CHILDREN ACCOMMODATIO,4281,,11/07/2022,23194007,642.85,29509,CREATELIFE LIMITED T/A TRANSITIONS LIVING
INSERTED DETAIL,,Ealing Council,http://opendatacommunities.org/id/london-borough-council/ealing,CHILDREN & ADULTS,1,SAFEGUARDING & SUPPORT - CIC,CHILDRENS SERVICES -ELIGIBLE CHILDREN ACCOMMODATIO,4281,,11/07/2022,23194007,857.15,29509,CREATELIFE LIMITED T/A TRANSITIONS LIVING
INSERTED DETAIL,,Ealing Council,http://opendatacommunities.org/id/london-borough-council/ealing,CHILDREN & ADULTS,1,SAFEGUARDING & SUPPORT - CIC,CHILDRENS SERVICES -ELIGIBLE CHILDREN ACCOMMODATIO,4281,,11/07/2022,23194106,261.65,29707,ALLBETTER CARE LTD
INSERTED DETAIL,,Ealing Council,http://opendatacommunities.org/id/london-borough-council/ealing,CHILDREN & ADULTS,1,SAFEGUARDING & SUPPORT - CIC,CHILDRENS SERVICES -ELIGIBLE CHILDREN ACCOMMODATIO,4281,,11/07/2022,23194106,1607.15,29707,ALLBETTER CARE LTD
INSERTED DETAIL,,Ealing Council,http://opendatacommunities.org/id/london-borough-council/ealing,CHILDREN & ADULTS,1,SAFEGUARDING & SUPPORT - CIC,SOCIAL SERVICES -INDEPENDENT FOSTERING,4221,,11/07/2022,23194083,1672,28086,SILVER LINING FOSTERING LTD
INSERTED DETAIL,,Ealing Council,http://opendatacommunities.org/id/london-borough-council/ealing,CHILDREN & ADULTS,1,SAFEGUARDING & SUPPORT - CIC,SOCIAL SERVICES -INDEPENDENT FOSTERING,4221,,11/07/2022,23194083,3257.15,28086,SILVER LINING FOSTERING LTD
INSERTED DETAIL,,Ealing Council,http://opendatacommunities.org/id/london-borough-council/ealing,CHILDREN & ADULTS,1,SAFEGUARDING & SUPPORT - CIC,SOCIAL SERVICES -INDEPENDENT FOSTERING,4221,,11/07/2022,23194083,1540,28086,SILVER LINING FOSTERING LTD
INSERTED DETAIL,,Ealing Council,http://opendatacommunities.org/id/london-borough-council/ealing,CHIEF EXECUTIVE DIRECTORATE,5,CUSTOMER & TRANSACTIONAL SERVICES,PAYMENTS TO CONTRACTORS,4000,,30/05/2022,41021471,706.15,28060,VALTECH UK LTD
INSERTED DETAIL,,Ealing Council,http://opendatacommunities.org/id/london-borough-council/ealing,CHIEF EXECUTIVE DIRECTORATE,5,PROPERTY SERVICES,STATION. & CONSUMABLE EQUIP.,3820,,23/06/2022,41020506,2140,29806,OT GROUP LIMITED T/A OFFICE DEPOT
INSERTED DETAIL,,Ealing Council,http://opendatacommunities.org/id/london-borough-council/ealing,CHIEF EXECUTIVE DIRECTORATE,5,PROPERTY SERVICES,CONFIDENTIAL WASTE,2801,,30/06/2022,41020157,1020,27034,TOTAL SHRED LTD
INSERTED DETAIL,,Ealing Council,http://opendatacommunities.org/id/london-borough-council/ealing,CHIEF EXECUTIVE DIRECTORATE,5,PROPERTY SERVICES,POSTAGE,3800,,04/07/2022,41020552,5112.76,14479,ROYAL MAIL GROUP LTD
INSERTED DETAIL,,Ealing Council,http://opendatacommunities.org/id/london-borough-council/ealing,CHIEF EXECUTIVE DIRECTORATE,5,PROPERTY SERVICES,POSTAGE,3800,,30/06/2022,41020196,2455.2,14479,ROYAL MAIL GROUP LTD
INSERTED DETAIL,,Ealing Council,http://opendatacommunities.org/id/london-borough-council/ealing,CHIEF EXECUTIVE DIRECTORATE,5,PROPERTY SERVICES,COURIER DELIVERY SERVICES,2700,,14/02/2022,41021495,10153.94,14479,ROYAL MAIL GROUP LTD
INSERTED DETAIL,,Ealing Council,http://opendatacommunities.org/id/london-borough-council/ealing,CHIEF EXECUTIVE DIRECTORATE,5,PROPERTY SERVICES,COURIER DELIVERY SERVICES,2700,,28/02/2022,41021263,1700.51,14479,ROYAL MAIL GROUP LTD
INSERTED DETAIL,,Ealing Council,http://opendatacommunities.org/id/london-borough-council/ealing,CHIEF EXECUTIVE DIRECTORATE,5,PROPERTY SERVICES,COURIER DELIVERY SERVICES,2700,,02/05/2022,41021265,2080.35,14479,ROYAL MAIL GROUP LTD
INSERTED DETAIL,,Ealing Council,http://opendatacommunities.org/id/london-borough-council/ealing,CHIEF EXECUTIVE DIRECTORATE,5,PROPERTY SERVICES,POSTAGE,3800,,28/02/2022,41021263,5373.93,14479,ROYAL MAIL GROUP LTD
INSERTED DETAIL,,Ealing Council,http://opendatacommunities.org/id/london-borough-council/ealing,CHIEF EXECUTIVE DIRECTORATE,5,PROPERTY SERVICES,POSTAGE,3800,,21/02/2022,41021493,9358.03,14479,ROYAL MAIL GROUP LTD
INSERTED DETAIL,,Ealing Council,http://opendatacommunities.org/id/london-borough-council/ealing,CHIEF EXECUTIVE DIRECTORATE,5,PROPERTY SERVICES,STATION. & CONSUMABLE EQUIP.,3820,,28/02/2022,41020507,350.78,13687,QUADIENT UK LIMITED
INSERTED DETAIL,,Ealing Council,http://opendatacommunities.org/id/london-borough-council/ealing,CHIEF EXECUTIVE DIRECTORATE,5,PROPERTY SERVICES,MINOR EQUIP. REPAIR,3380,,17/05/2022,41020424,7398.05,13687,QUADIENT UK LIMITED
INSERTED DETAIL,,Ealing Council,http://opendatacommunities.org/id/london-borough-council/ealing,CHIEF EXECUTIVE DIRECTORATE,5,PROPERTY SERVICES,STATION. & CONSUMABLE EQUIP.,3820,,30/06/2022,41021755,330,14082,PITNEY BOWES LTD
INSERTED DETAIL,,Ealing Council,http://opendatacommunities.org/id/london-borough-council/ealing,CHIEF EXECUTIVE DIRECTORATE,5,PROPERTY SERVICES,POSTAGE,3800,,07/07/2022,41021765,1364.45,14479,ROYAL MAIL GROUP LTD
INSERTED DETAIL,,Ealing Council,http://opendatacommunities.org/id/london-borough-council/ealing,CHIEF EXECUTIVE DIRECTORATE,5,PROPERTY SERVICES,POSTAGE,3800,,27/06/2022,41019875,6146.28,14479,ROYAL MAIL GROUP LTD
INSERTED DETAIL,,Ealing Council,http://opendatacommunities.org/id/london-borough-council/ealing,CHIEF EXECUTIVE DIRECTORATE,5,PROPERTY SERVICES,POSTAGE,3800,,02/05/2022,41021265,3459.89,14479,ROYAL MAIL GROUP LTD
INSERTED DETAIL,,Ealing Council,http://opendatacommunities.org/id/london-borough-council/ealing,CHIEF EXECUTIVE DIRECTORATE,5,PROPERTY SERVICES,POSTAGE,3800,,16/06/2022,41018298,3091.12,14479,ROYAL MAIL GROUP LTD
INSERTED DETAIL,,Ealing Council,http://opendatacommunities.org/id/london-borough-council/ealing,CHIEF EXECUTIVE DIRECTORATE,5,PROPERTY SERVICES,POSTAGE,3800,,17/03/2022,41018368,49912.79,14479,ROYAL MAIL GROUP LTD
INSERTED DETAIL,,Ealing Council,http://opendatacommunities.org/id/london-borough-council/ealing,CHIEF EXECUTIVE DIRECTORATE,5,PROPERTY SERVICES,POSTAGE,3800,,23/06/2022,41019262,2873.06,14479,ROYAL MAIL GROUP LTD
INSERTED DETAIL,,Ealing Council,http://opendatacommunities.org/id/london-borough-council/ealing,PLACE,6,PARKING,PAYMENTS TO CONTRACTORS,4000,,18/07/2022,41022792,842.11,13322,METRIC GROUP LTD
INSERTED DETAIL,,Ealing Council,http://opendatacommunities.org/id/london-borough-council/ealing,PLACE,6,PARKING,PAYMENTS TO CONTRACTORS,4000,,18/07/2022,41022797,411.85,13322,METRIC GROUP LTD
INSERTED DETAIL,,Ealing Council,http://opendatacommunities.org/id/london-borough-council/ealing,PLACE,6,PARKING,PAYMENTS TO CONTRACTORS,4000,,04/07/2022,41020615,283.15,13322,METRIC GROUP LTD
INSERTED DETAIL,,Ealing Council,http://opendatacommunities.org/id/london-borough-council/ealing,PLACE,6,PARKING,PAYMENTS TO CONTRACTORS,4000,,30/06/2022,41020968,320.4,13322,METRIC GROUP LTD
INSERTED DETAIL,,Ealing Council,http://opendatacommunities.org/id/london-borough-council/ealing,PLACE,6,PARKING,PAYMENTS TO CONTRACTORS,4000,,30/06/2022,41020065,799,13322,METRIC GROUP LTD
INSERTED DETAIL,,Ealing Council,http://opendatacommunities.org/id/london-borough-council/ealing,PLACE,6,STRATEGIC PROPERTY,PAYMENTS TO CONTRACTORS,4000,,28/06/2022,41019619,1328,28751,CARTER JONAS SERVICE COMPANY
INSERTED DETAIL,,Ealing Council,http://opendatacommunities.org/id/london-borough-council/ealing,COUNCIL WIDE OTHER,9,BALANCE SHEET,CTRL OR B/S INFRASTUCTURE ASSETS,6160,,01/07/2022,41021112,3088.8,26979,XAIS ASSET MANAGEMENT LTD
INSERTED DETAIL,,Ealing Council,http://opendatacommunities.org/id/london-borough-council/ealing,CHILDREN & ADULTS,1,DISABILITIES,COMP OUTSOURCED SERVICES,3220,,30/06/2022,41020620,256.68,27646,ACCESS UK LIMITED
INSERTED DETAIL,,Ealing Council,http://opendatacommunities.org/id/london-borough-council/ealing,CHILDREN & ADULTS,1,SAFEGUARDING & SUPPORT - CIN,SECTION 17 NRPF,4297,,09/02/2022,41021738,4355,15489,CENTREMARK PROPERTIES LIMITED
INSERTED DETAIL,,Ealing Council,http://opendatacommunities.org/id/london-borough-council/ealing,CHILDREN & ADULTS,1,SAFEGUARDING & SUPPORT - CIN,SECTION 17 NRPF,4297,,30/06/2022,41020844,2912,15489,CENTREMARK PROPERTIES LIMITED
INSERTED DETAIL,,Ealing Council,http://opendatacommunities.org/id/london-borough-council/ealing,CHILDREN & ADULTS,1,SAFEGUARDING & SUPPORT - CIN,SECTION 17 NRPF,4297,,30/06/2022,41020845,2548,15489,CENTREMARK PROPERTIES LIMITED
INSERTED DETAIL,,Ealing Council,http://opendatacommunities.org/id/london-borough-council/ealing,CHILDREN & ADULTS,1,SAFEGUARDING & SUPPORT - CIN,SECTION 17 NRPF,4297,,13/07/2022,41021377,280,15489,CENTREMARK PROPERTIES LIMITED
INSERTED DETAIL,,Ealing Council,http://opendatacommunities.org/id/london-borough-council/ealing,CHILDREN & ADULTS,1,SAFEGUARDING & SUPPORT - CIN,SECTION 17 NRPF,4297,,31/05/2022,41020222,1116,12426,REDACTED SENSITIVE SUPPLIER
INSERTED DETAIL,,Ealing Council,http://opendatacommunities.org/id/london-borough-council/ealing,CHILDREN & ADULTS,1,SAFEGUARDING & SUPPORT - CIN,SECTION 17 NRPF,4297,,30/06/2022,41021323,1080,12426,REDACTED SENSITIVE SUPPLIER
INSERTED DETAIL,,Ealing Council,http://opendatacommunities.org/id/london-borough-council/ealing,CHILDREN & ADULTS,1,SAFEGUARDING & SUPPORT - CIN,SECTION 17 NRPF,4297,,04/06/2022,41020616,1100,25773,SD BUILDERS LIMITED
INSERTED DETAIL,,Ealing Council,http://opendatacommunities.org/id/london-borough-council/ealing,CHILDREN & ADULTS,1,SAFEGUARDING & SUPPORT - CIC,CHILDRENS SERVICES -ELIGIBLE CHILDREN ACCOMMODATIO,4281,,30/06/2022,23194143,2678.57,19598,JORDAN XAVIER LTD
INSERTED DETAIL,,Ealing Council,http://opendatacommunities.org/id/london-borough-council/ealing,CHILDREN & ADULTS,1,SAFEGUARDING & SUPPORT - CIC,CHILDRENS SERVICES -ELIGIBLE CHILDREN ACCOMMODATIO,4281,,30/06/2022,23194143,321.43,19598,JORDAN XAVIER LTD
INSERTED DETAIL,,Ealing Council,http://opendatacommunities.org/id/london-borough-council/ealing,CHILDREN & ADULTS,1,SAFEGUARDING & SUPPORT - CIC,CHILDRENS SERVICES -ELIGIBLE CHILDREN ACCOMMODATIO,4281,,19/07/2022,23196152,269.95,200005,REDACTED SENSITIVE SUPPLIER
INSERTED DETAIL,,Ealing Council,http://opendatacommunities.org/id/london-borough-council/ealing,CHILDREN & ADULTS,1,SAFEGUARDING & SUPPORT - CIC,CHILDRENS SERVICES -ELIGIBLE CHILDREN ACCOMMODATIO,4281,,11/07/2022,23194026,428.57,29808,PHASE II CARE LTD
INSERTED DETAIL,,Ealing Council,http://opendatacommunities.org/id/london-borough-council/ealing,CHILDREN & ADULTS,1,SAFEGUARDING & SUPPORT - CIC,CHILDRENS SERVICES -ELIGIBLE CHILDREN ACCOMMODATIO,4281,,11/07/2022,23194026,1020,29808,PHASE II CARE LTD
INSERTED DETAIL,,Ealing Council,http://opendatacommunities.org/id/london-borough-council/ealing,CHILDREN & ADULTS,1,SAFEGUARDING & SUPPORT - CIC,CHILDRENS SERVICES -ELIGIBLE CHILDREN ACCOMMODATIO,4281,,11/07/2022,23194025,535.72,29141,WYF VENTURES LTD T/A TOTAL CARE
INSERTED DETAIL,,Ealing Council,http://opendatacommunities.org/id/london-borough-council/ealing,CHILDREN & ADULTS,1,SAFEGUARDING & SUPPORT - CIC,CHILDRENS SERVICES -ELIGIBLE CHILDREN ACCOMMODATIO,4281,,11/07/2022,23194025,1821.43,29141,WYF VENTURES LTD T/A TOTAL CARE
INSERTED DETAIL,,Ealing Council,http://opendatacommunities.org/id/london-borough-council/ealing,CHILDREN & ADULTS,1,SAFEGUARDING & SUPPORT - CIC,CHILDRENS SERVICES -ELIGIBLE CHILDREN ACCOMMODATIO,4281,,11/07/2022,23194104,428.57,29673,GROWHAUS LTD
INSERTED DETAIL,,Ealing Council,http://opendatacommunities.org/id/london-borough-council/ealing,CHILDREN & ADULTS,1,SAFEGUARDING & SUPPORT - CIC,CHILDRENS SERVICES -ELIGIBLE CHILDREN ACCOMMODATIO,4281,,11/07/2022,23194104,-986.32,29673,GROWHAUS LTD
INSERTED DETAIL,,Ealing Council,http://opendatacommunities.org/id/london-borough-council/ealing,CHILDREN & ADULTS,1,SAFEGUARDING & SUPPORT - CIC,CHILDRENS SERVICES -ELIGIBLE CHILDREN ACCOMMODATIO,4281,,11/07/2022,23194104,2142.85,29673,GROWHAUS LTD
INSERTED DETAIL,,Ealing Council,http://opendatacommunities.org/id/london-borough-council/ealing,CHILDREN & ADULTS,1,SAFEGUARDING & SUPPORT - CIC,CHILDRENS SERVICES -ELIGIBLE CHILDREN ACCOMMODATIO,4281,,11/07/2022,23194026,257.15,29808,PHASE II CARE LTD
INSERTED DETAIL,,Ealing Council,http://opendatacommunities.org/id/london-borough-council/ealing,CHILDREN & ADULTS,1,SAFEGUARDING & SUPPORT - CIC,CHILDRENS SERVICES -ELIGIBLE CHILDREN ACCOMMODATIO,4281,,05/07/2022,23192858,269.95,200315,REDACTED SENSITIVE SUPPLIER
INSERTED DETAIL,,Ealing Council,http://opendatacommunities.org/id/london-borough-council/ealing,CHILDREN & ADULTS,1,SAFEGUARDING & SUPPORT - CIC,CHILDRENS SERVICES -ELIGIBLE CHILDREN OTHER COSTS,4282,,19/07/2022,23196245,500,200652,REDACTED SENSITIVE SUPPLIER
INSERTED DETAIL,,Ealing Council,http://opendatacommunities.org/id/london-borough-council/ealing,CHILDREN & ADULTS,1,SAFEGUARDING & SUPPORT - CIC,CHILDRENS SERVICES -ELIGIBLE CHILDREN ACCOMMODATIO,4281,,11/07/2022,23194004,2250,29509,CREATELIFE LIMITED T/A TRANSITIONS LIVING
INSERTED DETAIL,,Ealing Council,http://opendatacommunities.org/id/london-borough-council/ealing,CHILDREN & ADULTS,1,SAFEGUARDING & SUPPORT - CIC,CHILDRENS SERVICES -ELIGIBLE CHILDREN ACCOMMODATIO,4281,,11/07/2022,23194004,1250,29509,CREATELIFE LIMITED T/A TRANSITIONS LIVING
INSERTED DETAIL,,Ealing Council,http://opendatacommunities.org/id/london-borough-council/ealing,CHILDREN & ADULTS,1,SAFEGUARDING & SUPPORT - CIC,CHILDRENS SERVICES -ELIGIBLE CHILDREN ACCOMMODATIO,4281,,11/07/2022,23194011,1800,28994,YCC INVESTMENTS LIMITED T/A YCC CARE
INSERTED DETAIL,,Ealing Council,http://opendatacommunities.org/id/london-borough-council/ealing,CHILDREN & ADULTS,1,SAFEGUARDING & SUPPORT - CIC,CHILDRENS SERVICES -ELIGIBLE CHILDREN ACCOMMODATIO,4281,,11/07/2022,23194011,771.43,28994,YCC INVESTMENTS LIMITED T/A YCC CARE
INSERTED DETAIL,,Ealing Council,http://opendatacommunities.org/id/london-borough-council/ealing,CHILDREN & ADULTS,1,SAFEGUARDING & SUPPORT - CIC,CHILDRENS SERVICES -ELIGIBLE CHILDREN ACCOMMODATIO,4281,,11/07/2022,23194030,535.72,29314,SUPPORTIVE LINK LIMITED
INSERTED DETAIL,,Ealing Council,http://opendatacommunities.org/id/london-borough-council/ealing,CHILDREN & ADULTS,1,SAFEGUARDING & SUPPORT - CIC,CHILDRENS SERVICES -ELIGIBLE CHILDREN ACCOMMODATIO,4281,,11/07/2022,23194013,-908.57,29314,SUPPORTIVE LINK LIMITED
INSERTED DETAIL,,Ealing Council,http://opendatacommunities.org/id/london-borough-council/ealing,CHILDREN & ADULTS,1,SAFEGUARDING & SUPPORT - CIC,CHILDRENS SERVICES -ELIGIBLE CHILDREN ACCOMMODATIO,4281,,11/07/2022,23194013,2035.72,29314,SUPPORTIVE LINK LIMITED
INSERTED DETAIL,,Ealing Council,http://opendatacommunities.org/id/london-borough-council/ealing,CHILDREN & ADULTS,1,SAFEGUARDING & SUPPORT - CIC,CHILDRENS SERVICES -ELIGIBLE CHILDREN ACCOMMODATIO,4281,,11/07/2022,23194013,3214.28,29314,SUPPORTIVE LINK LIMITED
INSERTED DETAIL,,Ealing Council,http://opendatacommunities.org/id/london-borough-council/ealing,CHILDREN & ADULTS,1,SAFEGUARDING & SUPPORT - CIC,CHILDRENS SERVICES -ELIGIBLE CHILDREN ACCOMMODATIO,4281,,12/07/2022,23194209,269.95,200315,REDACTED SENSITIVE SUPPLIER
INSERTED DETAIL,,Ealing Council,http://opendatacommunities.org/id/london-borough-council/ealing,CHILDREN & ADULTS,1,SAFEGUARDING & SUPPORT - CIC,CHILDRENS SERVICES -ELIGIBLE CHILDREN ACCOMMODATIO,4281,,19/07/2022,23196124,269.95,200315,REDACTED SENSITIVE SUPPLIER
INSERTED DETAIL,,Ealing Council,http://opendatacommunities.org/id/london-borough-council/ealing,CHILDREN & ADULTS,1,SAFEGUARDING & SUPPORT - CIC,CHILDRENS SERVICES -ELIGIBLE CHILDREN OTHER COSTS,4282,,05/07/2022,23193024,250,200529,REDACTED SENSITIVE SUPPLIER
INSERTED DETAIL,,Ealing Council,http://opendatacommunities.org/id/london-borough-council/ealing,CHILDREN & ADULTS,1,SAFEGUARDING & SUPPORT - CIC,CHILDRENS SERVICES -ELIGIBLE CHILDREN OTHER COSTS,4282,,19/07/2022,23196311,340.14,200566,REDACTED SENSITIVE SUPPLIER
INSERTED DETAIL,,Ealing Council,http://opendatacommunities.org/id/london-borough-council/ealing,CHIEF EXECUTIVE DIRECTORATE,5,STRATEGY & ENGAGEMENT,GRANTS,5010,,27/06/2022,41022117,5000,20683,ROLLADOME ALL SKATE LTD
INSERTED DETAIL,,Ealing Council,http://opendatacommunities.org/id/london-borough-council/ealing,CHIEF EXECUTIVE DIRECTORATE,5,STRATEGY & ENGAGEMENT,GRANTS,5010,,30/06/2022,41020482,11430.5,29715,THE VIOLENCE INTERVENTION PROJECT
INSERTED DETAIL,,Ealing Council,http://opendatacommunities.org/id/london-borough-council/ealing,CHIEF EXECUTIVE DIRECTORATE,5,STRATEGY & ENGAGEMENT,GRANTS,5010,,30/06/2022,41020959,10000,17114,BRENTFORD FC COMMUNITY SPORTS TRUST
INSERTED DETAIL,,Ealing Council,http://opendatacommunities.org/id/london-borough-council/ealing,CHIEF EXECUTIVE DIRECTORATE,5,STRATEGY & ENGAGEMENT,GRANTS,5010,,05/07/2022,41020738,136750,30120,EALING MENCAP
INSERTED DETAIL,,Ealing Council,http://opendatacommunities.org/id/london-borough-council/ealing,CHIEF EXECUTIVE DIRECTORATE,5,STRATEGY & ENGAGEMENT,GRANTS,5010,,20/07/2022,41022124,500,9900015,EAST AFRICAN ASIAN SENIOR CITIZENS ASSOCIATION
INSERTED DETAIL,,Ealing Council,http://opendatacommunities.org/id/london-borough-council/ealing,CHIEF EXECUTIVE DIRECTORATE,5,STRATEGY & ENGAGEMENT,GRANTS,5010,,27/06/2022,41020173,2280,9900015,EALING CROQUET CLUB
INSERTED DETAIL,,Ealing Council,http://opendatacommunities.org/id/london-borough-council/ealing,CHIEF EXECUTIVE DIRECTORATE,5,STRATEGY & ENGAGEMENT,GRANTS,5010,,27/06/2022,41020175,1300,9900015,ST COLUMBA'S LAWN TENNIS CLUB
INSERTED DETAIL,,Ealing Council,http://opendatacommunities.org/id/london-borough-council/ealing,CHIEF EXECUTIVE DIRECTORATE,5,STRATEGY & ENGAGEMENT,GRANTS,5010,,27/06/2022,41020182,3000,9900015,HEARTLINK EALING HOSPITAL HEART SUPPORT GROUP
INSERTED DETAIL,,Ealing Council,http://opendatacommunities.org/id/london-borough-council/ealing,CHIEF EXECUTIVE DIRECTORATE,5,STRATEGY & ENGAGEMENT,GRANTS,5010,,27/06/2022,41020183,5000,9900015,CLEMENTINA DAY CENTRE COMMUNITY INTEREST
INSERTED DETAIL,,Ealing Council,http://opendatacommunities.org/id/london-borough-council/ealing,CHIEF EXECUTIVE DIRECTORATE,5,CUSTOMER & TRANSACTIONAL SERVICES,PAYMENTS TO CONTRACTORS,4000,,30/06/2022,41021610,512,17829,SOLACE IN BUSINESS LTD
INSERTED DETAIL,,Ealing Council,http://opendatacommunities.org/id/london-borough-council/ealing,CHIEF EXECUTIVE DIRECTORATE,5,CUSTOMER & TRANSACTIONAL SERVICES,PAYMENTS TO CONTRACTORS,4000,,31/03/2022,41020971,512,17829,SOLACE IN BUSINESS LTD
INSERTED DETAIL,,Ealing Council,http://opendatacommunities.org/id/london-borough-council/ealing,CHIEF EXECUTIVE DIRECTORATE,5,CUSTOMER & TRANSACTIONAL SERVICES,PAYMENTS TO CONTRACTORS,4000,,14/06/2022,41018058,327.68,17829,SOLACE IN BUSINESS LTD
INSERTED DETAIL,,Ealing Council,http://opendatacommunities.org/id/london-borough-council/ealing,CHIEF EXECUTIVE DIRECTORATE,5,PROPERTY SERVICES,LICENCES,2710,,30/06/2022,41021840,7337.66,24420,SEVEN DEGREES MARKETING SERVICES LTD
INSERTED DETAIL,,Ealing Council,http://opendatacommunities.org/id/london-borough-council/ealing,PLACE,6,REGULATORY OPERATIONS,SUBSCRIPTIONS,3600,,27/06/2022,41019636,2261,18039,LOTSA CIC
INSERTED DETAIL,,Ealing Council,http://opendatacommunities.org/id/london-borough-council/ealing,PLACE,6,REGULATORY OPERATIONS,SUBSCRIPTIONS,3600,,27/06/2022,41019636,1500,18039,LOTSA CIC
